Workbook

Sheet Deckblatt
H1: 03.03.2014
B3: Gesetz für den Vorrang Erneuerbarer Energien (EEG)
B4: Erhebungsbogen zur Erfassung Ihrer EEG-Jahresabrechnung 2013 als Verteilnetzbetreiber
B5: (Version 1.10 vom 03.03.2014)
B6: Zusammenstellung der detaillierten Angaben Ihrer Endabrechnung nach § 47 EEG Ihrer aufgenommenen und vergüteten und an die TransnetBW GmbH als zuständigen Übertragungsnetzbetreiber weitergereichten EEG-Strommengen im Zeitraum vom 01.01.2013 bis 31.12.2013
B8: Verbindliche detaillierte Angaben zu Ihrer Bescheinigung der Daten gemäß § 47 EEG
B11: Netzbetreiber : | C11: Gammertinger Energie- und Wasserversorgung GmbH
B13: BNetzA-Nr.: | C13: 10000066
B15: Datenstand : | C15: 2014-05-13
B17: Abrechnungszeitraum: | C17: 01.01.2013 - 31.12.2013
B23: Wichtige Hinweise zum Ausfüllen der Formulare:
B25: - Auszufüllen sind jeweils nur die gelb hinterlegten Felder in gelb hinterlgeten Tabellenblättern
B26: - Eine anlagenscharfe Endabrechnung ist zwingend vorzunehmen und ist die Grundlage für die Durchführung der EEG-Jahresabrechnung
B28: - Der Dateinamen ist zwingend beizubehalten, da die Datei sonst nicht verarbeitet werden kann.

Sheet Importprotokoll
A1: Prüfungsschritt/Fehlernummer: | B1: Fehlerbeschreibung | C1: Zeile (bei Schritt 1 u. 2) bzw. Anlagenschlüssel (bei Schritt 3) | D1: Tabellenblatt (nur bei Schritt 1 und 2) | E1: Spalte (nur bei Schritt 2, sofern möglich)
A2: E0001 | B2: Die Testatdaten wurden am 13.05.2014 um 14:07:58 erfolgreich berechnet. | D2: Testatdaten

Sheet Testatdaten
E1: =Deckblatt!H1 -> 03.03.2014
A3: Netzbetreiber : | B3: =Deckblatt!C11 -> Gammertinger Energie- und Wasserversorgung GmbH
A5: Zusammenstellung der Angaben der Endabrechnung nach § 47 EEG Ihrer aufgenommenen und vergüteten und an die TransnetBW GmbH als zuständigen Übertragungsnetzbetreiber weitergereichten EEG-Strommengen im Zeitraum 01.01.2013 bis 31.12.2013
A8: Testatdaten
A10: Einspeisevergütung
B11: Jahresarbeit der nach § 16 EEG vergüteten Strommenge | C11: an Anlagenbetreiber gezahlte EEG-Mindestvergütung nach § 16 EEG
B12: [kWh] | C12: [Euro]
A13: Wasserkraft | B13: 182760 | C13: 21328.09
A14: Deponie-, Klär-, Grubengas | B14: 0 | C14: 0
A15: Biomasse | B15: 0 | C15: 0
A16: Geothermie | B16: 0 | C16: 0
A17: Windenergie | B17: 0 | C17: 0
A18: Solar | B18: 2447810 | C18: 892621.49
A20: Summe | B20: =SUM(B13:B18) -> 2630570 | C20: =SUM(C13:C18) -> 913949.58
A22: Solarstrom-Selbstverbrauch durch Anlagenbetreiber oder Dritte nach § 33 Abs. 2 EEG
A23: Selbstverbrauchsvergütung [€] (in Zelle C17 oben enthalten): | C23: 1324.24
A24: Selbstverbrauchte Strommenge [kWh] (nicht in Zelle B17 oben enthalten): | C24: 12617
A27: Direktvermarktung
B28: Marktprämie nach § 33g EEG | C28: Strommenge nach § 33b Nr. 1 EEG (Marktprämienmodell) | D28: Strommenge nach § 33b Nr. 2 EEG (Grünstromprivileg) | E28: Strommenge nach § 33b Nr. 3 EEG (sonstige Direktvermarktung)
B29: [€] | C29: [kWh] | D29: [kWh] | E29: [kWh]
A30: Wasserkraft | B30: 0 | C30: 0 | D30: 0 | E30: 0
A31: Deponie-, Klär-, Grubengas | B31: 0 | C31: 0 | D31: 0 | E31: 0
A32: Biomasse | B32: 0 | C32: 0 | D32: 0 | E32: 0
A33: Geothermie | B33: 0 | C33: 0 | D33: 0 | E33: 0
A34: Windenergie | B34: 0 | C34: 0 | D34: 0 | E34: 0
A35: Solar | B35: 0 | C35: 0 | D35: 0 | E35: 0
A37: Summe | B37: =SUM(B30:B35) -> 0 | C37: =SUM(C30:C35) -> 0 | D37: 0 | E37: =SUM(E30:E35) -> 0
A39: Flexibilitätsprämie für Biogasanlagen nach § 33i EEG | B39: 0
A40: Summe der Prämien nach §§ 33g und 33i EEG | B40: =SUM(B37+B39) -> 0
A44: vermiedene Netzentgelte (vNE)
B45: vNE nach § 35 Abs. 2 EEG
B46: [€]
A47: Wasserkraft | B47: 1206.22
A48: Deponie-, Klär-, Grubengas | B48: 0
A49: Biomasse | B49: 0
A50: Geothermie | B50: 0
A51: Windenergie | B51: 0
A52: Solar | B52: 19314.52
A54: Summe | B54: =SUM(B47:B52) -> 20520.74
A58: Zusammenstellung
C59: [€]
A60: Einspeisevergütungen nach Maßgabe der §§ 16 - 33 i. V. m. § 66 EEG | B60: (1) =Zelle C20 | C60: =C20 -> 913949.58
A61: Prämien nach §§ 33g und 33i EEG | B61: (2) = Zelle B40 | C61: =B40 -> 0
A62: Vermiedene Netzentgelte nach § 35 Abs. 2 EEG | B62: (3) = Zelle B54 | C62: =B54 -> 20520.74
B64: = (1) + (2) - (3) | C64: =C60+C61-C62 -> 893428.84
A67: Auf dieser Seite werden die in dieser Datei erfassten Bewegungsdaten entsprechend den Energieträgern zusammengefasst. Die im blauen Rahmen enthaltenen Angaben sind in Ihrer Wirtschaftsprüferbescheinigung (Testat) aufzuführen. Abweichungen der Testatwerte von den hier aufgeführten Summen sind nur soweit zulässig, wie sie auf Rundungsfehler zurückzuführen sind. Beachten Sie bitte, dass die vermiedenen Netzentgelte innerhalb des Testats wie hier aufgeführt mit positiven Vorzeichen anzugeben sind. Der Solarstrom-Selbstverbrauch nach §33 Abs. 2 EEG ist hinsichtlich der Vergütung und selbst verbrauchten Strommenge separat im Testat auszuweisen. Die Vergütung ist dabei in der Zeile „Solar“ und damit auch der summierten Vergütung nach Abzug der vNE enthalten. Die selbst verbrauchte Strommenge wird nicht ins Netz eingespeist und ist daher nicht in der Spalte "Jahresarbeit der EEG-Einspeisung" enthalten.
A78: Die direktvermarktete Strommenge ist nicht in der Spalte "Jahresarbeit der EEG-Einspeisung" enthalten und darf analog im Testat in der Spalte "Strommenge [kWh]" ebenfalls nicht enthalten sein. Hinweis: Falls Sie vermiedene Netzentgelte oder Direktvermarktung ausweisen müssen, diese Angaben aber hier fehlen: Ergänzen Sie bitte die Bewegungsdaten in den Tabellenblättern "Festvergütung-GSP-sonst.DV" (Gilt für Einspeisung von Anlagen in Festvergütung, Grünstromprivileg und in der sonstigen Direktvermarktung), "Marktprämie" (gilt für Anlagen in der Marktprämie) und "vNE" (gilt für vNE für Anlagen in Festvergütung, Grünstromprivileg und Marktprämie), indem Sie für die betroffenen Anlagen in einer weiteren Zeile die entsprechende vNE- bzw. Direktvermarktungskategorie auswählen. Die vNE sind als positiver Wert einzutragen. Die direktvermarktete Strommenge ist in der Spalte "Strommenge der Kategorie [kWh]" einzutragen.
A88: zusätzliche Informationen, die nicht im Testat aufzuführen sind (zur Kontrolle):
B90: vermiedene Netzentgelte [€]
A91: HöS | B91: 0
A92: Hös/HS | B92: 0
A93: HS | B93: 0
A94: HS/MS | B94: 0
A95: MS | B95: 351.14
A96: MS/NS | B96: 0
A97: NS | B97: 20169.6
A98: Summe | B98: =SUM(B91:B97) -> 20520.74
B101: Anzahl Anlagen
A102: Wasserkraft | B102: 1
A103: Deponie-, Klär-, Grubengas | B103: 0
A104: Biomasse | B104: 0
A105: Geothermie | B105: 0
A106: Windenergie | B106: 0
A107: Solar | B107: 181
A108: Summe | B108: =SUM(B102:B107) -> 182

Sheet Testatdaten (vorläufig)
E1: =Deckblatt!H1 -> 03.03.2014
A3: Netzbetreiber : | B3: =Deckblatt!C11 -> Gammertinger Energie- und Wasserversorgung GmbH
A5: vorläufige Zusammenstellung der Angaben Ihrer Endabrechnung nach § 47 EEG Ihrer aufgenommenen und vergüteten und an die TransnetBW GmbH als zuständigen Übertragungsnetzbetreiber weitergereichten EEG-Strommengen im Zeitraum 01.01.2013 bis 31.12.2013
A8: Testatdaten (vorläufig)
A10: Einspeisevergütung
B11: Jahresarbeit der nach § 16 EEG vergüteten Strommenge | C11: an Anlagenbetreiber gezahlte EEG-Mindestvergütung nach § 16 EEG
B12: [kWh] | C12: [Euro]
A13: Wasserkraft | B13: 182760 | C13: 21328.09
A14: Deponie-, Klär-, Grubengas | B14: 0 | C14: 0
A15: Biomasse | B15: 0 | C15: 0
A16: Geothermie | B16: 0 | C16: 0
A17: Windenergie | B17: 0 | C17: 0
A18: Solar | B18: 2447810 | C18: 892621.49
A20: Summe | B20: =SUM(B13:B18) -> 2630570 | C20: =SUM(C13:C18) -> 913949.58
A22: Solarstrom-Selbstverbrauch durch Anlagenbetreiber oder Dritte nach § 33 Abs. 2 EEG
A23: Selbstverbrauchsvergütung [€] (in Zelle C17 oben enthalten): | C23: 1324.24
A24: Selbstverbrauchte Strommenge [kWh] (nicht in Zelle B17 oben enthalten): | C24: 12617
A27: Direktvermarktung
B28: Marktprämie nach § 33g EEG | C28: Strommenge nach § 33b Nr. 1 EEG (Marktprämienmodell) | D28: Strommenge nach § 33b Nr. 2 EEG (Grünstromprivileg) | E28: Strommenge nach § 33b Nr. 3 EEG (sonstige Direktvermarktung)
B29: [€] | C29: [kWh] | D29: [kWh] | E29: [kWh]
A30: Wasserkraft | B30: 0 | C30: 0 | D30: 0 | E30: 0
A31: Deponie-, Klär-, Grubengas | B31: 0 | C31: 0 | D31: 0 | E31: 0
A32: Biomasse | B32: 0 | C32: 0 | D32: 0 | E32: 0
A33: Geothermie | B33: 0 | C33: 0 | D33: 0 | E33: 0
A34: Windenergie | B34: 0 | C34: 0 | D34: 0 | E34: 0
A35: Solar | B35: 0 | C35: 0 | D35: 0 | E35: 0
A37: Summe | B37: =SUM(B30:B35) -> 0 | C37: =SUM(C30:C35) -> 0 | D37: 0 | E37: =SUM(E30:E35) -> 0
A39: Flexibilitätsprämie für Biogasanlagen nach § 33i EEG | B39: 0
A40: Summe der Prämien nach §§ 33g und 33i EEG | B40: =SUM(B37+B39) -> 0
A44: vermiedene Netzentgelte (vNE) nach § 35 Abs. 2 EEG
B45: vNE Gesamt
B46: [€]
A47: Wasserkraft | B47: 1206.22
A48: Deponie-, Klär-, Grubengas | B48: 0
A49: Biomasse | B49: 0
A50: Geothermie | B50: 0
A51: Windenergie | B51: 0
A52: Solar | B52: 19315.28
A54: Summe | B54: =SUM(B47:B52) -> 20521.5
A58: Zusammenstellung
C59: [€]
A60: Einspeisevergütungen nach Maßgabe der §§ 16 - 33 i. V. m. § 66 EEG | B60: (1) =Zelle C20 | C60: =C20 -> 913949.58
A61: Prämien nach §§ 33g und 33i EEG | B61: (2) = Zelle B40 | C61: =B40 -> 0
A62: Vermiedene Netzentgelte nach § 35 Abs. 2 EEG | B62: (3) = Zelle B54 | C62: =B54 -> 20521.5
B64: = (1) + (2) - (3) | C64: =C60+C61-C62 -> 893428.08
A67: Auf dieser Seite werden die in dieser Datei erfassten Bewegungsdaten entsprechend den Energieträgern zusammengefasst. Die im blauen Rahmen enthaltenen Angaben sind in Ihrer Wirtschaftsprüferbescheinigung (Testat) aufzuführen. Abweichungen der Testatwerte von den hier aufgeführten Summen sind nur soweit zulässig, wie sie auf Rundungsfehler zurückzuführen sind. Beachten Sie bitte, dass die vermiedenen Netzentgelte innerhalb des Testats wie hier aufgeführt mit positiven Vorzeichen anzugeben sind. Der Solarstrom-Selbstverbrauch nach §33 Abs. 2 EEG ist hinsichtlich der Vergütung und selbst verbrauchten Strommenge separat im Testat auszuweisen. Die Vergütung ist dabei in der Zeile „Solar“ und damit auch der summierten Vergütung nach Abzug der vNE enthalten. Die selbst verbrauchte Strommenge wird nicht ins Netz eingespeist und ist daher nicht in der Spalte "Jahresarbeit der EEG-Einspeisung" enthalten.
A78: Die direktvermarktete Strommenge ist nicht in der Spalte "Jahresarbeit der EEG-Einspeisung" enthalten und darf analog im Testat in der Spalte "Strommenge [kWh]" ebenfalls nicht enthalten sein. Hinweis: Falls Sie vermiedene Netzentgelte oder Direktvermarktung ausweisen müssen, diese Angaben aber hier fehlen: Ergänzen Sie bitte die Bewegungsdaten in den Tabellenblättern "Festvergütung-GSP-sonst.DV" (Gilt für Einspeisung von Anlagen in Festvergütung, Grünstromprivileg und in der sonstigen Direktvermarktung), "Marktprämie" (gilt für Anlagen in der Marktprämie) und "vNE" (gilt für vNE für Anlagen in Festvergütung, Grünstromprivileg und Marktprämie), indem Sie für die betroffenen Anlagen in einer weiteren Zeile die entsprechende vNE- bzw. Direktvermarktungskategorie auswählen. Die vNE sind als positiver Wert einzutragen. Die direktvermarktete Strommenge ist in der Spalte "Strommenge der Kategorie [kWh]" einzutragen.
A88: zusätzliche Informationen, die nicht im Testat aufzuführen sind (zur Kontrolle):
B90: vermiedene Netzentgelte [€]
A91: HöS | B91: 0
A92: Hös/HS | B92: 0
A93: HS | B93: 0
A94: HS/MS | B94: 0
A95: MS | B95: 351.9
A96: MS/NS | B96: 0
A97: NS | B97: 20169.6
A98: Summe | B98: =SUM(B91:B97) -> 20521.5
B101: Anzahl Anlagen
A102: Wasserkraft | B102: 1
A103: Deponie-, Klär-, Grubengas | B103: 0
A104: Biomasse | B104: 0
A105: Geothermie | B105: 0
A106: Windenergie | B106: 0
A107: Solar | B107: 181
A108: Summe | B108: =SUM(B102:B107) -> 182

Sheet Stammdaten
A3: Netzbetreiber : | B3: =Deckblatt!C11 -> Gammertinger Energie- und Wasserversorgung GmbH
C5: Standort / Lage der Anlage (nicht des Anlagenbetreibers) | S5: bei Biomasseanlagen | V5: bei Deponiegas, Klärgas und Grubengas | W5: Geographische Koordinaten (nur bei Wind- und Solaranlagen) | AC5: nur bei Windenergieanlagen
A6: Anlagenschlüssel | B6: Zählpunktbezeichnung | C6: Ort / Gemarkung | D6: Bundesland | E6: PLZ | F6: Straße / Flurstück | G6: Installierte Leistung [kW] | H6: Energieträger | I6: Inbetriebnahmedatum [TT.MM.JJJJ] | J6: Außerbetriebnahmedatum [TT.MM.JJJJ] | K6: Netzzugangsdatum [TT.MM.JJJJ] | L6: Netzabgangsdatum [TT.MM.JJJJ] | M6: Modernisierungsdatum [TT.MM.JJJJ] | N6: Einspeisespannungsebene | O6: Anlageninstallation für Selbstverbrauch ausgelegt | P6: Einspeisemanagement | Q6: Anlage mit Lastgangzählung | R6: Zeitreihentyp für Bilanzierung der Stromerzeugung der Anlage | S6: KWK-Bonus | T6: Technologie-Bonus | U6: Datum der ersten Inanspruchnahme der Flexibilitätsprämie | V6: Technologiebonus Gas | W6: Grad, nördliche Breite | X6: Minuten, nördliche Breite | Y6: Sekunden, nördliche Breite | Z6: Grad, östliche Länge | AA6: Minuten, östliche Länge | AB6: Sekunden, östliche länge | AC6: Schalloptimierung | AD6: Gültig ab [TT.MM.JJJJ]
A7: Pflichtfeld | B7: Pflichtfeld | C7: Pflichtfeld | D7: Pflichtfeld | E7: Pflichtfeld | F7: Pflichtfeld | G7: Pflichtfeld | H7: Pflichtfeld | I7: Pflichtfeld | J7: Pflichtfeld wenn Anlage außer Betrieb | K7: Pflichtfeld bei Netzübergang der Anlage | L7: Pflichtfeld bei Netzübergang der Anlage | M7: Pflichtfeld (Datum der letzten vergütungswirksamen Modernisierung) | N7: Pflichtfeld | O7: Pflichtfeld | P7: Pflichtfeld | Q7: Pflichtfeld | R7: Pflichtfeld | S7: Pflichtfeld | T7: Pflichtfeld | U7: Pflichtfeld bei Inanspruchnahme der Prämie | V7: Pflichtfeld | W7: Optional | X7: Optional | Y7: Optional | Z7: Optional | AA7: Optional | AB7: Optional | AC7: Optional | AD7: Pflichtfeld bei unterjährigen Anlagenänderungen
A8: E1006601W725010011300060051800001 | B8: DE0002147250100001001130006000518 | C8: Gammertingen | D8: Baden-Württemberg | E8: 72501 | F8: Schwedengasse 6 | G8: 40 | H8: Wasser | I8: 1950-01-15 | M8: 2012-01-10 | N8: NS | O8: Nein | P8: Nicht regelbar | Q8: Nein | R8: WAP
A9: E1006601S725010041700070299700001 | B9: DE0002147250100001004170007002997 | C9: Gammertingen | D9: Baden-Württemberg | E9: 72501 | F9: Bubenhofenstr. 7 | G9: 2 | H9: Solar | I9: 2000-04-01 | N9: NS | O9: Nein | P9: Nicht regelbar | Q9: Nein | R9: SOT
A10: E1006601S725010022600030114300001 | B10: DE0002147250100001002260003001143 | C10: Gammertingen | D10: Baden-Württemberg | E10: 72501 | F10: Äussere Lochern 3 | G10: 2 | H10: Solar | I10: 2000-08-31 | N10: NS | O10: Nein | P10: Nicht regelbar | Q10: Nein | R10: SOT
A11: E1006601S725010022600080345200001 | B11: DE0002147250100001002260008003452 | C11: Gammertingen | D11: Baden-Württemberg | E11: 72501 | F11: Äussere Lochern 8 | G11: 2 | H11: Solar | I11: 2001-01-22 | N11: NS | O11: Nein | P11: Nicht regelbar | Q11: Nein | R11: SOT
A12: E1006601S725010042100140358500001 | B12: DE0002147250100001004210014003585 | C12: Gammertingen | D12: Baden-Württemberg | E12: 72501 | F12: Mauren 14 | G12: 8.5 | H12: Solar | I12: 2001-06-21 | N12: NS | O12: Nein | P12: Nicht regelbar | Q12: Nein | R12: SOT
A13: E1006601S725010021200160359400001 | B13: DE0002147250100001002120016003594 | C13: Gammertingen | D13: Baden-Württemberg | E13: 72501 | F13: Achalmstr. 16 | G13: 1.3 | H13: Solar | I13: 2001-07-17 | N13: NS | O13: Nein | P13: Nicht regelbar | Q13: Nein | R13: SOT
A14: E1006601S725010022900020366200001 | B14: DE0002147250100001002290002003662 | C14: Gammertingen | D14: Baden-Württemberg | E14: 72501 | F14: Danziger Str. 2 | G14: 14.3 | H14: Solar | I14: 2001-07-30 | N14: NS | O14: Nein | P14: Nicht regelbar | Q14: Nein | R14: SOT
A15: E1006601S725010021800030363100001 | B15: DE0002147250100001002180003003631 | C15: Gammertingen | D15: Baden-Württemberg | E15: 72501 | F15: Augstbergweg 3 | G15: 2.24 | H15: Solar | I15: 2001-08-28 | N15: NS | O15: Nein | P15: Nicht regelbar | Q15: Nein | R15: SOT
A16: E1006601S725010042900010368900001 | B16: DE0002147250100001004290001003689 | C16: Gammertingen | D16: Baden-Württemberg | E16: 72501 | F16: Heiligenbühlweg 1 | G16: 4.056 | H16: Solar | I16: 2001-10-22 | N16: NS | O16: Nein | P16: Nicht regelbar | Q16: Nein | R16: SOT
A17: E1006601S725010041700010385300001 | B17: DE0002147250100001004170001003853 | C17: Gammertingen | D17: Baden-Württemberg | E17: 72501 | F17: Bubenhofenstr. 1 | G17: 2.04 | H17: Solar | I17: 2002-03-27 | N17: NS | O17: Nein | P17: Nicht regelbar | Q17: Nein | R17: SOT
A18: E1006601S725010011100020387200001 | B18: DE0002147250100001001110002003872 | C18: Gammertingen | D18: Baden-Württemberg | E18: 72501 | F18: Roter Dill 2 | G18: 1.92 | H18: Solar | I18: 2002-04-30 | N18: NS | O18: Nein | P18: Nicht regelbar | Q18: Nein | R18: SOT
A19: E1006601S725010030600180404000001 | B19: DE0002147250100001003060018004040 | C19: Gammertingen | D19: Baden-Württemberg | E19: 72501 | F19: Hölderlinstr. 18 | G19: 3.45 | H19: Solar | I19: 2002-11-13 | N19: NS | O19: Nein | P19: Nicht regelbar | Q19: Nein | R19: SOT
A20: E1006601S725010041550110404700001 | B20: DE0002147250100001004155011004047 | C20: Gammertingen | D20: Baden-Württemberg | E20: 72501 | F20: Robert-Seifert-Str. 11 | G20: 3.52 | H20: Solar | I20: 2002-11-25 | N20: NS | O20: Nein | P20: Nicht regelbar | Q20: Nein | R20: SOT
A21: E1006601S725010010200100409400001 | B21: DE0002147250100001001020010004094 | C21: Gammertingen | D21: Baden-Württemberg | E21: 72501 | F21: August-Reiser-Str. 10 | G21: 3.22 | H21: Solar | I21: 2002-12-13 | N21: NS | O21: Nein | P21: Nicht regelbar | Q21: Nein | R21: SOT
A22: E1006601S725010023600110409900001 | B22: DE0002147250100001002360011004099 | C22: Gammertingen | D22: Baden-Württemberg | E22: 72501 | F22: Schweriner Str. 11 | G22: 3.23 | H22: Solar | I22: 2002-12-23 | N22: NS | O22: Nein | P22: Nicht regelbar | Q22: Nein | R22: SOT
A23: E1006601S725010041550340418800001 | B23: DE0002147250100001004155034004188 | C23: Gammertingen | D23: Baden-Württemberg | E23: 72501 | F23: Robert-Seifert-Str. 34 | G23: 2 | H23: Solar | I23: 2003-05-20 | N23: NS | O23: Nein | P23: Nicht regelbar | Q23: Nein | R23: SOT
A24: E1006601S725010024300090410600001 | B24: DE0002147250100001002430009004106 | C24: Gammertingen | D24: Baden-Württemberg | E24: 72501 | F24: Leipziger Str. 9 | G24: 2 | H24: Solar | I24: 2003-06-20 | N24: NS | O24: Nein | P24: Nicht regelbar | Q24: Nein | R24: SOT
A25: E1006601S725010031700030232100001 | B25: DE0002147250100001003170003002321 | C25: Gammertingen | D25: Baden-Württemberg | E25: 72501 | F25: Beethovenstr. 3 | G25: 4.42 | H25: Solar | I25: 2003-08-27 | N25: NS | O25: Nein | P25: Nicht regelbar | Q25: Nein | R25: SOT
A26: E1006601S725010022800060127000001 | B26: DE0002147250100001002280006001270 | C26: Gammertingen | D26: Baden-Württemberg | E26: 72501 | F26: Kohlhalde 6 | G26: 5.34 | H26: Solar | I26: 2003-09-19 | N26: NS | O26: Nein | P26: Nicht regelbar | Q26: Nein | R26: SOT
A27: E1006601S725010041700050299200001 | B27: DE0002147250100001004170005002992 | C27: Gammertingen | D27: Baden-Württemberg | E27: 72501 | F27: Bubenhofenstr. 5 | G27: 9.1 | H27: Solar | I27: 2003-10-14 | N27: NS | O27: Nein | P27: Nicht regelbar | Q27: Nein | R27: SOT
A28: E1006601S725010040900570274700001 | B28: DE0002147250100001004090057002747 | C28: Gammertingen | D28: Baden-Württemberg | E28: 72501 | F28: Sigmaringer Str. 57 | G28: 6.4 | H28: Solar | I28: 2003-11-04 | N28: NS | O28: Nein | P28: Nicht regelbar | Q28: Nein | R28: SOT
A29: E1006601S725010022600060114900001 | B29: DE0002147250100001002260006001149 | C29: Gammertingen | D29: Baden-Württemberg | E29: 72501 | F29: Äussere Lochern 6 | G29: 4.2 | H29: Solar | I29: 2003-12-11 | N29: NS | O29: Nein | P29: Nicht regelbar | Q29: Nein | R29: SOT
A30: E1006601S725010010800230000100001 | B30: DE0002147250100001001080023000001 | C30: Gammertingen | D30: Baden-Württemberg | E30: 72501 | F30: Kiverlinstr. 23 | G30: 1 | H30: Solar | I30: 2004-01-01 | N30: NS | O30: Nein | P30: Nicht regelbar | Q30: Nein | R30: SOT
A31: E1006601S725010010800250000100001 | B31: DE0002147250100001001080025000001 | C31: Gammertingen | D31: Baden-Württemberg | E31: 72501 | F31: Kiverlinstr. 25 | G31: 1 | H31: Solar | I31: 2004-01-01 | N31: NS | O31: Nein | P31: Nicht regelbar | Q31: Nein | R31: SOT
A32: E1006601S725010022900020366300001 | B32: DE0002147250100001002290002003663 | C32: Gammertingen | D32: Baden-Württemberg | E32: 72501 | F32: Danziger Str. 2 | G32: 4 | H32: Solar | I32: 2004-03-29 | N32: NS | O32: Nein | P32: Nicht regelbar | Q32: Nein | R32: SOT
A33: E1006601S725010022800060127100001 | B33: DE0002147250100001002280006001271 | C33: Gammertingen | D33: Baden-Württemberg | E33: 72501 | F33: Kohlhalde 6 | G33: 2.04 | H33: Solar | I33: 2004-04-06 | N33: NS | O33: Nein | P33: Nicht regelbar | Q33: Nein | R33: SOT
A34: E1006601S725010011100020387200002 | B34: DE0002147250100001001110002003872 | C34: Gammertingen | D34: Baden-Württemberg | E34: 72501 | F34: Roter Dill 2 | G34: 1.92 | H34: Solar | I34: 2004-05-19 | N34: NS | O34: Nein | P34: Nicht regelbar | Q34: Nein | R34: SOT
A35: E1006601S725010023500260144800001 | B35: DE0002147250100001002350026001448 | C35: Gammertingen | D35: Baden-Württemberg | E35: 72501 | F35: Dresdener Str. 26 | G35: 5.75 | H35: Solar | I35: 2004-08-02 | N35: NS | O35: Nein | P35: Nicht regelbar | Q35: Nein | R35: SOT
A36: E1006601S725010042500140317800001 | B36: DE0002147250100001004250014003178 | C36: Gammertingen | D36: Baden-Württemberg | E36: 72501 | F36: Gräfin-Adelheid-Str. 14 | G36: 6.21 | H36: Solar | I36: 2004-09-30 | N36: NS | O36: Nein | P36: Nicht regelbar | Q36: Nein | R36: SOT
A37: E1006601S725010022000130104700001 | B37: DE0002147250100001002200013001047 | C37: Gammertingen | D37: Baden-Württemberg | E37: 72501 | F37: Neufraer Str. 13 | G37: 5.845 | H37: Solar | I37: 2005-03-23 | N37: NS | O37: Nein | P37: Nicht regelbar | Q37: Nein | R37: SOT
A38: E1006601S725010022600170117100001 | B38: DE0002147250100001002260017001171 | C38: Gammertingen | D38: Baden-Württemberg | E38: 72501 | F38: Äussere Lochern 17 | G38: 4.99 | H38: Solar | I38: 2005-06-02 | N38: NS | O38: Nein | P38: Nicht regelbar | Q38: Nein | R38: SOT
A39: E1006601S725010030500190175400001 | B39: DE0002147250100001003050019001754 | C39: Gammertingen | D39: Baden-Württemberg | E39: 72501 | F39: Schillerstr. 19 | G39: 4.73 | H39: Solar | I39: 2005-06-13 | N39: NS | O39: Nein | P39: Nicht regelbar | Q39: Nein | R39: SOT
A40: E1006601S725010040900570274800001 | B40: DE0002147250100001004090057002748 | C40: Gammertingen | D40: Baden-Württemberg | E40: 72501 | F40: Sigmaringer Str. 57 | G40: 6.3 | H40: Solar | I40: 2005-08-12 | N40: NS | O40: Nein | P40: Nicht regelbar | Q40: Nein | R40: SOT
A41: E1006601S725010020300100064100001 | B41: DE0002147250100001002030010000641 | C41: Gammertingen | D41: Baden-Württemberg | E41: 72501 | F41: Daimlerstr. 10 | G41: 5.1 | H41: Solar | I41: 2005-11-09 | N41: NS | O41: Nein | P41: Nicht regelbar | Q41: Nein | R41: SOT
A42: E1006601S725010031500090210600001 | B42: DE0002147250100001003150009002106 | C42: Gammertingen | D42: Baden-Württemberg | E42: 72501 | F42: Obere Bohlstr. 9 | G42: 4.5 | H42: Solar | I42: 2005-12-06 | N42: NS | O42: Nein | P42: Nicht regelbar | Q42: Nein | R42: SOT
A43: E1006601S725010021100100086100001 | B43: DE0002147250100001002110010000861 | C43: Gammertingen | D43: Baden-Württemberg | E43: 72501 | F43: Buchenweg 10 | G43: 6.63 | H43: Solar | I43: 2006-03-17 | N43: NS | O43: Nein | P43: Nicht regelbar | Q43: Nein | R43: SOT
A44: E1006601S725010041550080291800001 | B44: DE0002147250100001004155008002918 | C44: Gammertingen | D44: Baden-Württemberg | E44: 72501 | F44: Robert-Seifert-Str. 8 | G44: 10.2 | H44: Solar | I44: 2006-03-30 | N44: NS | O44: Nein | P44: Nicht regelbar | Q44: Nein | R44: SOT
A45: E1006601S725010021300340093200001 | B45: DE0002147250100001002130034000932 | C45: Gammertingen | D45: Baden-Württemberg | E45: 72501 | F45: Hochbergstr. 34 | G45: 6.4 | H45: Solar | I45: 2006-04-19 | N45: NS | O45: Nein | P45: Nicht regelbar | Q45: Nein | R45: SOT
A46: E1006601S725010041550150292800001 | B46: DE0002147250100001004155015002928 | C46: Gammertingen | D46: Baden-Württemberg | E46: 72501 | F46: Robert-Seifert-Str. 15 | G46: 7.48 | H46: Solar | I46: 2006-04-20 | N46: NS | O46: Nein | P46: Nicht regelbar | Q46: Nein | R46: SOT
A47: E1006601S725010040900730277100001 | B47: DE0002147250100001004090073002771 | C47: Gammertingen | D47: Baden-Württemberg | E47: 72501 | F47: Sigmaringer Str. 73 | G47: 1 | H47: Solar | I47: 2006-07-06 | N47: NS | O47: Nein | P47: Nicht regelbar | Q47: Nein | R47: SOT
A48: E1006601S725010020200110058700001 | B48: DE0002147250100001002020011000587 | C48: Gammertingen | D48: Baden-Württemberg | E48: 72501 | F48: Schelmengartenstr. 11 | G48: 8.575 | H48: Solar | I48: 2006-07-10 | N48: NS | O48: Nein | P48: Nicht regelbar | Q48: Nein | R48: SOT
A49: E1006601S725010030800020183300001 | B49: DE0002147250100001003080002001833 | C49: Gammertingen | D49: Baden-Württemberg | E49: 72501 | F49: Uhlandstr. 6 | G49: 7.2 | H49: Solar | I49: 2006-09-26 | N49: NS | O49: Nein | P49: Nicht regelbar | Q49: Nein | R49: SOT
A50: E1006601S725010010100250003300001 | B50: DE0002147250100001001010025000033 | C50: Gammertingen | D50: Baden-Württemberg | E50: 72501 | F50: Alte Steige 25 | G50: 6.65 | H50: Solar | I50: 2006-10-06 | N50: NS | O50: Nein | P50: Nicht regelbar | Q50: Nein | R50: SOT
A51: E1006601S725010030100220153900001 | B51: DE0002147250100001003010022001539 | C51: Gammertingen | D51: Baden-Württemberg | E51: 72501 | F51: Friedhofstr. 22 | G51: 11.52 | H51: Solar | I51: 2006-11-02 | N51: NS | O51: Nein | P51: Nicht regelbar | Q51: Nein | R51: SOT
A52: E1006601S725010040900570274900001 | B52: DE0002147250100001004090057002749 | C52: Gammertingen | D52: Baden-Württemberg | E52: 72501 | F52: Sigmaringer Str. 57 | G52: 16.2 | H52: Solar | I52: 2006-11-13 | N52: NS | O52: Nein | P52: Nicht regelbar | Q52: Nein | R52: SOT
A53: E1006601S725010023500090141700001 | B53: DE0002147250100001002350009001417 | C53: Gammertingen | D53: Baden-Württemberg | E53: 72501 | F53: Dresdener Str. 9 | G53: 8.46 | H53: Solar | I53: 2007-04-12 | N53: NS | O53: Nein | P53: Nicht regelbar | Q53: Nein | R53: SOT
A54: E1006601S725010020300150064900001 | B54: DE0002147250100001002030015000649 | C54: Gammertingen | D54: Baden-Württemberg | E54: 72501 | F54: Daimlerstr. 15 | G54: 12.83 | H54: Solar | I54: 2007-06-19 | N54: NS | O54: Nein | P54: Nicht regelbar | Q54: Nein | R54: SOT
A55: E1006601S725010030500050172100001 | B55: DE0002147250100001003050005001721 | C55: Gammertingen | D55: Baden-Württemberg | E55: 72501 | F55: Schillerstr. 5 | G55: 8.65 | H55: Solar | I55: 2007-06-20 | N55: NS | O55: Nein | P55: Nicht regelbar | Q55: Nein | R55: SOT
A56: E1006601S725010042900080389800001 | B56: DE0002147250100001004290008003898 | C56: Gammertingen | D56: Baden-Württemberg | E56: 72501 | F56: Heiligenbühlweg 8 | G56: 4.59 | H56: Solar | I56: 2007-07-12 | N56: NS | O56: Nein | P56: Nicht regelbar | Q56: Nein | R56: SOT
A57: E1006601S725010023000010000100001 | B57: DE0002147250100001002300001000001 | C57: Gammertingen | D57: Baden-Württemberg | E57: 72501 | F57: Herdleäcker 1 | G57: 29.64 | H57: Solar | I57: 2007-07-17 | N57: NS | O57: Nein | P57: Nicht regelbar | Q57: Nein | R57: SOT
A58: E1006601S725010040800060251400001 | B58: DE0002147250100001004080006002514 | C58: Gammertingen | D58: Baden-Württemberg | E58: 72501 | F58: Reutlinger Str. 6 | G58: 24.5 | H58: Solar | I58: 2007-09-29 | N58: NS | O58: Nein | P58: Nicht regelbar | Q58: Nein | R58: SOT
A59: E1006601S725010022600080345200002 | B59: DE0002147250100001002260008003452 | C59: Gammertingen | D59: Baden-Württemberg | E59: 72501 | F59: Äußere Lochern 8 | G59: 2.05 | H59: Solar | I59: 2007-10-02 | N59: NS | O59: Nein | P59: Nicht regelbar | Q59: Nein | R59: SOT
A60: E1006601S725010024300020416100001 | B60: DE0002147250100001002430002004161 | C60: Gammertingen | D60: Baden-Württemberg | E60: 72501 | F60: Leipziger Str. 2 | G60: 5.52 | H60: Solar | I60: 2007-10-12 | N60: NS | O60: Nein | P60: Nicht regelbar | Q60: Nein | R60: SOT
A61: E1006601S725010024000060151300001 | B61: DE0002147250100001002400006001513 | C61: Gammertingen | D61: Baden-Württemberg | E61: 72501 | F61: Papstdorfer Weg 6 | G61: 10.98 | H61: Solar | I61: 2007-10-12 | N61: NS | O61: Nein | P61: Nicht regelbar | Q61: Nein | R61: SOT
A62: E1006601S725010023100080400000001 | B62: DE0002147250100001002310008004000 | C62: Gammertingen | D62: Baden-Württemberg | E62: 72501 | F62: Burladinger Str. 8 | G62: 31.2 | H62: Solar | I62: 2007-11-12 | N62: NS | O62: Nein | P62: Nicht regelbar | Q62: Nein | R62: SOT
A63: E1006601S725010024600020000200001 | B63: DE0002147250100001002460002000002 | C63: Gammertingen | D63: Baden-Württemberg | E63: 72501 | F63: Maybachstr. 2 | G63: 38.5 | H63: Solar | I63: 2007-12-27 | N63: NS | O63: Nein | P63: Nicht regelbar | Q63: Nein | R63: SOT
A64: E1006601S725010020200090058500001 | B64: DE0002147250100001002020009000585 | C64: Gammertingen | D64: Baden-Württemberg | E64: 72501 | F64: Schelmengartenstr. 9 | G64: 7.98 | H64: Solar | I64: 2007-12-27 | N64: NS | O64: Nein | P64: Nicht regelbar | Q64: Nein | R64: SOT
A65: E1006601S725010021800050010400001 | B65: DE0002147250100001002180005001004 | C65: Gammertingen | D65: Baden-Württemberg | E65: 72501 | F65: Augstbergweg 5 | G65: 5.5 | H65: Solar | I65: 2008-04-22 | N65: NS | O65: Nein | P65: Nicht regelbar | Q65: Nein | R65: SOT
A66: E1006601S725010021200050000200001 | B66: DE0002147250100001002120005000002 | C66: Gammertingen | D66: Baden-Württemberg | E66: 72501 | F66: Achalmstr. 5 | G66: 7.36 | H66: Solar | I66: 2008-06-23 | N66: NS | O66: Nein | P66: Nicht regelbar | Q66: Nein | R66: SOT
A67: E1006601S725010020400030000200001 | B67: DE0002147250100001002040003000002 | C67: Gammertingen | D67: Baden-Württemberg | E67: 72501 | F67: Robert-Bosch-Str. 3 | G67: 62.422 | H67: Solar | I67: 2008-06-23 | N67: NS | O67: Nein | P67: Nicht regelbar | Q67: Nein | R67: SOT
A68: E1006601S725010030600090000900001 | B68: DE0002147250100001003060009000009 | C68: Gammertingen | D68: Baden-Württemberg | E68: 72501 | F68: Hölderlinstr. 9 | G68: 12.95 | H68: Solar | I68: 2008-07-28 | N68: NS | O68: Nein | P68: Nicht regelbar | Q68: Nein | R68: SOT
A69: E1006601S725010022100180108000001 | B69: DE0002147250100001002210018001080 | C69: Gammertingen | D69: Baden-Württemberg | E69: 72501 | F69: Teckstr. 18 | G69: 6.84 | H69: Solar | I69: 2008-08-06 | N69: NS | O69: Nein | P69: Nicht regelbar | Q69: Nein | R69: SOT
A70: E1006601S725010040300050244300001 | B70: DE0002147250100001004030005002443 | C70: Gammertingen | D70: Baden-Württemberg | E70: 72501 | F70: Fidelisweg 5 | G70: 7.7 | H70: Solar | I70: 2008-08-28 | N70: NS | O70: Nein | P70: Nicht regelbar | Q70: Nein | R70: SOT
A71: E1006601S725010023900050149600001 | B71: DE0002147250100001002390005001496 | C71: Gammertingen | D71: Baden-Württemberg | E71: 72501 | F71: Erfurter Str. 5 | G71: 8.6 | H71: Solar | I71: 2008-09-16 | N71: NS | O71: Nein | P71: Nicht regelbar | Q71: Nein | R71: SOT
A72: E1006601S725010021300100000100001 | B72: DE0002147250100001002130010000001 | C72: Gammertingen | D72: Baden-Württemberg | E72: 72501 | F72: Hochbergstr. 10 | G72: 9.8 | H72: Solar | I72: 2008-09-24 | N72: NS | O72: Nein | P72: Nicht regelbar | Q72: Nein | R72: SOT
A73: E1006601S725010031100040188200001 | B73: DE0002147250100001003110004001882 | C73: Gammertingen | D73: Baden-Württemberg | E73: 72501 | F73: Eichendorffstr. 4 | G73: 6.48 | H73: Solar | I73: 2008-10-22 | N73: NS | O73: Nein | P73: Nicht regelbar | Q73: Nein | R73: SOT
A74: E1006601S725010040900790278000001 | B74: DE0002147250100001004090079002780 | C74: Gammertingen | D74: Baden-Württemberg | E74: 72501 | F74: Sigmaringer Str. 79 | G74: 30.015 | H74: Solar | I74: 2008-12-04 | N74: NS | O74: Nein | P74: Nicht regelbar | Q74: Nein | R74: SOT
A75: E1006601S725010030500220176000001 | B75: DE0002147250100001003050022001760 | C75: Gammertingen | D75: Baden-Württemberg | E75: 72501 | F75: Schillerstr. 22 | G75: 7.56 | H75: Solar | I75: 2008-12-12 | N75: NS | O75: Nein | P75: Nicht regelbar | Q75: Nein | R75: SOT
A76: E1006601S725010024200080000300001 | B76: DE0002147250100001002420008000003 | C76: Gammertingen | D76: Baden-Württemberg | E76: 72501 | F76: Potsdamer Str. 8 | G76: 6.63 | H76: Solar | I76: 2008-12-22 | N76: NS | O76: Nein | P76: Nicht regelbar | Q76: Nein | R76: SOT
A77: E1006601S725010030600030176600001 | B77: DE0002147250100001003060003001766 | C77: Gammertingen | D77: Baden-Württemberg | E77: 72501 | F77: Hölderlinstr. 3 | G77: 7.02 | H77: Solar/Gebäude | I77: 2009-02-11 | N77: NS | O77: Nein | P77: Nicht regelbar | Q77: Nein | R77: SOT
A78: E1006601S725010041550070291700001 | B78: DE0002147250100001004155007002917 | C78: Gammertingen | D78: Baden-Württemberg | E78: 72501 | F78: Robert-Seifert-Str. 7 | G78: 12.42 | H78: Solar/Gebäude | I78: 2009-03-12 | N78: NS | O78: Nein | P78: Nicht regelbar | Q78: Nein | R78: SOT
A79: E1006601S725010041550350294900001 | B79: DE0002147250100001004155035002949 | C79: Gammertingen | D79: Baden-Württemberg | E79: 72501 | F79: Robert-Seifert-Str. 35 | G79: 10.58 | H79: Solar/Gebäude | I79: 2009-03-24 | N79: NS | O79: Nein | P79: Nicht regelbar | Q79: Nein | R79: SOT
A80: E1006601S725010020400050151200001 | B80: DE0002147250100001002400005001512 | C80: Gammertingen | D80: Baden-Württemberg | E80: 72501 | F80: Papstdorfer Weg 5 | G80: 8.8 | H80: Solar/Gebäude | I80: 2009-05-06 | N80: NS | O80: Nein | P80: Nicht regelbar | Q80: Nein | R80: SOT
A81: E1006601S725010031500110211100001 | B81: DE0002147250100001003150011002111 | C81: Gammertingen | D81: Baden-Württemberg | E81: 72501 | F81: Obere Bohlstr. 11 | G81: 6.3 | H81: Solar/Gebäude | I81: 2009-05-19 | N81: NS | O81: Nein | P81: Nicht regelbar | Q81: Nein | R81: SOT
A82: E1006601S725010023500280144900001 | B82: DE0002147250100001002350028001449 | C82: Gammertingen | D82: Baden-Württemberg | E82: 72501 | F82: Dresdener Str. 28 | G82: 10.4 | H82: Solar/Gebäude | I82: 2009-05-22 | N82: NS | O82: Nein | P82: Nicht regelbar | Q82: Nein | R82: SOT
A83: E1006601S725010042700170342900001 | B83: DE0002147250100001004270017003429 | C83: Gammertingen | D83: Baden-Württemberg | E83: 72501 | F83: Salierstr. 17 | G83: 7.35 | H83: Solar/Gebäude | I83: 2009-05-26 | N83: NS | O83: Nein | P83: Nicht regelbar | Q83: Nein | R83: SOT
A84: E1006601S725010042000050346400001 | B84: DE0002147250100001004200005003064 | C84: Gammertingen | D84: Baden-Württemberg | E84: 72501 | F84: Freiherrn-von-Speth-Str. 5 | G84: 6.38 | H84: Solar/Gebäude | I84: 2009-06-10 | N84: NS | O84: Nein | P84: Nicht regelbar | Q84: Nein | R84: SOT
A85: E1006601S725010030400070167100001 | B85: DE0002147250100001003040007001671 | C85: Gammertingen | D85: Baden-Württemberg | E85: 72501 | F85: Goethestr. 7 | G85: 5.75 | H85: Solar/Gebäude | I85: 2009-06-23 | N85: NS | O85: Nein | P85: Nicht regelbar | Q85: Nein | R85: SOT
A86: E1006601S725010041550040291300001 | B86: DE0002147250100001004155004002913 | C86: Gammertingen | D86: Baden-Württemberg | E86: 72501 | F86: Robert-Seifert-Str. 4 | G86: 8.46 | H86: Solar/Gebäude | I86: 2009-06-25 | N86: NS | O86: Nein | P86: Nicht regelbar | Q86: Nein | R86: SOT
A87: E1006601S725010022800170128600001 | B87: DE0002147250100001002280017001286 | C87: Gammertingen | D87: Baden-Württemberg | E87: 72501 | F87: Kohlhalde 17 | G87: 5.72 | H87: Solar/Gebäude | I87: 2009-06-29 | N87: NS | O87: Nein | P87: Nicht regelbar | Q87: Nein | R87: SOT
A88: E1006601S725010022900030129800001 | B88: DE0002147250100001002290003001298 | C88: Gammertingen | D88: Baden-Württemberg | E88: 72501 | F88: Danziger Str. 3 | G88: 4.68 | H88: Solar/Gebäude | I88: 2009-07-02 | N88: NS | O88: Nein | P88: Nicht regelbar | Q88: Nein | R88: SOT
A89: E1006601S725010022900030129700001 | B89: DE0002147250100001002290003001297 | C89: Gammertingen | D89: Baden-Württemberg | E89: 72501 | F89: Danziger Str. 3 | G89: 4.68 | H89: Solar/Gebäude | I89: 2009-07-02 | N89: NS | O89: Nein | P89: Nicht regelbar | Q89: Nein | R89: SOT
A90: E1006601S725010022700310125400001 | B90: DE0002147250100001002270031001254 | C90: Gammertingen | D90: Baden-Württemberg | E90: 72501 | F90: Breslauer Str. 31 | G90: 5.58 | H90: Solar/Gebäude | I90: 2009-07-22 | N90: NS | O90: Nein | P90: Nicht regelbar | Q90: Nein | R90: SOT
A91: E1006601S725010031100040188300001 | B91: DE0002147250100001003110004001883 | C91: Gammertingen | D91: Baden-Württemberg | E91: 72501 | F91: Eichendorffstr. 4 | G91: 4.68 | H91: Solar/Gebäude | I91: 2009-08-05 | N91: NS | O91: Nein | P91: Nicht regelbar | Q91: Nein | R91: SOT
A92: E1006601S725010021200030087200001 | B92: DE0002147250100001002120003000872 | C92: Gammertingen | D92: Baden-Württemberg | E92: 72501 | F92: Achalmstr. 3 | G92: 10.56 | H92: Solar/Gebäude | I92: 2009-09-21 | N92: NS | O92: Nein | P92: Nicht regelbar | Q92: Nein | R92: SOT
A93: E1006601S725010041400050289000001 | B93: DE0002147250100001004140005002890 | C93: Gammertingen | D93: Baden-Württemberg | E93: 72501 | F93: Zeppelinstr. 5 | G93: 13.88 | H93: Solar/Gebäude | I93: 2009-10-06 | N93: NS | O93: Nein | P93: Nicht regelbar | Q93: Nein | R93: SOT
A94: E1006601S725010041600060296800001 | B94: DE0002147250100001004160006002968 | C94: Gammertingen | D94: Baden-Württemberg | E94: 72501 | F94: Gartenstr. 6 | G94: 10.66 | H94: Solar/Gebäude | I94: 2009-10-29 | N94: NS | O94: Nein | P94: Nicht regelbar | Q94: Nein | R94: SOT
A95: E1006601S725010041600040298200001 | B95: DE0002147250100001004160004002982 | C95: Gammertingen | D95: Baden-Württemberg | E95: 72501 | F95: Gartenstr. 4 | G95: 29.725 | H95: Solar/Gebäude | I95: 2009-10-29 | N95: NS | O95: Nein | P95: Nicht regelbar | Q95: Nein | R95: SOT
A96: E1006601S725010022400060111700001 | B96: DE0002147250100001002240006001117 | C96: Gammertingen | D96: Baden-Württemberg | E96: 72501 | F96: Fehlatalstr. 41 | G96: 19.98 | H96: Solar/Gebäude | I96: 2009-11-18 | N96: NS | O96: Nein | P96: Nicht regelbar | Q96: Nein | R96: SOT
A97: E1006601S725010040900420000700001 | B97: DE0002147250100001004090042000007 | C97: Gammertingen | D97: Baden-Württemberg | E97: 72501 | F97: Sigmaringer Str. 42 | G97: 59.68 | H97: Solar/Gebäude | I97: 2009-12-04 | N97: NS | O97: Nein | P97: Nicht regelbar | Q97: Nein | R97: SOT
A98: E1006601S725010020300100064200001 | B98: DE0002147250100001002030010000642 | C98: Gammertingen | D98: Baden-Württemberg | E98: 72501 | F98: Daimlerstr. 10 | G98: 8.28 | H98: Solar/Gebäude | I98: 2009-12-10 | N98: NS | O98: Nein | P98: Nicht regelbar | Q98: Nein | R98: SOT
A99: E1006601S725010030800060184200001 | B99: DE0002147250100001003080006001842 | C99: Gammertingen | D99: Baden-Württemberg | E99: 72501 | F99: Uhlandstr. 6 | G99: 6.3 | H99: Solar/Gebäude | I99: 2009-12-21 | N99: NS | O99: Nein | P99: Nicht regelbar | Q99: Nein | R99: SOT
A100: E1006601S725010023600210146900001 | B100: DE0002147250100001002360021001469 | C100: Gammertingen | D100: Baden-Württemberg | E100: 72501 | F100: Schweriner Str. 21 | G100: 15.4 | H100: Solar/Gebäude | I100: 2009-12-30 | N100: NS | O100: Nein | P100: Nicht regelbar | Q100: Nein | R100: SOT
A101: E1006601S725010030500010171400001 | B101: DE0002147250100001003050001001714 | C101: Gammertingen | D101: Baden-Württemberg | E101: 72501 | F101: Schillerstr. 1/1 | G101: 6.3 | H101: Solar/Gebäude | I101: 2009-12-30 | N101: NS | O101: Nein | P101: Nicht regelbar | Q101: Nein | R101: SOT
A102: E1006601S725010040900440272500001 | B102: DE0002147250100001004090044002725 | C102: Gammertingen | D102: Baden-Württemberg | E102: 72501 | F102: Sigmaringer Str. 44 | G102: 80.33 | H102: Solar/Gebäude | I102: 2009-12-30 | N102: NS | O102: Nein | P102: Nicht regelbar | Q102: Nein | R102: SOT
A103: E1006601S725010030500010171500001 | B103: DE0002147250100001003050001001715 | C103: Gammertingen | D103: Baden-Württemberg | E103: 72501 | F103: Schillerstr. 1/1 | G103: 6.3 | H103: Solar/Gebäude | I103: 2009-12-31 | N103: NS | O103: Nein | P103: Nicht regelbar | Q103: Nein | R103: SOT
A104: E1006601S725010023100140403100001 | B104: DE0002147250100001002310014004031 | C104: Gammertingen | D104: Baden-Württemberg | E104: 72501 | F104: Burladinger Str. 14 | G104: 29.93 | H104: Solar/Gebäude | I104: 2010-03-16 | N104: NS | O104: Nein | P104: Nicht regelbar | Q104: Nein | R104: SOT
A105: E1006601S725010022300070110200001 | B105: DE0002147250100001002230007001102 | C105: Gammertingen | D105: Baden-Württemberg | E105: 72501 | F105: Raichbergweg 7 | G105: 16.577 | H105: Solar/Gebäude | I105: 2010-04-09 | N105: NS | O105: Nein | P105: Nicht regelbar | Q105: Nein | R105: SOT
A106: E1006601S725010022700240358500001 | B106: DE0002147250100001002270024003585 | C106: Gammertingen | D106: Baden-Württemberg | E106: 72501 | F106: Salierstr. 24 | G106: 9.45 | H106: Solar/Gebäude | I106: 2010-04-14 | N106: NS | O106: Nein | P106: Nicht regelbar | Q106: Nein | R106: SOT
A107: E1006601S725010023100090405700001 | B107: DE0002147250100001002310009004057 | C107: Gammertingen | D107: Baden-Württemberg | E107: 72501 | F107: Burladinger Str. 9 | G107: 12.825 | H107: Solar/Gebäude | I107: 2010-04-22 | N107: NS | O107: Nein | P107: Nicht regelbar | Q107: Nein | R107: SOT
A108: E1006601S725010042900080389900001 | B108: DE0002147250100001004290008003899 | C108: Gammertingen | D108: Baden-Württemberg | E108: 72501 | F108: Heiligenbühlweg 8 | G108: 4.48 | H108: Solar/Gebäude | I108: 2010-04-29 | N108: NS | O108: Nein | P108: Nicht regelbar | Q108: Nein | R108: SOT
A109: E1006601S725010040900790278100001 | B109: DE0002147250100001004090079002781 | C109: Gammertingen | D109: Baden-Württemberg | E109: 72501 | F109: Sigmaringer Str. 79a | G109: 10.56 | H109: Solar/Gebäude | I109: 2010-05-21 | N109: NS | O109: Nein | P109: Nicht regelbar | Q109: Nein | R109: SOT
A110: E1006601S725010031600100215500001 | B110: DE0002147250100001003160010002155 | C110: Gammertingen | D110: Baden-Württemberg | E110: 72501 | F110: Mozartstr. 10 | G110: 9.25 | H110: Solar/Gebäude | I110: 2010-05-21 | N110: NS | O110: Nein | P110: Nicht regelbar | Q110: Nein | R110: SOT
A111: E1006601S725010041550450295600001 | B111: DE0002147250100001004155045002956 | C111: Gammertingen | D111: Baden-Württemberg | E111: 72501 | F111: Robert-Seifert-Str. 45 | G111: 9.43 | H111: Solar/Gebäude | I111: 2010-06-01 | N111: NS | O111: Nein | P111: Nicht regelbar | Q111: Nein | R111: SOT
A112: E1006601S725010031550090197300001 | B112: DE0002147250100001003115009001973 | C112: Gammertingen | D112: Baden-Württemberg | E112: 72501 | F112: Hauffstr. 9 | G112: 13.5 | H112: Solar/Gebäude | I112: 2010-06-01 | N112: NS | O112: Nein | P112: Nicht regelbar | Q112: Nein | R112: SOT
A113: E1006601S725010041200040282000001 | B113: DE0002147250100001004120004002820 | C113: Gammertingen | D113: Baden-Württemberg | E113: 72501 | F113: Alemannenweg 4 | G113: 28.28 | H113: Solar/Gebäude | I113: 2010-06-01 | N113: NS | O113: Nein | P113: Nicht regelbar | Q113: Nein | R113: SOT
A114: E1006601S725010020300150065000001 | B114: DE0002147250100001002030015000650 | C114: Gammertingen | D114: Baden-Württemberg | E114: 72501 | F114: Daimlerstr. 15 | G114: 19.43 | H114: Solar/Gebäude | I114: 2010-06-01 | N114: NS | O114: Nein | P114: Nicht regelbar | Q114: Nein | R114: SOT
A115: E1006601S725010020300150065100001 | B115: DE0002147250100001002030015000651 | C115: Gammertingen | D115: Baden-Württemberg | E115: 72501 | F115: Daimlerstr. 15 | G115: 8.75 | H115: Solar/Gebäude | I115: 2010-06-01 | N115: NS | O115: Nein | P115: Nicht regelbar | Q115: Nein | R115: SOT
A116: E1006601S725010020800130076900001 | B116: DE0002147250100001002080013000769 | C116: Gammertingen | D116: Baden-Württemberg | E116: 72501 | F116: Eschenweg 13 | G116: 27.2 | H116: Solar/Gebäude | I116: 2010-06-18 | N116: NS | O116: Nein | P116: Nicht regelbar | Q116: Nein | R116: SOT
A117: E1006601S725010040200060000100001 | B117: DE0002147250100001004020006000001 | C117: Gammertingen | D117: Baden-Württemberg | E117: 72501 | F117: Marktstr. 6 | G117: 12.15 | H117: Solar/Gebäude | I117: 2010-06-22 | N117: NS | O117: Nein | P117: Nicht regelbar | Q117: Nein | R117: SOT
A118: E1006601S725010023700030147700001 | B118: DE0002147250100001002370003001477 | C118: Gammertingen | D118: Baden-Württemberg | E118: 72501 | F118: Rostocker Str. 3 | G118: 10.08 | H118: Solar/Gebäude | I118: 2010-06-25 | N118: NS | O118: Nein | P118: Nicht regelbar | Q118: Nein | R118: SOT
A119: E1006601S725010020200150059000001 | B119: DE0002147250100001002020015000590 | C119: Gammertingen | D119: Baden-Württemberg | E119: 72501 | F119: Schelmengartenstr. 15 | G119: 6.12 | H119: Solar/Gebäude | I119: 2010-06-29 | N119: NS | O119: Nein | P119: Nicht regelbar | Q119: Nein | R119: SOT
A120: E1006601S725010041550190293300001 | B120: DE0002147250100001004155019002933 | C120: Gammertingen | D120: Baden-Württemberg | E120: 72501 | F120: Robert-Seifert-Str. 19 | G120: 9.24 | H120: Solar/Gebäude | I120: 2010-06-29 | N120: NS | O120: Nein | P120: Nicht regelbar | Q120: Nein | R120: SOT
A121: E1006601S725010041600040298300001 | B121: DE0002147250100001004160004002983 | C121: Gammertingen | D121: Baden-Württemberg | E121: 72501 | F121: Gartenstr. 4 | G121: 9.84 | H121: Solar/Gebäude | I121: 2010-06-30 | N121: NS | O121: Nein | P121: Nicht regelbar | Q121: Nein | R121: SOT
A122: E1006601S725010023500140143000001 | B122: DE0002147250100001002350014001430 | C122: Gammertingen | D122: Baden-Württemberg | E122: 72501 | F122: Dresdener Str. 14 | G122: 12.6 | H122: Solar/Gebäude | I122: 2010-06-30 | N122: NS | O122: Nein | P122: Nicht regelbar | Q122: Nein | R122: SOT
A123: E1006601S725010023100220000100001 | B123: DE0002147250100001002310022000001 | C123: Gammertingen | D123: Baden-Württemberg | E123: 72501 | F123: Burladinger Str. 22 | G123: 125.58 | H123: Solar/Gebäude | I123: 2010-06-30 | N123: NS | O123: Nein | P123: regelbar nach § 6 Abs. 1 EEG 2012 | Q123: Ja | R123: SOL
A124: E1006601S725010020350020000200001 | B124: DE0002147250100001002035002000002 | C124: Gammertingen | D124: Baden-Württemberg | E124: 72501 | F124: Mittelberg 2 | G124: 104.5 | H124: Solar/Gebäude | I124: 2010-06-30 | N124: NS | O124: Nein | P124: regelbar nach § 6 Abs. 1 EEG 2012 | Q124: Ja | R124: SOL
A125: E1006601S725010020350100065300001 | B125: DE0002147250100001002035002000653 | C125: Gammertingen | D125: Baden-Württemberg | E125: 72501 | F125: Mittelberg 10 | G125: 58.3 | H125: Solar/Gebäude | I125: 2010-06-30 | N125: NS | O125: Nein | P125: Nicht regelbar | Q125: Ja | R125: SOL
A126: E1006601S725010042500100317400001 | B126: DE0002147250100001004250010003174 | C126: Gammertingen | D126: Baden-Württemberg | E126: 72501 | F126: Gräfin-Adelheid-Str. 10 | G126: 10.915 | H126: Solar/Gebäude | I126: 2010-06-30 | N126: NS | O126: Nein | P126: Nicht regelbar | Q126: Nein | R126: SOT
A127: E1006601S725010021100030085200001 | B127: DE0002147250100001002110003000852 | C127: Gammertingen | D127: Baden-Württemberg | E127: 72501 | F127: Buchenweg 3 | G127: 9 | H127: Solar/Gebäude | I127: 2010-08-25 | N127: NS | O127: Nein | P127: Nicht regelbar | Q127: Nein | R127: SOT
A128: E1006601S725010031600060215000001 | B128: DE0002147250100001003160006002150 | C128: Gammertingen | D128: Baden-Württemberg | E128: 72501 | F128: Mozartstr. 6 | G128: 9.625 | H128: Solar/Gebäude | I128: 2010-09-01 | N128: NS | O128: Nein | P128: Nicht regelbar | Q128: Nein | R128: SOT
A129: E1006601S725010041550140292700001 | B129: DE8002147250100001004155014002927 | C129: Gammertingen | D129: Baden-Württemberg | E129: 72501 | F129: Robert-Seifert-Str. 14 | G129: 13.735 | H129: Solar/Gebäude | I129: 2010-09-23 | N129: NS | O129: Nein | P129: Nicht regelbar | Q129: Nein | R129: SOT
A130: E1006601S725010024000060151400001 | B130: DE8002147250100001002400006001514 | C130: Gammertingen | D130: Baden-Württemberg | E130: 72501 | F130: Papstdorfer Weg 6 | G130: 6.84 | H130: Solar/Gebäude | I130: 2010-09-30 | N130: NS | O130: Nein | P130: Nicht regelbar | Q130: Nein | R130: SOT
A131: E1006601S725010010100080000100001 | B131: DE8002147250100001001010008000001 | C131: Gammertingen | D131: Baden-Württemberg | E131: 72501 | F131: Alte Steige 8 | G131: 4.14 | H131: Solar/Gebäude | I131: 2010-09-30 | N131: NS | O131: Nein | P131: Nicht regelbar | Q131: Nein | R131: SOT
A132: E1006601S725010030300210163900001 | B132: DE8002147250100001003030021001639 | C132: Gammertingen | D132: Baden-Württemberg | E132: 72501 | F132: Untere Bohlstr. 21 | G132: 9.72 | H132: Solar/Gebäude | I132: 2010-09-30 | N132: NS | O132: Nein | P132: Nicht regelbar | Q132: Nein | R132: SOT
A133: E1006601S725010030400080167200001 | B133: DE8002147250100001003040008001672 | C133: Gammertingen | D133: Baden-Württemberg | E133: 72501 | F133: Goethestr. 8 | G133: 8.05 | H133: Solar/Gebäude | I133: 2010-10-27 | N133: NS | O133: Nein | P133: Nicht regelbar | Q133: Nein | R133: SOT
A134: E1006601S725010022200080109300001 | B134: DE8002147250100001002220008001093 | C134: Gammertingen | D134: Baden-Württemberg | E134: 72501 | F134: Steinbeissstr. 8 | G134: 10.34 | H134: Solar/Gebäude | I134: 2010-12-15 | N134: NS | O134: Nein | P134: Nicht regelbar | Q134: Nein | R134: SOT
A135: E1006601S725010031100250191100001 | B135: DE8002147250100001003110025001911 | C135: Gammertingen | D135: Baden-Württemberg | E135: 72501 | F135: Eichendorffstr. 25 | G135: 5.7 | H135: Solar/Gebäude | I135: 2010-12-15 | N135: NS | O135: Nein | P135: Nicht regelbar | Q135: Nein | R135: SOT
A136: E1006601S725010041700160300700001 | B136: DE8002147250100001004170016003007 | C136: Gammertingen | D136: Baden-Württemberg | E136: 72501 | F136: Bubenhofenstr. 16 | G136: 3.36 | H136: Solar/Gebäude | I136: 2010-12-22 | N136: NS | O136: Nein | P136: Nicht regelbar | Q136: Nein | R136: SOT
A137: E1006601S725010040600020250000001 | B137: DE8002147250100001004060002002500 | C137: Gammertingen | D137: Baden-Württemberg | E137: 72501 | F137: Mühlburren 2 | G137: 91.93 | H137: Solar/Gebäude | I137: 2010-12-31 | N137: NS | O137: Nein | P137: Nicht regelbar | Q137: Ja | R137: SOL
A138: E1006601S725010022000070104000001 | B138: DE8002147250100001002200007001040 | C138: Gammertingen | D138: Baden-Württemberg | E138: 72501 | F138: Neufraer Str. 7 | G138: 6.58 | H138: Solar/Gebäude | I138: 2010-12-31 | N138: NS | O138: Ja (keine Belieferung Dritter) | P138: Nicht regelbar | Q138: Nein | R138: SOT
A139: E1006601S725010023100220000300001 | B139: DE8002147250100001002310022000003 | C139: Gammertingen | D139: Baden-Württemberg | E139: 72501 | F139: Burladinger Str. 22 | G139: 491.92 | H139: Solar/Gebäude | I139: 2010-12-31 | N139: NS | O139: Nein | P139: regelbar nach § 6 Abs. 1 EEG 2012 | Q139: Ja | R139: SOL
A140: E1006601S725010042000110307200001 | B140: DE8002147250100001004200011003072 | C140: Gammertingen | D140: Baden-Württemberg | E140: 72501 | F140: Freiherrn-von-Speth-Str. 11 | G140: 8.58 | H140: Solar/Gebäude | I140: 2011-03-30 | N140: NS | O140: Nein | P140: Nicht regelbar | Q140: Nein | R140: SOT
A141: E1006601S725010022600290118700001 | B141: DE8002147250100001002260029001187 | C141: Gammertingen | D141: Baden-Württemberg | E141: 72501 | F141: Äußere Lochern 29 | G141: 5.04 | H141: Solar/Gebäude | I141: 2011-05-27 | N141: NS | O141: Ja (keine Belieferung Dritter) | P141: Nicht regelbar | Q141: Nein | R141: SOT
A142: E1006601S725010022200070000200001 | B142: DE8002147250100001002220007000002 | C142: Gammertingen | D142: Baden-Württemberg | E142: 72501 | F142: Steinbeisstr. 7 | G142: 83.43 | H142: Solar/Gebäude | I142: 2011-06-06 | N142: MS | O142: Nein | P142: Nicht regelbar | Q142: Ja | R142: SOL
A143: E1006001S725010021800030363100001 | B143: DE8002147250100001002180003003631 | C143: Gammertingen | D143: Baden-Württemberg | E143: 72501 | F143: Augstbergweg 3 | G143: 2.52 | H143: Solar/Gebäude | I143: 2011-06-24 | N143: NS | O143: Nein | P143: Nicht regelbar | Q143: Nein | R143: SOT
A144: E1006601S725010023100060000200001 | B144: DE8002147250100001002310006000002 | C144: Gammertingen | D144: Baden-Württemberg | E144: 72501 | F144: Burladinger Str. 6 | G144: 30.36 | H144: Solar/Gebäude | I144: 2011-06-29 | N144: NS | O144: Nein | P144: Nicht regelbar | Q144: Nein | R144: SOT
A145: E1006601S725010041500070290100001 | B145: DE8002147250100001004150007002901 | C145: Gammertingen | D145: Baden-Württemberg | E145: 72501 | F145: Wendelsteinweg 7 | G145: 12.985 | H145: Solar/Gebäude | I145: 2011-07-05 | N145: NS | O145: Nein | P145: Nicht regelbar | Q145: Nein | R145: SOT
A146: E1006601S725010040900790278200001 | B146: DE8002147250100001004090079002782 | C146: Gammertingen | D146: Baden-Württemberg | E146: 72501 | F146: Sigmaringer Str. 79 | G146: 29 | H146: Solar/Gebäude | I146: 2011-07-05 | N146: NS | O146: Nein | P146: Nicht regelbar | Q146: Nein | R146: SOT
A147: E1006001S725010023700050000100001 | B147: DE8002147250100001002370005000001 | C147: Gammertingen | D147: Baden-Württemberg | E147: 72501 | F147: Rostocker Str. 5 | G147: 11.96 | H147: Solar/Gebäude | I147: 2011-07-05 | N147: NS | O147: Nein | P147: Nicht regelbar | Q147: Nein | R147: SOT
A148: E1006601S725010041600020296200001 | B148: DE8002147250100001004160002002962 | C148: Gammertingen | D148: Baden-Württemberg | E148: 72501 | F148: Gartenstr. 2/2 | G148: 28.2 | H148: Solar/Gebäude | I148: 2011-07-27 | N148: NS | O148: Nein | P148: Nicht regelbar | Q148: Nein | R148: SOT
A149: E1006601S725010041550050291400001 | B149: DE8002147250100001004155005002914 | C149: Gammertingen | D149: Baden-Württemberg | E149: 72501 | F149: Robert-Seifert-Str. 5 | G149: 13.475 | H149: Solar/Gebäude | I149: 2011-08-22 | N149: NS | O149: Nein | P149: Nicht regelbar | Q149: Nein | R149: SOT
A150: E1006601S725010021800080100600001 | B150: DE8002147250100001002180008001006 | C150: Gammertingen | D150: Baden-Württemberg | E150: 72501 | F150: Augstbergweg 8 | G150: 8.19 | H150: Solar/Gebäude | I150: 2011-08-30 | N150: NS | O150: Nein | P150: Nicht regelbar | Q150: Nein | R150: SOT
A151: E1006601S725010022400110111500001 | B151: DE8002147250100001002240011001115 | C151: Gammertingen | D151: Baden-Württemberg | E151: 72501 | F151: Fehlatalstr. 11 | G151: 17.64 | H151: Solar/Gebäude | I151: 2011-08-30 | N151: NS | O151: Nein | P151: Nicht regelbar | Q151: Nein | R151: SOT
A152: E1006001S725010020900150082800001 | B152: DE8002147250100001002090015000828 | C152: Gammertingen | D152: Baden-Württemberg | E152: 72501 | F152: Fichtenweg 15 | G152: 22.94 | H152: Solar/Gebäude | I152: 2011-09-12 | N152: NS | O152: Nein | P152: Nicht regelbar | Q152: Nein | R152: SOT
A153: E1006001S725010022700070120500001 | B153: DE8002147250100001002270007001205 | C153: Gammertingen | D153: Baden-Württemberg | E153: 72501 | F153: Breslauer Straße 7 | G153: 9.24 | H153: Solar/Gebäude | I153: 2011-09-28 | N153: NS | O153: Nein | P153: Nicht regelbar | Q153: Nein | R153: SOT
A154: E1006001S725010030500030171800001 | B154: DE8002147250100001003050003001718 | C154: Gammertingen | D154: Baden-Württemberg | E154: 72501 | F154: Schillerstraße 3 | G154: 7.25 | H154: Solar/Gebäude | I154: 2011-10-11 | N154: NS | O154: Nein | P154: Nicht regelbar | Q154: Nein | R154: SOT
A155: E1006001S725010042700120319600001 | B155: DE8002147250100001004270012003196 | C155: Gammertingen | D155: Baden-Württemberg | E155: 72501 | F155: Salierstr. 12 | G155: 10.92 | H155: Solar/Gebäude | I155: 2011-10-19 | N155: NS | O155: Nein | P155: Nicht regelbar | Q155: Nein | R155: SOT
A156: E1006001S725010024200060000200001 | B156: DE8002147250100001002420006000002 | C156: Gammertingen | D156: Baden-Württemberg | E156: 72501 | F156: Potsdamer Str. 6 | G156: 8.575 | H156: Solar/Gebäude | I156: 2011-11-18 | N156: NS | O156: Nein | P156: Nicht regelbar | Q156: Nein | R156: SOT
A157: E1006001S725010011300060051900001 | B157: DE8002147250100001001130006000519 | C157: Gammertingen | D157: Baden-Württemberg | E157: 72501 | F157: Schwedengasse 6 | G157: 18.845 | H157: Solar/Gebäude | I157: 2011-12-05 | N157: NS | O157: Nein | P157: Nicht regelbar | Q157: Nein | R157: SOT
A158: E1006001S725010020800080076100001 | B158: DE8002147250100001002080008000761 | C158: Gammertingen | D158: Baden-Württemberg | E158: 72501 | F158: Eschenweg 8 | G158: 14.44 | H158: Solar/Gebäude | I158: 2011-12-06 | N158: NS | O158: Nein | P158: Nicht regelbar | Q158: Nein | R158: SOT
A159: E1006001S725010022100190108200001 | B159: DE0002147250100001002210019001082 | C159: Gammertingen | D159: Baden-Württemberg | E159: 72501 | F159: Teckstr. 19 | G159: 5.88 | H159: Solar/Gebäude | I159: 2011-12-12 | N159: NS | O159: Ja (keine Belieferung Dritter) | P159: Nicht regelbar | Q159: Nein | R159: SOT
A160: E1006001S725010020800250079200001 | B160: DE8002147250100001002080025000792 | C160: Gammertingen | D160: Baden-Württemberg | E160: 72501 | F160: Eschenweg 25 | G160: 7.98 | H160: Solar/Gebäude | I160: 2011-12-19 | N160: NS | O160: Nein | P160: Nicht regelbar | Q160: Nein | R160: SOT
A161: E1006001S725010021000130084900001 | B161: DE8002147250100001002100013000849 | C161: Gammertingen | D161: Baden-Württemberg | E161: 72501 | F161: Birkenweg 13 | G161: 14.28 | H161: Solar/Gebäude | I161: 2011-12-20 | N161: NS | O161: Nein | P161: Nicht regelbar | Q161: Nein | R161: SOT
A162: E1006001S725010023100050135800001 | B162: DE0002147250100001002310005001358 | C162: Gammertingen | D162: Baden-Württemberg | E162: 72501 | F162: Burladinger Str. 5 | G162: 29.8 | H162: Solar/Gebäude | I162: 2011-12-29 | N162: NS | O162: Nein | P162: Nicht regelbar | Q162: Nein | R162: SOT
A163: E1006001S725010031000010186300001 | B163: DE0002147250100001003100001001863 | C163: Gammertingen | D163: Baden-Württemberg | E163: 72501 | F163: Rilkeweg 1 | G163: 4.875 | H163: Solar/Gebäude | I163: 2011-12-29 | N163: NS | O163: Nein | P163: Nicht regelbar | Q163: Nein | R163: SOT
A164: E1006001S725010022900020366400001 | B164: DE0002147250100001002290002003664 | C164: Gammertingen | D164: Baden-Württemberg | E164: 72501 | F164: Danziger Str. 2 | G164: 17 | H164: Solar/Gebäude | I164: 2011-12-29 | N164: NS | O164: Nein | P164: Nicht regelbar | Q164: Nein | R164: SOT
A165: E1006001S725010022900060130300001 | B165: DE0002147250100001002290006001303 | C165: Gammertingen | D165: Baden-Württemberg | E165: 72501 | F165: Danziger Str. 6 | G165: 29.4 | H165: Solar/Gebäude | I165: 2011-12-30 | N165: NS | O165: Nein | P165: Nicht regelbar | Q165: Nein | R165: SOT
A166: E1006001S725010041700040299200001 | B166: DE0002147250100001004170004002992 | C166: Gammertingen | D166: Baden-Württemberg | E166: 72501 | F166: Bubenhofenstr. 4/1 | G166: 8.19 | H166: Solar/Gebäude | I166: 2011-12-31 | N166: NS | O166: Nein | P166: Nicht regelbar | Q166: Nein | R166: SOT
A167: E1006001S725010042000120000500001 | B167: DE0002147250100001004200012000005 | C167: Gammertingen | D167: Baden-Württemberg | E167: 72501 | F167: Freiherrn-von-Speth-Str. 12 | G167: 9.4 | H167: Solar/Gebäude | I167: 2012-03-27 | N167: NS | O167: Ja (keine Belieferung Dritter) | P167: regelbar nach § 6 Abs. 2 EEG 2012 | Q167: Nein | R167: SOT
A168: E1006001S725010042900070417700001 | B168: DE0002147250100001004290007004177 | C168: Gammertingen | D168: Baden-Württemberg | E168: 72501 | F168: Heiligenbühlweg 7 | G168: 7.82 | H168: Solar/Gebäude | I168: 2012-03-29 | N168: NS | O168: Nein | P168: regelbar nach § 6 Abs. 2 EEG 2012 | Q168: Nein | R168: SOT
A169: E1006001S725010021200090088700001 | B169: DE0002147250100001002120009000887 | C169: Gammertingen | D169: Baden-Württemberg | E169: 72501 | F169: Achalmstr. 9 | G169: 5.28 | H169: Solar/Gebäude | I169: 2012-03-30 | N169: NS | O169: Ja (keine Belieferung Dritter) | P169: regelbar nach § 6 Abs. 2 EEG 2012 | Q169: Nein | R169: SOT
A170: E1006001S725010031400040202900001 | B170: DE0002147250100001003140004002029 | C170: Gammertingen | D170: Baden-Württemberg | E170: 72501 | F170: Bohlhalde 4 | G170: 10.535 | H170: Solar/Gebäude | I170: 2012-03-30 | N170: NS | O170: Ja (keine Belieferung Dritter) | P170: regelbar nach § 6 Abs. 2 EEG 2012 | Q170: Nein | R170: SOT
A171: E1006001S725010042700210000300001 | B171: DE0002147250100001004270021000003 | C171: Gammertingen | D171: Baden-Württemberg | E171: 72501 | F171: Salierstr. 21 | G171: 12.495 | H171: Solar/Gebäude | I171: 2012-03-30 | N171: NS | O171: Ja (keine Belieferung Dritter) | P171: regelbar nach § 6 Abs. 2 EEG 2012 | Q171: Nein | R171: SOT
A172: E1006001S725010023800070149100001 | B172: DE0002147250100001002380007001491 | C172: Gammertingen | D172: Baden-Württemberg | E172: 72501 | F172: Jenaer Str. 7 | G172: 9.25 | H172: Solar/Gebäude | I172: 2012-03-31 | N172: NS | O172: Ja (keine Belieferung Dritter) | P172: regelbar nach § 6 Abs. 2 EEG 2012 | Q172: Nein | R172: SOT
A173: E1006001S725010042100200312600001 | B173: DE0002147250100001004210020003126 | C173: Gammertingen | D173: Baden-Württemberg | E173: 72501 | F173: Mauren 20 | G173: 8.4 | H173: Solar/Gebäude | I173: 2012-05-22 | N173: NS | O173: Ja (keine Belieferung Dritter) | P173: regelbar nach § 6 Abs. 2 EEG 2012 | Q173: Nein | R173: SOT
A174: E1006001S725010042200060314100001 | B174: DE0002147250100001004220006003141 | C174: Gammertingen | D174: Baden-Württemberg | E174: 72501 | F174: Constantin-Hanner-Str. 6 | G174: 4.935 | H174: Solar/Gebäude | I174: 2012-05-29 | N174: NS | O174: Ja (keine Belieferung Dritter) | P174: regelbar nach § 6 Abs. 2 EEG 2012 | Q174: Nein | R174: SOT
A175: E1006001S725010022100220000200001 | B175: DE0002147250100001002210022000002 | C175: Gammertingen | D175: Baden-Württemberg | E175: 72501 | F175: Teckstr. 22 | G175: 7.14 | H175: Solar/Gebäude | I175: 2012-06-29 | N175: NS | O175: Ja (keine Belieferung Dritter) | P175: regelbar nach § 6 Abs. 2 EEG 2012 | Q175: Nein | R175: SOT
A176: E1006001S725010023500240144600001 | B176: DE0002147250100001002350024001446 | C176: Gammertingen | D176: Baden-Württemberg | E176: 72501 | F176: Dresdener Str. 24 | G176: 11.04 | H176: Solar/Gebäude | I176: 2012-07-07 | N176: NS | O176: Ja (keine Belieferung Dritter) | P176: regelbar nach § 6 Abs. 2 EEG 2012 | Q176: Nein | R176: SOT
A177: E1006001S725010020400040065800001 | B177: DE0002147250100001002040004000658 | C177: Gammertingen | D177: Baden-Württemberg | E177: 72501 | F177: Robert-Bosch-Str. 4 | G177: 9.87 | H177: Solar/Gebäude | I177: 2012-07-12 | N177: NS | O177: Ja (keine Belieferung Dritter) | P177: regelbar nach § 6 Abs. 2 EEG 2012 | Q177: Nein | R177: SOT
A178: E1006001S725010022700190122600001 | B178: DE0002147250100001002270019001226 | C178: Gammertingen | D178: Baden-Württemberg | E178: 72501 | F178: Breslauer Str. 19 | G178: 3.36 | H178: Solar/Gebäude | I178: 2012-07-27 | N178: NS | O178: Ja (keine Belieferung Dritter) | P178: 70%-Begrenzung | Q178: Nein | R178: SOT
A179: E1006001S725010023600110410000001 | B179: DE0002147250100001002360011004100 | C179: Gammertingen | D179: Baden-Württemberg | E179: 72501 | F179: Schweriner Str. 11 | G179: 3.975 | H179: Solar/Gebäude | I179: 2012-08-16 | N179: NS | O179: Ja (keine Belieferung Dritter) | P179: regelbar nach § 6 Abs. 2 EEG 2012 | Q179: Nein | R179: SOT
A180: E1006001S725010020600130072200001 | B180: DE0002147250100001002060013000722 | C180: Gammertingen | D180: Baden-Württemberg | E180: 72501 | F180: Tannenweg 13 | G180: 9.555 | H180: Solar/Gebäude | I180: 2012-10-18 | N180: NS | O180: Ja (keine Belieferung Dritter) | P180: regelbar nach § 6 Abs. 2 EEG 2012 | Q180: Nein | R180: SOT
A181: E1006001S725010021300320093100001 | B181: DE0002147250100001002130032000931 | C181: Gammertingen | D181: Baden-Württemberg | E181: 72501 | F181: Hochbergstr. 32 | G181: 32.18 | H181: Solar/Gebäude | I181: 2012-10-24 | N181: NS | O181: Ja (keine Belieferung Dritter) | P181: regelbar nach § 6 Abs. 2 EEG 2012 | Q181: Nein | R181: SOT
A182: E1006001S725010042200010313800001 | B182: DE0002147250100001004220001003136 | C182: Gammertingen | D182: Baden-Württemberg | E182: 72501 | F182: Constantin-Hanner-Str. 1 | G182: 9.8 | H182: Solar/Gebäude | I182: 2012-10-26 | N182: NS | O182: Ja (keine Belieferung Dritter) | P182: regelbar nach § 6 Abs. 2 EEG 2012 | Q182: Nein | R182: SOT
A183: E1006001S725010040900350270800001 | B183: DE0002147250100001004090035002708 | C183: Gammertingen | D183: Baden-Württemberg | E183: 72501 | F183: Sigmaringer Str. 35 | G183: 12.48 | H183: Solar/Gebäude | I183: 2012-10-28 | N183: NS | O183: Ja (keine Belieferung Dritter) | P183: regelbar nach § 6 Abs. 2 EEG 2012 | Q183: Nein | R183: SOT
A184: E1006001S725010022400090111200001 | B184: DE0002147250100001002240009001112 | C184: Gammertingen | D184: Baden-Württemberg | E184: 72501 | F184: Fehlatalstr. 9 | G184: 9.88 | H184: Solar/Gebäude | I184: 2012-12-18 | N184: NS | O184: Ja (mit Belieferung Dritter) | P184: regelbar nach § 6 Abs. 2 EEG 2012 | Q184: Nein | R184: SOT
A185: E1006001S725010023500050000300001 | B185: DE0002147250100001002350050000003 | C185: Gammertingen | D185: Baden-Württemberg | E185: 72501 | F185: Dresdener Str. 50 | G185: 8.13 | H185: Solar/Gebäude | I185: 2013-01-31 | N185: NS | O185: Ja (keine Belieferung Dritter) | P185: regelbar nach § 6 Abs. 2 EEG 2012 | Q185: Nein | R185: SOT
A186: E1006001S725010042100150418200001 | B186: DE0002147250100001004210015004182 | C186: Gammertingen | D186: Baden-Württemberg | E186: 72501 | F186: Mauren 15 | G186: 9.8 | H186: Solar/Gebäude | I186: 2013-03-15 | N186: NS | O186: Ja (keine Belieferung Dritter) | P186: regelbar nach § 6 Abs. 2 EEG 2012 | Q186: Nein | R186: SOT
A187: E1006001S725010024200040414700001 | B187: DE0002147250100001002420016004147 | C187: Gammertingen | D187: Baden-Württemberg | E187: 72501 | F187: Potsdamer Str. 4 | G187: 7.595 | H187: Solar/Gebäude | I187: 2013-03-28 | N187: NS | O187: Ja (keine Belieferung Dritter) | P187: regelbar nach § 6 Abs. 2 EEG 2012 | Q187: Nein | R187: SOT
A188: E1006001S725010020300030063100001 | B188: DE0002147250100001002030003000631 | C188: Gammertingen | D188: Baden-Württemberg | E188: 72501 | F188: Daimlerstr. 3 | G188: 6 | H188: Solar/Gebäude | I188: 2013-05-16 | N188: NS | O188: Ja (keine Belieferung Dritter) | P188: regelbar nach § 6 Abs. 2 EEG 2012 | Q188: nein | R188: SOT
A189: E1006001S725010040900630275800001 | B189: DE0002147250100001004090063002758 | C189: Gammertingen | D189: Baden-Württemberg | E189: 72501 | F189: Sigmaringer Str. 63 | G189: 17.28 | H189: Solar/Gebäude | I189: 2013-05-31 | N189: NS | O189: Ja (keine Belieferung Dritter) | P189: regelbar nach § 6 Abs. 2 EEG 2012 | Q189: Nein | R189: SOT

Sheet Direktvermarktung
A3: Netzbetreiber : | B3: =Deckblatt!C11 -> Gammertinger Energie- und Wasserversorgung GmbH
B5: Prozentualer Anteil der direkt vermarkteten Anlagen in der Marktprämie | N5: Prozentualer Anteil der zum Zweck der Verringerung der EEG-Umlage direkt vermarkteten Anlagen (Grünstromprivileg) | Z5: Prozentualer Anteil der direkt vermarkteten Anlagen in der sonstigen Direktvermarktung
A6: Anlagenschlüssel | B6: Monat Januar 2013 | C6: Monat Februar 2013 | D6: Monat März 2013 | E6: Monat April 2013 | F6: Monat Mai 2013 | G6: Monat Juni 2013 | H6: Monat Juli 2013 | I6: Monat August 2013 | J6: Monat September 2013 | K6: Monat Oktober 2013 | L6: Monat November 2013 | M6: Monat Dezember 2013 | N6: Monat Januar 2013 | O6: Monat Februar 2013 | P6: Monat März 2013 | Q6: Monat April 2013 | R6: Monat Mai 2013 | S6: Monat Juni 2013 | T6: Monat Juli 2013 | U6: Monat August 2013 | V6: Monat September 2013 | W6: Monat Oktober 2013 | X6: Monat November 2013 | Y6: Monat Dezember 2013 | Z6: Monat Januar 2013 | AA6: Monat Februar 2013 | AB6: Monat März 2013 | AC6: Monat April 2013 | AD6: Monat Mai 2013 | AE6: Monat Juni 2013 | AF6: Monat Juli 2013 | AG6: Monat August 2013 | AH6: Monat September 2013 | AI6: Monat Oktober 2013 | AJ6: Monat November 2013 | AK6: Monat Dezember 2013

Sheet Festvergütung_GSP_Sonst
F1: =Deckblatt!H1 -> 03.03.2014
A3: Netzbetreiber : | B3: =Deckblatt!C11 -> Gammertinger Energie- und Wasserversorgung GmbH
A5: Anlagenschlüssel | B5: Vergütungskategorie | C5: erzeugte Strommenge in der jeweiligen Vergütungskategorie [kWh] | D5: tatsächlich ausbezahlte EEG-Mindestvergütung für Kategorien ohne festen Vergütungssatz [€] | E5: Vergütungssatz der angegebenen Kategorie [ct/kWh) | F5: Berechnete EEG-Mindestvergütung [€]
B6: Festvergütung inkl. Eigenverbrauch / Grünstrom / sonstige Direktvermarktung | D6: Pflichtfeld bei Kategorien, die mit Marktwert zu vergüten sind (Kategorien die auf "MW" enden)
A7: E1006601W725010011300060051800001 | B7: WaK231BS----12 | C7: 182760 | E7: 11.67 | F7: 21328.09
A8: E1006601S725010041700070299700001 | B8: SoK81a------01 | C8: 1881 | E8: 50.62 | F8: 952.16
A9: E1006601S725010022600030114300001 | B9: SoK81a------01 | C9: 1708 | E9: 50.62 | F9: 864.59
A10: E1006601S725010022600080345200001 | B10: SoK81a------01 | C10: 1446 | E10: 50.62 | F10: 731.97
A11: E1006601S725010042100140358500001 | B11: SoK81a------01 | C11: 6490 | E11: 50.62 | F11: 3285.24
A12: E1006601S725010021200160359400001 | B12: SoK81a------01 | C12: 608 | E12: 50.62 | F12: 307.77
A13: E1006601S725010022900020366200001 | B13: SoK81a------01 | C13: 7693 | E13: 50.62 | F13: 3894.2
A14: E1006601S725010021800030363100001 | B14: SoK81a------01 | C14: 1987 | E14: 50.62 | F14: 1005.82
A15: E1006601S725010042900010368900001 | B15: SoK81a------01 | C15: 3699 | E15: 50.62 | F15: 1872.43
A16: E1006601S725010041700010385300001 | B16: SoK81a------02 | C16: 1763 | E16: 48.1 | F16: 848
A17: E1006601S725010011100020387200001 | B17: SoK81a------02 | C17: 2008 | E17: 48.1 | F17: 965.85
A18: E1006601S725010030600180404000001 | B18: SoK81a------02 | C18: 2511 | E18: 48.1 | F18: 1207.79
A19: E1006601S725010041550110404700001 | B19: SoK81a------02 | C19: 2774 | E19: 48.1 | F19: 1334.29
A20: E1006601S725010010200100409400001 | B20: SoK81a------02 | C20: 2559 | E20: 48.1 | F20: 1230.88
A21: E1006601S725010023600110409900001 | B21: SoK81a------02 | C21: 2799 | E21: 48.1 | F21: 1346.32
A22: E1006601S725010041550340418800001 | B22: SoK81a------03 | C22: 1619 | E22: 45.7 | F22: 739.88
A23: E1006601S725010024300090410600001 | B23: SoK81a------03 | C23: 1434 | E23: 45.7 | F23: 655.34
A24: E1006601S725010031700030232100001 | B24: SoK81a------03 | C24: 3029 | E24: 45.7 | F24: 1384.25
A25: E1006601S725010022800060127000001 | B25: SoK81a------03 | C25: 5291 | E25: 45.7 | F25: 2417.99
A26: E1006601S725010041700050299200001 | B26: SoK81a------03 | C26: 8398 | E26: 45.7 | F26: 3837.89
A27: E1006601S725010040900570274700001 | B27: SoK81a------03 | C27: 5648 | E27: 45.7 | F27: 2581.14
A28: E1006601S725010022600060114900001 | B28: SoK81a------03 | C28: 3019 | E28: 45.7 | F28: 1379.68
A29: E1006601S725010010800230000100001 | B29: SoK111------04 | C29: 830 | E29: 57.4 | F29: 476.42
A30: E1006601S725010010800250000100001 | B30: SoK111------04 | C30: 649 | E30: 57.4 | F30: 372.53
A31: E1006601S725010022900020366300001 | B31: SoK111------04 | C31: 2006 | E31: 57.4 | F31: 1151.44
A32: E1006601S725010022800060127100001 | B32: SoK111------04 | C32: 1784 | E32: 57.4 | F32: 1024.02
A33: E1006601S725010011100020387200002 | B33: SoK111------04 | C33: 2008 | E33: 57.4 | F33: 1152.59
A34: E1006601S725010023500260144800001 | B34: SoK111------04 | C34: 5637 | E34: 57.4 | F34: 3235.64
A35: E1006601S725010042500140317800001 | B35: SoK111------04 | C35: 5626 | E35: 57.4 | F35: 3229.32
A36: E1006601S725010022000130104700001 | B36: SoK111------05 | C36: 5534 | E36: 54.53 | F36: 3017.69
A37: E1006601S725010022600170117100001 | B37: SoK111------05 | C37: 3764 | E37: 54.53 | F37: 2052.51
A38: E1006601S725010030500190175400001 | B38: SoK111------05 | C38: 3814 | E38: 54.53 | F38: 2079.77
A39: E1006601S725010040900570274800001 | B39: SoK111------05 | C39: 5633 | E39: 54.53 | F39: 3071.67
A40: E1006601S725010020300100064100001 | B40: SoK111------05 | C40: 4436 | E40: 54.53 | F40: 2418.95
A41: E1006601S725010031500090210600001 | B41: SoK111------05 | C41: 3722 | E41: 54.53 | F41: 2029.61
A42: E1006601S725010021100100086100001 | B42: SoK111------06 | C42: 5814 | E42: 51.8 | F42: 3011.65
A43: E1006601S725010041550080291800001 | B43: SoK111------06 | C43: 10612 | E43: 51.8 | F43: 5497.02
A44: E1006601S725010021300340093200001 | B44: SoK111------06 | C44: 5126 | E44: 51.8 | F44: 2655.27
A45: E1006601S725010041550150292800001 | B45: SoK111------06 | C45: 5128 | E45: 51.8 | F45: 2656.3
A46: E1006601S725010040900730277100001 | B46: SoK111------06 | C46: 692 | E46: 51.8 | F46: 358.46
A47: E1006601S725010020200110058700001 | B47: SoK111------06 | C47: 8039 | E47: 51.8 | F47: 4164.2
A48: E1006601S725010030800020183300001 | B48: SoK111------06 | C48: 6785 | E48: 51.8 | F48: 3514.63
A49: E1006601S725010010100250003300001 | B49: SoK111------06 | C49: 4450 | E49: 51.8 | F49: 2305.1
A50: E1006601S725010030100220153900001 | B50: SoK111------06 | C50: 8980 | E50: 51.8 | F50: 4651.64
A51: E1006601S725010040900570274900001 | B51: SoK111------06 | C51: 10117 | E51: 51.8 | F51: 5240.61
A52: E1006601S725010023500090141700001 | B52: SoK111------07 | C52: 7701 | E52: 49.21 | F52: 3789.66
A53: E1006601S725010020300150064900001 | B53: SoK111------07 | C53: 12454 | E53: 49.21 | F53: 6128.61
A54: E1006601S725010030500050172100001 | B54: SoK111------07 | C54: 8515 | E54: 49.21 | F54: 4190.23
A55: E1006601S725010042900080389800001 | B55: SoK111------07 | C55: 4237 | E55: 49.21 | F55: 2085.03
A56: E1006601S725010023000010000100001 | B56: SoK111------07 | C56: 25254 | E56: 49.21 | F56: 12427.49
A57: E1006601S725010040800060251400001 | B57: SoK111------07 | C57: 22788 | E57: 49.21 | F57: 11213.97
A58: E1006601S725010022600080345200002 | B58: SoK111------07 | C58: 1505 | E58: 49.21 | F58: 740.61
A59: E1006601S725010024300020416100001 | B59: SoK111------07 | C59: 5245 | E59: 49.21 | F59: 2581.06
A60: E1006601S725010024000060151300001 | B60: SoK111------07 | C60: 9428 | E60: 49.21 | F60: 4639.52
A61: E1006601S725010023100080400000001 | B61: SoK111------07 | C61: 28055 | E61: 49.21 | F61: 13805.87
A62: E1006601S725010023100080400000001 | B62: SoK112------07 | C62: 1122 | E62: 46.82 | F62: 525.32
A63: E1006601S725010024600020000200001 | B63: SoK111------07 | C63: 19252 | E63: 49.21 | F63: 9473.91
A64: E1006601S725010024600020000200001 | B64: SoK112------07 | C64: 5455 | E64: 46.82 | F64: 2554.03
A65: E1006601S725010020200090058500001 | B65: SoK111------07 | C65: 6992 | E65: 49.21 | F65: 3440.76
A66: E1006601S725010021800050010400001 | B66: SoK111------08 | C66: 5411 | E66: 46.75 | F66: 2529.64
A67: E1006601S725010021200050000200001 | B67: SoK111------08 | C67: 6560 | E67: 46.75 | F67: 3066.8
A68: E1006601S725010020400030000200001 | B68: SoK111------08 | C68: 23180 | E68: 46.75 | F68: 10836.65
A69: E1006601S725010020400030000200001 | B69: SoK112------08 | C69: 25052 | E69: 44.48 | F69: 11143.13
A70: E1006601S725010030600090000900001 | B70: SoK111------08 | C70: 12350 | E70: 46.75 | F70: 5773.62
A71: E1006601S725010022100180108000001 | B71: SoK111------08 | C71: 6518 | E71: 46.75 | F71: 3047.16
A72: E1006601S725010040300050244300001 | B72: SoK111------08 | C72: 6427 | E72: 46.75 | F72: 3004.62
A73: E1006601S725010023900050149600001 | B73: SoK111------08 | C73: 7872 | E73: 46.75 | F73: 3680.16
A74: E1006601S725010021300100000100001 | B74: SoK111------08 | C74: 8593 | E74: 46.75 | F74: 4017.23
A75: E1006601S725010031100040188200001 | B75: SoK111------08 | C75: 5937 | E75: 46.75 | F75: 2775.55
A76: E1006601S725010040900790278000001 | B76: SoK111------08 | C76: 23755.1 | E76: 46.75 | F76: 11105.51
A77: E1006601S725010040900790278000001 | B77: SoK112------08 | C77: 11.9 | E77: 44.48 | F77: 5.29
A78: E1006601S725010030500220176000001 | B78: SoK111------08 | C78: 6596 | E78: 46.75 | F78: 3083.63
A79: E1006601S725010024200080000300001 | B79: SoK111------08 | C79: 6380 | E79: 46.75 | F79: 2982.65
A80: E1006601S725010030600030176600001 | B80: SgK330------09 | C80: 6880 | E80: 43.01 | F80: 2959.09
A81: E1006601S725010041550070291700001 | B81: SgK330------09 | C81: 12904 | E81: 43.01 | F81: 5550.01
A82: E1006601S725010041550350294900001 | B82: SgK330------09 | C82: 9875 | E82: 43.01 | F82: 4247.24
A83: E1006601S725010020400050151200001 | B83: SgK330------09 | C83: 8156 | E83: 43.01 | F83: 3507.9
A84: E1006601S725010031500110211100001 | B84: SgK330------09 | C84: 5610 | E84: 43.01 | F84: 2412.86
A85: E1006601S725010023500280144900001 | B85: SgK330------09 | C85: 10667 | E85: 43.01 | F85: 4587.88
A86: E1006601S725010042700170342900001 | B86: SgK330------09 | C86: 7427 | E86: 43.01 | F86: 3194.35
A87: E1006601S725010042000050346400001 | B87: SgK330------09 | C87: 6300 | E87: 43.01 | F87: 2709.63
A88: E1006601S725010030400070167100001 | B88: SgK330------09 | C88: 5041 | E88: 43.01 | F88: 2168.13
A89: E1006601S725010041550040291300001 | B89: SgK330------09 | C89: 8415 | E89: 43.01 | F89: 3619.29
A90: E1006601S725010022800170128600001 | B90: SgK330------09 | C90: 5424 | E90: 43.01 | F90: 2332.86
A91: E1006601S725010022900030129800001 | B91: SgK330------09 | C91: 4616 | E91: 43.01 | F91: 1985.34
A92: E1006601S725010022900030129700001 | B92: SgK330------09 | C92: 4517 | E92: 43.01 | F92: 1942.76
A93: E1006601S725010022700310125400001 | B93: SgK330------09 | C93: 5501 | E93: 43.01 | F93: 2365.98
A94: E1006601S725010031100040188300001 | B94: SgK330------09 | C94: 4190 | E94: 43.01 | F94: 1802.12
A95: E1006601S725010021200030087200001 | B95: SgK330------09 | C95: 10491 | E95: 43.01 | F95: 4512.18
A96: E1006601S725010041400050289000001 | B96: SgK330------09 | C96: 13428 | E96: 43.01 | F96: 5775.38
A97: E1006601S725010041600060296800001 | B97: SgK330------09 | C97: 9731 | E97: 43.01 | F97: 4185.3
A98: E1006601S725010041600040298200001 | B98: SgK330------09 | C98: 28787 | E98: 43.01 | F98: 12381.29
A99: E1006601S725010022400060111700001 | B99: SgK330------09 | C99: 12666 | E99: 43.01 | F99: 5447.65
A100: E1006601S725010040900420000700001 | B100: SgK330------09 | C100: 22763 | E100: 43.01 | F100: 9790.37
A101: E1006601S725010040900420000700001 | B101: SgK331------09 | C101: 22520 | E101: 40.91 | F101: 9212.93
A102: E1006601S725010020300100064200001 | B102: SgK330------09 | C102: 6953 | E102: 43.01 | F102: 2990.49
A103: E1006601S725010030800060184200001 | B103: SgK330------09 | C103: 2491 | E103: 43.01 | F103: 1071.38
A104: E1006601S725010023600210146900001 | B104: SgK330------09 | C104: 15746 | E104: 43.01 | F104: 6772.35
A105: E1006601S725010030500010171400001 | B105: SgK330------09 | C105: 5558 | E105: 43.01 | F105: 2390.5
A106: E1006601S725010040900440272500001 | B106: SgK330------09 | C106: 23746 | E106: 43.01 | F106: 10213.15
A107: E1006601S725010040900440272500001 | B107: SgK331------09 | C107: 39839 | E107: 40.91 | F107: 16298.13
A108: E1006601S725010030500010171500001 | B108: SgK330------09 | C108: 5600 | E108: 43.01 | F108: 2408.56
A109: E1006601S725010023100140403100001 | B109: SgK330------10 | C109: 27452 | E109: 39.14 | F109: 10744.71
A110: E1006601S725010022300070110200001 | B110: SgK330------10 | C110: 11346 | E110: 39.14 | F110: 4440.82
A111: E1006601S725010022700240358500001 | B111: SgK330------10 | C111: 9489 | E111: 39.14 | F111: 3713.99
A112: E1006601S725010023100090405700001 | B112: SgK330------10 | C112: 11384 | E112: 39.14 | F112: 4455.7
A113: E1006601S725010042900080389900001 | B113: SgK330------10 | C113: 3239 | E113: 39.14 | F113: 1267.74
A114: E1006601S725010040900790278100001 | B114: SgK330------10 | C114: 9439 | E114: 39.14 | F114: 3694.42
A115: E1006601S725010031600100215500001 | B115: SgK330------10 | C115: 7431 | E115: 39.14 | F115: 2908.49
A116: E1006601S725010041550450295600001 | B116: SgK330------10 | C116: 9131 | E116: 39.14 | F116: 3573.87
A117: E1006601S725010031550090197300001 | B117: SgK330------10 | C117: 12953 | E117: 39.14 | F117: 5069.8
A118: E1006601S725010041200040282000001 | B118: SgK330------10 | C118: 23182 | E118: 39.14 | F118: 9073.43
A119: E1006601S725010020300150065000001 | B119: SgK330------10 | C119: 17298 | E119: 39.14 | F119: 6770.44
A120: E1006601S725010020300150065100001 | B120: SgK330------10 | C120: 7502 | E120: 39.14 | F120: 2936.28
A121: E1006601S725010020800130076900001 | B121: SgK330------10 | C121: 22411 | E121: 39.14 | F121: 8771.67
A122: E1006601S725010040200060000100001 | B122: SgK330------10 | C122: 9398 | E122: 39.14 | F122: 3678.38
A123: E1006601S725010023700030147700001 | B123: SgK330------10 | C123: 10204 | E123: 39.14 | F123: 3993.85
A124: E1006601S725010020200150059000001 | B124: SgK330------10 | C124: 5777 | E124: 39.14 | F124: 2261.12
A125: E1006601S725010041550190293300001 | B125: SgK330------10 | C125: 8828 | E125: 39.14 | F125: 3455.28
A126: E1006601S725010041600040298300001 | B126: SgK330------10 | C126: 9938 | E126: 39.14 | F126: 3889.73
A127: E1006601S725010023500140143000001 | B127: SgK330------10 | C127: 13273 | E127: 39.14 | F127: 5195.05
A128: E1006601S725010023100220000100001 | B128: SgK330------10 | C128: 22087 | E128: 39.14 | F128: 8644.85
A129: E1006601S725010023100220000100001 | B129: SgK331------10 | C129: 51537 | E129: 37.23 | F129: 19187.23
A130: E1006601S725010023100220000100001 | B130: SgK332------10 | C130: 18833 | E130: 35.23 | F130: 6634.87
A131: E1006601S725010020350020000200001 | B131: SgK330------10 | C131: 28926 | E131: 39.14 | F131: 11321.64
A132: E1006601S725010020350020000200001 | B132: SgK331------10 | C132: 67493 | E132: 37.23 | F132: 25127.64
A133: E1006601S725010020350020000200001 | B133: SgK332------10 | C133: 4339 | E133: 35.23 | F133: 1528.63
A134: E1006601S725010020350100065300001 | B134: SgK330------10 | C134: 29458 | E134: 39.14 | F134: 11529.86
A135: E1006601S725010020350100065300001 | B135: SgK331------10 | C135: 27789 | E135: 37.23 | F135: 10345.84
A136: E1006601S725010042500100317400001 | B136: SgK330------10 | C136: 10349 | E136: 39.14 | F136: 4050.6
A137: E1006601S725010021100030085200001 | B137: SgK330---Jul10 | C137: 7158 | E137: 34.05 | F137: 2437.3
A138: E1006601S725010031600060215000001 | B138: SgK330---Jul10 | C138: 8642 | E138: 34.05 | F138: 2942.6
A139: E1006601S725010041550140292700001 | B139: SgK330---Jul10 | C139: 14222 | E139: 34.05 | F139: 4842.59
A140: E1006601S725010024000060151400001 | B140: SgK330---Jul10 | C140: 5877 | E140: 34.05 | F140: 2001.12
A141: E1006601S725010010100080000100001 | B141: SgK330---Jul10 | C141: 3248 | E141: 34.05 | F141: 1105.94
A142: E1006601S725010030300210163900001 | B142: SgK330---Jul10 | C142: 8837 | E142: 34.05 | F142: 3009
A143: E1006601S725010030400080167200001 | B143: SgK330---Okt10 | C143: 7146 | E143: 33.03 | F143: 2360.32
A144: E1006601S725010022200080109300001 | B144: SgK330---Okt10 | C144: 9993 | E144: 33.03 | F144: 3300.69
A145: E1006601S725010031100250191100001 | B145: SgK330---Okt10 | C145: 5377 | E145: 33.03 | F145: 1776.02
A146: E1006601S725010041700160300700001 | B146: SgK330---Okt10 | C146: 3413 | E146: 33.03 | F146: 1127.31
A147: E1006601S725010040600020250000001 | B147: SgK330---Okt10 | C147: 25167 | E147: 33.03 | F147: 8312.66
A148: E1006601S725010040600020250000001 | B148: SgK331---Okt10 | C148: 51952 | E148: 31.42 | F148: 16323.32
A149: E1006601S725010022000070104000001 | B149: SgK330---Okt10 | C149: 3808 | E149: 33.03 | F149: 1257.78
A150: E1006601S725010022000070104000001 | B150: SgK33410-Okt10 | C150: 1364 | E150: 33.03 | F150: 450.53
A151: E1006601S725010022000070104000001 | B151: SgK33420-Okt10 | C151: -1364 | E151: 16.38 | F151: -223.42
A152: E1006601S725010023100220000300001 | B152: SgK332---Okt10 | C152: 456400 | E152: 29.73 | F152: 135687.72
A153: E1006601S725010042000110307200001 | B153: SgK330------11 | C153: 7784 | E153: 28.74 | F153: 2237.12
A154: E1006601S725010022600290118700001 | B154: SgK330------11 | C154: 2324 | E154: 28.74 | F154: 667.92
A155: E1006601S725010022600290118700001 | B155: SgK33410----11 | C155: 1637 | E155: 28.74 | F155: 470.47
A156: E1006601S725010022600290118700001 | B156: SgK33420----11 | C156: -1188 | E156: 16.38 | F156: -194.59
A157: E1006601S725010022600290118700001 | B157: SgK33430----11 | C157: -449 | E157: 12 | F157: -53.88
A158: E1006601S725010022200070000200001 | B158: SgK330------11 | C158: 27449 | E158: 28.74 | F158: 7888.84
A159: E1006601S725010022200070000200001 | B159: SgK331------11 | C159: 48886 | E159: 27.33 | F159: 13360.54
A160: E1006001S725010021800030363100001 | B160: SgK330------11 | C160: 2241 | E160: 28.74 | F160: 644.06
A161: E1006601S725010023100060000200001 | B161: SgK330------11 | C161: 26450 | E161: 28.74 | F161: 7601.73
A162: E1006601S725010023100060000200001 | B162: SgK331------11 | C162: 317 | E162: 27.33 | F162: 86.64
A163: E1006601S725010041500070290100001 | B163: SgK330------11 | C163: 11396 | E163: 28.74 | F163: 3275.21
A164: E1006601S725010040900790278200001 | B164: SgK330------11 | C164: 22540 | E164: 28.74 | F164: 6478
A165: E1006001S725010023700050000100001 | B165: SgK330------11 | C165: 11084 | E165: 28.74 | F165: 3185.54
A166: E1006601S725010041600020296200001 | B166: SgK330------11 | C166: 22905 | E166: 28.74 | F166: 6582.9
A167: E1006601S725010041550050291400001 | B167: SgK330------11 | C167: 9964 | E167: 28.74 | F167: 2863.65
A168: E1006601S725010021800080100600001 | B168: SgK330------11 | C168: 7767 | E168: 28.74 | F168: 2232.24
A169: E1006601S725010022400110111500001 | B169: SgK330------11 | C169: 15006 | E169: 28.74 | F169: 4312.72
A170: E1006001S725010020900150082800001 | B170: SgK330------11 | C170: 18601 | E170: 28.74 | F170: 5345.93
A171: E1006001S725010022700070120500001 | B171: SgK330------11 | C171: 9005 | E171: 28.74 | F171: 2588.04
A172: E1006001S725010030500030171800001 | B172: SgK330------11 | C172: 6084 | E172: 28.74 | F172: 1748.54
A173: E1006001S725010042700120319600001 | B173: SgK330------11 | C173: 10386 | E173: 28.74 | F173: 2984.94
A174: E1006001S725010024200060000200001 | B174: SgK330------11 | C174: 8329 | E174: 28.74 | F174: 2393.75
A175: E1006001S725010011300060051900001 | B175: SgK330------11 | C175: 14894 | E175: 28.74 | F175: 4280.54
A176: E1006001S725010020800080076100001 | B176: SgK330------11 | C176: 10497 | E176: 28.74 | F176: 3016.84
A177: E1006001S725010022100190108200001 | B177: SgK330------11 | C177: 2962 | E177: 28.74 | F177: 851.28
A178: E1006001S725010022100190108200001 | B178: SgK33410----11 | C178: 1767 | E178: 28.74 | F178: 507.84
A179: E1006001S725010022100190108200001 | B179: SgK33420----11 | C179: -1419 | E179: 16.38 | F179: -232.43
A180: E1006001S725010022100190108200001 | B180: SgK33430----11 | C180: -348 | E180: 12 | F180: -41.76
A181: E1006001S725010020800250079200001 | B181: SgK330------11 | C181: 5817 | E181: 28.74 | F181: 1671.81
A182: E1006001S725010021000130084900001 | B182: SgK330------11 | C182: 12171 | E182: 28.74 | F182: 3497.95
A183: E1006001S725010023100050135800001 | B183: SgK330------11 | C183: 28113 | E183: 28.74 | F183: 8079.68
A184: E1006001S725010031000010186300001 | B184: SgK330------11 | C184: 3922 | E184: 28.74 | F184: 1127.18
A185: E1006001S725010022900020366400001 | B185: SgK330------11 | C185: 10225 | E185: 28.74 | F185: 2938.66
A186: E1006001S725010022900060130300001 | B186: SgK330------11 | C186: 25926 | E186: 28.74 | F186: 7451.13
A187: E1006001S725010041700040299200001 | B187: SgK330------11 | C187: 8065 | E187: 28.74 | F187: 2317.88
A188: E1006001S725010042000120000500001 | B188: SgK330------12 | C188: 5684 | E188: 24.43 | F188: 1388.6
A189: E1006001S725010042000120000500001 | B189: SgK33410----12 | C189: 2751 | E189: 24.43 | F189: 672.07
A190: E1006001S725010042000120000500001 | B190: SgK33420----12 | C190: -2531 | E190: 16.38 | F190: -414.58
A191: E1006001S725010042000120000500001 | B191: SgK33430----12 | C191: -220 | E191: 12 | F191: -26.4
A192: E1006001S725010042900070417700001 | B192: SgK330------12 | C192: 7807 | E192: 24.43 | F192: 1907.25
A193: E1006001S725010021200090088700001 | B193: SgK330------12 | C193: 3638 | E193: 24.43 | F193: 888.76
A194: E1006001S725010021200090088700001 | B194: SgK33410----12 | C194: 727 | E194: 24.43 | F194: 177.61
A195: E1006001S725010021200090088700001 | B195: SgK33420----12 | C195: -727 | E195: 16.38 | F195: -119.08
A196: E1006001S725010031400040202900001 | B196: SgK330------12 | C196: 8197 | E196: 24.43 | F196: 2002.53
A197: E1006001S725010031400040202900001 | B197: SgK33410----12 | C197: 1122 | E197: 24.43 | F197: 274.1
A198: E1006001S725010031400040202900001 | B198: SgK33420----12 | C198: -1122 | E198: 16.38 | F198: -183.78
A199: E1006001S725010042700210000300001 | B199: SgK330------12 | C199: 10561 | E199: 24.43 | F199: 2580.05
A200: E1006001S725010042700210000300001 | B200: SgK33410----12 | C200: 1868 | E200: 24.43 | F200: 456.35
A201: E1006001S725010042700210000300001 | B201: SgK33420----12 | C201: -1868 | E201: 16.38 | F201: -305.98
A202: E1006001S725010023800070149100001 | B202: SgK330------12 | C202: 7056 | E202: 24.43 | F202: 1723.78
... 23 more rows

Sheet Preisblätter-vNE
D1: =Deckblatt!H1 -> 03.03.2014
A3: Netzbetreiber : | B3: =Deckblatt!C11 -> Gammertinger Energie- und Wasserversorgung GmbH
B5: Name des Netzgebiets bzw. gültiger Zeitraum des Preisblatts*
A6: Preisblatt 1 | B6: Gammertinger Energie- und Wasserversorgung GmbH gültig ab 01.01.2013 | E6: *Sofern Sie im Jahr 2013 mehrere gültige Preisblätter hatten (aufgrund von unterjährigen Anpassungen, bzw. mehreren Netzgebieten), sind die vermiedenen Netzentgelte für die unterschiedlichen Zeiträume bzw. Netzgebiete separat auszuweisen. Bei einer unterjährigen Anpassung Ihres Preisblattes sind die betroffenen Anlagen im Tabellenblatt "vNE" pro Zeitraum einmal aufzuführen und Vermeidungsarbeit und Vermeidungsleistung sinnvoll (entsprechend der von Ihnen vorgegebenen Berechnung der vNE) zu verteilen.
A7: Preisblatt 2 | B7: EnBW gültig ab 01.01.2013
A8: Preisblatt 3
A10: Preisblatt 1 | B10: Arbeitspreis** [ct/kWh] | C10: Leistungspreis** [€/kW*a] | D10: Anmerkungen | E10: **Preise gemäß Preisblatt für das Jahr 2013. Die für Ihr Netz vorgelagerten Netzebenen ist der Preis aus dem Preisblatt des vorgelagerten Netzbetreibers einzutragen. Die Preisblätter (auch das des vorgelagerten Netzbetreibers) sind uns zusammen mit der Jahresmeldung bis spätestens zum 30.04.2014 per E-Mail zuzusenden. Für den Fall, dass für die Berechnung der vNE nicht die direkt überlagerte Spannungsebene verwendet wurde, ist der verwendete Wert in die entsprechende Zeile der direkt überlagerten Ebene einzutragen - auch wenn der Preis im Preisblatt für eine höhere Ebene gilt. Dies ist entsprechend im Feld "Anmerkungen" kenntlich zu machen. Sofern es zu einer Rückspeisung in eine oder mehrere überlagerte Spannungsebenen gekommen ist und sich dadurch Auswirkungen auf die Berechnung der vermiedenen Netzentgelte einer Spannungsebene ergeben, ist dies ebenfalls im Feld "Anmerkungen" mitzuteilen.
A11: Spannungsebene: HöS
A12: Spannungsebene: Hös/HS
A13: Spannungsebene: HS
A14: Spannungsebene: HS/MS
A15: Spannungsebene: MS | B15: 0.58 | C15: 52.16
A16: Spannungsebene: MS/NS | B16: 0.66 | C16: 75.8
A17: Spannungsebene: NS | B17: 1.37 | C17: 69.76
A20: Preisblatt 2 | E20: **Preise gemäß Preisblatt für das Jahr 2013. Die für Ihr Netz vorgelagerten Netzebenen ist der Preis aus dem Preisblatt des vorgelagerten Netzbetreibers einzutragen. Die Preisblätter (auch das des vorgelagerten Netzbetreibers) sind uns zusammen mit der Jahresmeldung bis spätestens zum 30.04.2014 per E-Mail zuzusenden. Für den Fall, dass für die Berechnung der vNE nicht die direkt überlagerte Spannungsebene verwendet wurde, ist der verwendete Wert in die entsprechende Zeile der direkt überlagerten Ebene einzutragen - auch wenn der Preis im Preisblatt für eine höhere Ebene gilt. Dies ist entsprechend im Feld "Anmerkungen" kenntlich zu machen. Sofern es zu einer Rückspeisung in eine oder mehrere überlagerte Spannungsebenen gekommen ist und sich dadurch Auswirkungen auf die Berechnung der vermiedenen Netzentgelte einer Spannungsebene ergeben, ist dies ebenfalls im Feld "Anmerkungen" mitzuteilen.
A21: Spannungsebene: HöS
A22: Spannungsebene: Hös/HS
A23: Spannungsebene: HS
A24: Spannungsebene: HS/MS | B24: 0.46 | C24: 59.16 | D24: doppelte Mittelspannung § 14
A25: Spannungsebene: MS
A26: Spannungsebene: MS/NS
A27: Spannungsebene: NS
A30: Preisblatt 3 | E30: **Preise gemäß Preisblatt für das Jahr 2013. Die für Ihr Netz vorgelagerten Netzebenen ist der Preis aus dem Preisblatt des vorgelagerten Netzbetreibers einzutragen. Die Preisblätter (auch das des vorgelagerten Netzbetreibers) sind uns zusammen mit der Jahresmeldung bis spätestens zum 30.04.2014 per E-Mail zuzusenden. Für den Fall, dass für die Berechnung der vNE nicht die direkt überlagerte Spannungsebene verwendet wurde, ist der verwendete Wert in die entsprechende Zeile der direkt überlagerten Ebene einzutragen - auch wenn der Preis im Preisblatt für eine höhere Ebene gilt. Dies ist entsprechend im Feld "Anmerkungen" kenntlich zu machen. Sofern es zu einer Rückspeisung in eine oder mehrere überlagerte Spannungsebenen gekommen ist und sich dadurch Auswirkungen auf die Berechnung der vermiedenen Netzentgelte einer Spannungsebene ergeben, ist dies ebenfalls im Feld "Anmerkungen" mitzuteilen.
A31: Spannungsebene: HöS
A32: Spannungsebene: Hös/HS
A33: Spannungsebene: HS
A34: Spannungsebene: HS/MS
A35: Spannungsebene: MS
A36: Spannungsebene: MS/NS
A37: Spannungsebene: NS

Sheet vNE
G1: =Deckblatt!H1 -> 03.03.2014
A3: Netzbetreiber : | B3: =Deckblatt!C11 -> Gammertinger Energie- und Wasserversorgung GmbH
A5: Anlagenschlüssel | B5: vNE-Kategorie | C5: Für Angabe gültiges Preisblatt entsprechend Tabellenblatt "Preisblätter vNE" | D5: Leistungsanteil an den vNE* [€] | E5: Arbeitsanteil an den vNE [€] | F5: Anmerkungen | G5: berechnete vNE gesamt [€]
A6: E1006601W725010011300060051800001 | B6: Wa-vNNe--SpE07 | C6: Preisblatt 1 | E6: 1206.22 | G6: 1206.22
A7: E1006601S725010041700070299700001 | B7: So-vNNe--SpE07 | C7: Preisblatt 1 | E7: 12.41 | G7: 12.41
A8: E1006601S725010022600030114300001 | B8: So-vNNe--SpE07 | C8: Preisblatt 1 | E8: 11.27 | G8: 11.27
A9: E1006601S725010022600080345200001 | B9: So-vNNe--SpE07 | C9: Preisblatt 1 | E9: 9.54 | G9: 9.54
A10: E1006601S725010042100140358500001 | B10: So-vNNe--SpE07 | C10: Preisblatt 1 | E10: 42.83 | G10: 42.83
A11: E1006601S725010021200160359400001 | B11: So-vNNe--SpE07 | C11: Preisblatt 1 | E11: 4.01 | G11: 4.01
A12: E1006601S725010022900020366200001 | B12: So-vNNe--SpE07 | C12: Preisblatt 1 | E12: 50.77 | G12: 50.77
A13: E1006601S725010021800030363100001 | B13: So-vNNe--SpE07 | C13: Preisblatt 1 | E13: 13.11 | G13: 13.11
A14: E1006601S725010042900010368900001 | B14: So-vNNe--SpE07 | C14: Preisblatt 1 | E14: 24.41 | G14: 24.41
A15: E1006601S725010041700010385300001 | B15: So-vNNe--SpE07 | C15: Preisblatt 1 | E15: 11.64 | G15: 11.64
A16: E1006601S725010011100020387200001 | B16: So-vNNe--SpE07 | C16: Preisblatt 1 | E16: 13.25 | G16: 13.25
A17: E1006601S725010030600180404000001 | B17: So-vNNe--SpE07 | C17: Preisblatt 1 | E17: 16.57 | G17: 16.57
A18: E1006601S725010041550110404700001 | B18: So-vNNe--SpE07 | C18: Preisblatt 1 | E18: 18.31 | G18: 18.31
A19: E1006601S725010010200100409400001 | B19: So-vNNe--SpE07 | C19: Preisblatt 1 | E19: 16.89 | G19: 16.89
A20: E1006601S725010023600110409900001 | B20: So-vNNe--SpE07 | C20: Preisblatt 1 | E20: 18.47 | G20: 18.47
A21: E1006601S725010041550340418800001 | B21: So-vNNe--SpE07 | C21: Preisblatt 1 | E21: 10.69 | G21: 10.69
A22: E1006601S725010024300090410600001 | B22: So-vNNe--SpE07 | C22: Preisblatt 1 | E22: 9.46 | G22: 9.46
A23: E1006601S725010031700030232100001 | B23: So-vNNe--SpE07 | C23: Preisblatt 1 | E23: 19.99 | G23: 19.99
A24: E1006601S725010022800060127000001 | B24: So-vNNe--SpE07 | C24: Preisblatt 1 | E24: 34.92 | G24: 34.92
A25: E1006601S725010041700050299200001 | B25: So-vNNe--SpE07 | C25: Preisblatt 1 | E25: 55.43 | G25: 55.43
A26: E1006601S725010040900570274700001 | B26: So-vNNe--SpE07 | C26: Preisblatt 1 | E26: 37.28 | G26: 37.28
A27: E1006601S725010022600060114900001 | B27: So-vNNe--SpE07 | C27: Preisblatt 1 | E27: 19.93 | G27: 19.93
A28: E1006601S725010010800230000100001 | B28: So-vNNe--SpE07 | C28: Preisblatt 1 | E28: 5.48 | G28: 5.48
A29: E1006601S725010010800250000100001 | B29: So-vNNe--SpE07 | C29: Preisblatt 1 | E29: 4.28 | G29: 4.28
A30: E1006601S725010022900020366300001 | B30: So-vNNe--SpE07 | C30: Preisblatt 1 | E30: 13.24 | G30: 13.24
A31: E1006601S725010022800060127100001 | B31: So-vNNe--SpE07 | C31: Preisblatt 1 | E31: 11.77 | G31: 11.77
A32: E1006601S725010011100020387200002 | B32: So-vNNe--SpE07 | C32: Preisblatt 1 | E32: 13.25 | G32: 13.25
A33: E1006601S725010023500260144800001 | B33: So-vNNe--SpE07 | C33: Preisblatt 1 | E33: 37.2 | G33: 37.2
A34: E1006601S725010042500140317800001 | B34: So-vNNe--SpE07 | C34: Preisblatt 1 | E34: 37.13 | G34: 37.13
A35: E1006601S725010022000130104700001 | B35: So-vNNe--SpE07 | C35: Preisblatt 1 | E35: 36.52 | G35: 36.52
A36: E1006601S725010022600170117100001 | B36: So-vNNe--SpE07 | C36: Preisblatt 1 | E36: 24.84 | G36: 24.84
A37: E1006601S725010030500190175400001 | B37: So-vNNe--SpE07 | C37: Preisblatt 1 | E37: 25.17 | G37: 25.17
A38: E1006601S725010040900570274800001 | B38: So-vNNe--SpE07 | C38: Preisblatt 1 | E38: 37.18 | G38: 37.18
A39: E1006601S725010020300100064100001 | B39: So-vNNe--SpE07 | C39: Preisblatt 1 | E39: 29.28 | G39: 29.28
A40: E1006601S725010031500090210600001 | B40: So-vNNe--SpE07 | C40: Preisblatt 1 | E40: 24.57 | G40: 24.57
A41: E1006601S725010021100100086100001 | B41: So-vNNe--SpE07 | C41: Preisblatt 1 | E41: 38.37 | G41: 38.37
A42: E1006601S725010041550080291800001 | B42: So-vNNe--SpE07 | C42: Preisblatt 1 | E42: 70.04 | G42: 70.04
A43: E1006601S725010021300340093200001 | B43: So-vNNe--SpE07 | C43: Preisblatt 1 | E43: 33.83 | G43: 33.83
A44: E1006601S725010041550150292800001 | B44: So-vNNe--SpE07 | C44: Preisblatt 1 | E44: 33.84 | G44: 33.84
A45: E1006601S725010040900730277100001 | B45: So-vNNe--SpE07 | C45: Preisblatt 1 | E45: 4.57 | G45: 4.57
A46: E1006601S725010020200110058700001 | B46: So-vNNe--SpE07 | C46: Preisblatt 1 | E46: 53.06 | G46: 53.06
A47: E1006601S725010030800020183300001 | B47: So-vNNe--SpE07 | C47: Preisblatt 1 | E47: 44.78 | G47: 44.78
A48: E1006601S725010010100250003300001 | B48: So-vNNe--SpE07 | C48: Preisblatt 1 | E48: 29.37 | G48: 29.37
A49: E1006601S725010030100220153900001 | B49: So-vNNe--SpE07 | C49: Preisblatt 1 | E49: 59.27 | G49: 59.27
A50: E1006601S725010040900570274900001 | B50: So-vNNe--SpE07 | C50: Preisblatt 1 | E50: 66.77 | G50: 66.77
A51: E1006601S725010023500090141700001 | B51: So-vNNe--SpE07 | C51: Preisblatt 1 | E51: 50.83 | G51: 50.83
A52: E1006601S725010020300150064900001 | B52: So-vNNe--SpE07 | C52: Preisblatt 1 | E52: 82.2 | G52: 82.2
A53: E1006601S725010030500050172100001 | B53: So-vNNe--SpE07 | C53: Preisblatt 1 | E53: 56.2 | G53: 56.2
A54: E1006601S725010042900080389800001 | B54: So-vNNe--SpE07 | C54: Preisblatt 1 | E54: 27.96 | G54: 27.96
A55: E1006601S725010023000010000100001 | B55: So-vNNe--SpE07 | C55: Preisblatt 1 | E55: 166.68 | G55: 166.68
A56: E1006601S725010040800060251400001 | B56: So-vNNe--SpE07 | C56: Preisblatt 1 | E56: 150.4 | G56: 150.4
A57: E1006601S725010022600080345200002 | B57: So-vNNe--SpE07 | C57: Preisblatt 1 | E57: 9.93 | G57: 9.93
A58: E1006601S725010024300020416100001 | B58: So-vNNe--SpE07 | C58: Preisblatt 1 | E58: 34.62 | G58: 34.62
A59: E1006601S725010024000060151300001 | B59: So-vNNe--SpE07 | C59: Preisblatt 1 | E59: 62.22 | G59: 62.22
A60: E1006601S725010023100080400000001 | B60: So-vNNe--SpE07 | C60: Preisblatt 1 | E60: 192.57 | G60: 192.57
A61: E1006601S725010024600020000200001 | B61: So-vNNe--SpE07 | C61: Preisblatt 1 | E61: 163.07 | G61: 163.07
A62: E1006601S725010020200090058500001 | B62: So-vNNe--SpE07 | C62: Preisblatt 1 | E62: 46.15 | G62: 46.15
A63: E1006601S725010021800050010400001 | B63: So-vNNe--SpE07 | C63: Preisblatt 1 | E63: 35.71 | G63: 35.71
A64: E1006601S725010021200050000200001 | B64: So-vNNe--SpE07 | C64: Preisblatt 1 | E64: 43.3 | G64: 43.3
A65: E1006601S725010020400030000200001 | B65: So-vNNe--SpE07 | C65: Preisblatt 1 | E65: 318.33 | G65: 318.33
A66: E1006601S725010030600090000900001 | B66: So-vNNe--SpE07 | C66: Preisblatt 1 | E66: 81.51 | G66: 81.51
A67: E1006601S725010022100180108000001 | B67: So-vNNe--SpE07 | C67: Preisblatt 1 | E67: 43.02 | G67: 43.02
A68: E1006601S725010040300050244300001 | B68: So-vNNe--SpE07 | C68: Preisblatt 1 | E68: 42.42 | G68: 42.42
A69: E1006601S725010023900050149600001 | B69: So-vNNe--SpE07 | C69: Preisblatt 1 | E69: 51.96 | G69: 51.96
A70: E1006601S725010021300100000100001 | B70: So-vNNe--SpE07 | C70: Preisblatt 1 | E70: 56.71 | G70: 56.71
A71: E1006601S725010031100040188200001 | B71: So-vNNe--SpE07 | C71: Preisblatt 1 | E71: 39.18 | G71: 39.18
A72: E1006601S725010040900790278000001 | B72: So-vNNe--SpE07 | C72: Preisblatt 1 | E72: 156.86 | G72: 156.86
A73: E1006601S725010030500220176000001 | B73: So-vNNe--SpE07 | C73: Preisblatt 1 | E73: 43.53 | G73: 43.53
A74: E1006601S725010024200080000300001 | B74: So-vNNe--SpE07 | C74: Preisblatt 1 | E74: 42.11 | G74: 42.11
A75: E1006601S725010030600030176600001 | B75: Sg-vNNe--SpE07 | C75: Preisblatt 1 | E75: 45.41 | G75: 45.41
A76: E1006601S725010041550070291700001 | B76: Sg-vNNe--SpE07 | C76: Preisblatt 1 | E76: 85.17 | G76: 85.17
A77: E1006601S725010041550350294900001 | B77: Sg-vNNe--SpE07 | C77: Preisblatt 1 | E77: 65.18 | G77: 65.18
A78: E1006601S725010020400050151200001 | B78: Sg-vNNe--SpE07 | C78: Preisblatt 1 | E78: 53.83 | G78: 53.83
A79: E1006601S725010031500110211100001 | B79: Sg-vNNe--SpE07 | C79: Preisblatt 1 | E79: 37.03 | G79: 37.03
A80: E1006601S725010023500280144900001 | B80: Sg-vNNe--SpE07 | C80: Preisblatt 1 | E80: 70.4 | G80: 70.4
A81: E1006601S725010042700170342900001 | B81: Sg-vNNe--SpE07 | C81: Preisblatt 1 | E81: 49.02 | G81: 49.02
A82: E1006601S725010042000050346400001 | B82: Sg-vNNe--SpE07 | C82: Preisblatt 1 | E82: 41.58 | G82: 41.58
A83: E1006601S725010030400070167100001 | B83: Sg-vNNe--SpE07 | C83: Preisblatt 1 | E83: 33.27 | G83: 33.27
A84: E1006601S725010041550040291300001 | B84: Sg-vNNe--SpE07 | C84: Preisblatt 1 | E84: 55.54 | G84: 55.54
A85: E1006601S725010022800170128600001 | B85: Sg-vNNe--SpE07 | C85: Preisblatt 1 | E85: 35.8 | G85: 35.8
A86: E1006601S725010022900030129800001 | B86: Sg-vNNe--SpE07 | C86: Preisblatt 1 | E86: 30.47 | G86: 30.47
A87: E1006601S725010022900030129700001 | B87: Sg-vNNe--SpE07 | C87: Preisblatt 1 | E87: 29.81 | G87: 29.81
A88: E1006601S725010022700310125400001 | B88: Sg-vNNe--SpE07 | C88: Preisblatt 1 | E88: 36.31 | G88: 36.31
A89: E1006601S725010031100040188300001 | B89: Sg-vNNe--SpE07 | C89: Preisblatt 1 | E89: 27.65 | G89: 27.65
A90: E1006601S725010021200030087200001 | B90: Sg-vNNe--SpE07 | C90: Preisblatt 1 | E90: 69.24 | G90: 69.24
A91: E1006601S725010041400050289000001 | B91: Sg-vNNe--SpE07 | C91: Preisblatt 1 | E91: 88.62 | G91: 88.62
A92: E1006601S725010041600060296800001 | B92: Sg-vNNe--SpE07 | C92: Preisblatt 1 | E92: 64.22 | G92: 64.22
A93: E1006601S725010041600040298200001 | B93: Sg-vNNe--SpE07 | C93: Preisblatt 1 | E93: 189.99 | G93: 189.99
A94: E1006601S725010022400060111700001 | B94: Sg-vNNe--SpE07 | C94: Preisblatt 1 | E94: 83.6 | G94: 83.6
A95: E1006601S725010040900420000700001 | B95: Sg-vNNe--SpE07 | C95: Preisblatt 1 | E95: 298.87 | G95: 298.87
A96: E1006601S725010020300100064200001 | B96: Sg-vNNe--SpE07 | C96: Preisblatt 1 | E96: 45.89 | G96: 45.89
A97: E1006601S725010030800060184200001 | B97: Sg-vNNe--SpE07 | C97: Preisblatt 1 | E97: 16.44 | G97: 16.44
A98: E1006601S725010023600210146900001 | B98: Sg-vNNe--SpE07 | C98: Preisblatt 1 | E98: 103.92 | G98: 103.92
A99: E1006601S725010030500010171400001 | B99: Sg-vNNe--SpE07 | C99: Preisblatt 1 | E99: 36.68 | G99: 36.68
A100: E1006601S725010040900440272500001 | B100: Sg-vNNe--SpE07 | C100: Preisblatt 1 | E100: 419.66 | G100: 419.66
A101: E1006601S725010030500010171500001 | B101: Sg-vNNe--SpE07 | C101: Preisblatt 1 | E101: 36.96 | G101: 36.96
A102: E1006601S725010023100140403100001 | B102: Sg-vNNe--SpE07 | C102: Preisblatt 1 | E102: 181.18 | G102: 181.18
A103: E1006601S725010022300070110200001 | B103: Sg-vNNe--SpE07 | C103: Preisblatt 1 | E103: 74.88 | G103: 74.88
A104: E1006601S725010022700240358500001 | B104: Sg-vNNe--SpE07 | C104: Preisblatt 1 | E104: 62.63 | G104: 62.63
A105: E1006601S725010023100090405700001 | B105: Sg-vNNe--SpE07 | C105: Preisblatt 1 | E105: 75.13 | G105: 75.13
A106: E1006601S725010042900080389900001 | B106: Sg-vNNe--SpE07 | C106: Preisblatt 1 | E106: 21.38 | G106: 21.38
A107: E1006601S725010040900790278100001 | B107: Sg-vNNe--SpE07 | C107: Preisblatt 1 | E107: 62.3 | G107: 62.3
A108: E1006601S725010031600100215500001 | B108: Sg-vNNe--SpE07 | C108: Preisblatt 1 | E108: 49.04 | G108: 49.04
A109: E1006601S725010041550450295600001 | B109: Sg-vNNe--SpE07 | C109: Preisblatt 1 | E109: 60.26 | G109: 60.26
A110: E1006601S725010031550090197300001 | B110: Sg-vNNe--SpE07 | C110: Preisblatt 1 | E110: 85.49 | G110: 85.49
A111: E1006601S725010041200040282000001 | B111: Sg-vNNe--SpE07 | C111: Preisblatt 1 | E111: 153 | G111: 153
A112: E1006601S725010020300150065000001 | B112: Sg-vNNe--SpE07 | C112: Preisblatt 1 | E112: 114.17 | G112: 114.17
A113: E1006601S725010020300150065100001 | B113: Sg-vNNe--SpE07 | C113: Preisblatt 1 | E113: 49.51 | G113: 49.51
A114: E1006601S725010020800130076900001 | B114: Sg-vNNe--SpE07 | C114: Preisblatt 1 | E114: 147.91 | G114: 147.91
A115: E1006601S725010040200060000100001 | B115: Sg-vNNe--SpE07 | C115: Preisblatt 1 | E115: 62.03 | G115: 62.03
A116: E1006601S725010023700030147700001 | B116: Sg-vNNe--SpE07 | C116: Preisblatt 1 | E116: 67.35 | G116: 67.35
A117: E1006601S725010020200150059000001 | B117: Sg-vNNe--SpE07 | C117: Preisblatt 1 | E117: 38.13 | G117: 38.13
A118: E1006601S725010041550190293300001 | B118: Sg-vNNe--SpE07 | C118: Preisblatt 1 | E118: 58.26 | G118: 58.26
A119: E1006601S725010041600040298300001 | B119: Sg-vNNe--SpE07 | C119: Preisblatt 1 | E119: 65.59 | G119: 65.59
A120: E1006601S725010023500140143000001 | B120: Sg-vNNe--SpE07 | C120: Preisblatt 1 | E120: 87.6 | G120: 87.6
A121: E1006601S725010023100220000100001 | B121: Sg-vNNe--SpE07 | C121: Preisblatt 1 | D121: 496.47 | E121: 610.22 | G121: 1106.69
A122: E1006601S725010020350020000200001 | B122: Sg-vNNe--SpE07 | C122: Preisblatt 1 | D122: 503.94 | E122: 665 | G122: 1168.94
A123: E1006601S725010020350100065300001 | B123: Sg-vNNe--SpE07 | C123: Preisblatt 1 | D123: 0 | E123: 377.83 | G123: 377.83
A124: E1006601S725010042500100317400001 | B124: Sg-vNNe--SpE07 | C124: Preisblatt 1 | E124: 68.3 | G124: 68.3
A125: E1006601S725010021100030085200001 | B125: Sg-vNNe--SpE07 | C125: Preisblatt 1 | E125: 47.24 | G125: 47.24
A126: E1006601S725010031600060215000001 | B126: Sg-vNNe--SpE07 | C126: Preisblatt 1 | E126: 57.04 | G126: 57.04
A127: E1006601S725010041550140292700001 | B127: Sg-vNNe--SpE07 | C127: Preisblatt 1 | E127: 93.87 | G127: 93.87
A128: E1006601S725010024000060151400001 | B128: Sg-vNNe--SpE07 | C128: Preisblatt 1 | E128: 38.79 | G128: 38.79
A129: E1006601S725010010100080000100001 | B129: Sg-vNNe--SpE07 | C129: Preisblatt 1 | E129: 21.44 | G129: 21.44
A130: E1006601S725010030300210163900001 | B130: Sg-vNNe--SpE07 | C130: Preisblatt 1 | E130: 58.32 | G130: 58.32
A131: E1006601S725010030400080167200001 | B131: Sg-vNNe--SpE07 | C131: Preisblatt 1 | E131: 47.16 | G131: 47.16
A132: E1006601S725010022200080109300001 | B132: Sg-vNNe--SpE07 | C132: Preisblatt 1 | E132: 65.95 | G132: 65.95
A133: E1006601S725010031100250191100001 | B133: Sg-vNNe--SpE07 | C133: Preisblatt 1 | E133: 35.49 | G133: 35.49
A134: E1006601S725010041700160300700001 | B134: Sg-vNNe--SpE07 | C134: Preisblatt 1 | E134: 22.53 | G134: 22.53
A135: E1006601S725010040600020250000001 | B135: Sg-vNNe--SpE07 | C135: Preisblatt 1 | D135: 0 | E135: 508.99 | G135: 508.99
A136: E1006601S725010022000070104000001 | B136: Sg-vNNe--SpE07 | C136: Preisblatt 1 | E136: 25.13 | G136: 25.13
A137: E1006601S725010023100220000300001 | B137: Sg-vNNe--SpE07 | C137: Preisblatt 1 | D137: 2311.31 | E137: 3012.24 | G137: 5323.55
A138: E1006601S725010042000110307200001 | B138: Sg-vNNe--SpE07 | C138: Preisblatt 1 | E138: 51.37 | G138: 51.37
A139: E1006601S725010022600290118700001 | B139: Sg-vNNe--SpE07 | C139: Preisblatt 1 | E139: 15.34 | G139: 15.34
A140: E1006601S725010022200070000200001 | B140: Sg-vNNe--SpE05 | C140: Preisblatt 2 | D140: 0 | E140: 351.14 | G140: 351.14
A141: E1006001S725010021800030363100001 | B141: Sg-vNNe--SpE07 | C141: Preisblatt 1 | E141: 14.79 | G141: 14.79
A142: E1006601S725010023100060000200001 | B142: Sg-vNNe--SpE07 | C142: Preisblatt 1 | E142: 176.66 | G142: 176.66
A143: E1006601S725010041500070290100001 | B143: Sg-vNNe--SpE07 | C143: Preisblatt 1 | E143: 75.21 | G143: 75.21
A144: E1006601S725010040900790278200001 | B144: Sg-vNNe--SpE07 | C144: Preisblatt 1 | E144: 148.76 | G144: 148.76
A145: E1006001S725010023700050000100001 | B145: Sg-vNNe--SpE07 | C145: Preisblatt 1 | E145: 73.15 | G145: 73.15
A146: E1006601S725010041600020296200001 | B146: Sg-vNNe--SpE07 | C146: Preisblatt 1 | E146: 151.17 | G146: 151.17
A147: E1006601S725010041550050291400001 | B147: Sg-vNNe--SpE07 | C147: Preisblatt 1 | E147: 65.76 | G147: 65.76
A148: E1006601S725010021800080100600001 | B148: Sg-vNNe--SpE07 | C148: Preisblatt 1 | E148: 51.26 | G148: 51.26
A149: E1006601S725010022400110111500001 | B149: Sg-vNNe--SpE07 | C149: Preisblatt 1 | E149: 99.04 | G149: 99.04
A150: E1006001S725010020900150082800001 | B150: Sg-vNNe--SpE07 | C150: Preisblatt 1 | E150: 122.77 | G150: 122.77
A151: E1006001S725010022700070120500001 | B151: Sg-vNNe--SpE07 | C151: Preisblatt 1 | E151: 59.43 | G151: 59.43
A152: E1006001S725010030500030171800001 | B152: Sg-vNNe--SpE07 | C152: Preisblatt 1 | E152: 40.15 | G152: 40.15
A153: E1006001S725010042700120319600001 | B153: Sg-vNNe--SpE07 | C153: Preisblatt 1 | E153: 68.55 | G153: 68.55
A154: E1006001S725010024200060000200001 | B154: Sg-vNNe--SpE07 | C154: Preisblatt 1 | E154: 54.97 | G154: 54.97
A155: E1006001S725010011300060051900001 | B155: Sg-vNNe--SpE07 | C155: Preisblatt 1 | E155: 98.3 | G155: 98.3
A156: E1006001S725010020800080076100001 | B156: Sg-vNNe--SpE07 | C156: Preisblatt 1 | E156: 69.28 | G156: 69.28
A157: E1006001S725010022100190108200001 | B157: Sg-vNNe--SpE07 | C157: Preisblatt 1 | E157: 19.55 | G157: 19.55
A158: E1006001S725010020800250079200001 | B158: Sg-vNNe--SpE07 | C158: Preisblatt 1 | E158: 38.39 | G158: 38.39
A159: E1006001S725010021000130084900001 | B159: Sg-vNNe--SpE07 | C159: Preisblatt 1 | E159: 80.33 | G159: 80.33
A160: E1006001S725010023100050135800001 | B160: Sg-vNNe--SpE07 | C160: Preisblatt 1 | E160: 185.55 | G160: 185.55
A161: E1006001S725010031000010186300001 | B161: Sg-vNNe--SpE07 | C161: Preisblatt 1 | E161: 25.89 | G161: 25.89
A162: E1006001S725010022900020366400001 | B162: Sg-vNNe--SpE07 | C162: Preisblatt 1 | E162: 67.48 | G162: 67.48
A163: E1006001S725010022900060130300001 | B163: Sg-vNNe--SpE07 | C163: Preisblatt 1 | E163: 171.11 | G163: 171.11
A164: E1006001S725010041700040299200001 | B164: Sg-vNNe--SpE07 | C164: Preisblatt 1 | E164: 53.23 | G164: 53.23
A165: E1006001S725010042000120000500001 | B165: Sg-vNNe--SpE07 | C165: Preisblatt 1 | E165: 37.51 | G165: 37.51
A166: E1006001S725010042900070417700001 | B166: Sg-vNNe--SpE07 | C166: Preisblatt 1 | E166: 51.53 | G166: 51.53
A167: E1006001S725010021200090088700001 | B167: Sg-vNNe--SpE07 | C167: Preisblatt 1 | E167: 24.01 | G167: 24.01
A168: E1006001S725010031400040202900001 | B168: Sg-vNNe--SpE07 | C168: Preisblatt 1 | E168: 54.1 | G168: 54.1
A169: E1006001S725010042700210000300001 | B169: Sg-vNNe--SpE07 | C169: Preisblatt 1 | E169: 69.7 | G169: 69.7
A170: E1006001S725010023800070149100001 | B170: Sg-vNNe--SpE07 | C170: Preisblatt 1 | E170: 46.57 | G170: 46.57
A171: E1006001S725010042100200312600001 | B171: Sg-vNNe--SpE07 | C171: Preisblatt 1 | E171: 28.25 | G171: 28.25
A172: E1006001S725010042200060314100001 | B172: Sg-vNNe--SpE07 | C172: Preisblatt 1 | E172: 21.6 | G172: 21.6
A173: E1006001S725010022100220000200001 | B173: Sg-vNNe--SpE07 | C173: Preisblatt 1 | E173: 37.04 | G173: 37.04
A174: E1006001S725010023500240144600001 | B174: Sg-vNNe--SpE07 | C174: Preisblatt 1 | E174: 64.32 | G174: 64.32
A175: E1006001S725010020400040065800001 | B175: Sg-vNNe--SpE07 | C175: Preisblatt 1 | E175: 53.32 | G175: 53.32
A176: E1006001S725010022700190122600001 | B176: Sg-vNNe--SpE07 | C176: Preisblatt 1 | E176: 15.6 | G176: 15.6
A177: E1006001S725010023600110410000001 | B177: Sg-vNNe--SpE07 | C177: Preisblatt 1 | E177: 7.56 | G177: 7.56
A178: E1006001S725010020600130072200001 | B178: Sg-vNNe--SpE07 | C178: Preisblatt 1 | E178: 46.45 | G178: 46.45
A179: E1006001S725010021300320093100001 | B179: Sg-vNNe--SpE07 | C179: Preisblatt 1 | E179: 115.73 | G179: 115.73
A180: E1006001S725010042200010313800001 | B180: Sg-vNNe--SpE07 | C180: Preisblatt 1 | E180: 51.8 | G180: 51.8
A181: E1006001S725010040900350270800001 | B181: Sg-vNNe--SpE07 | C181: Preisblatt 1 | E181: 56.15 | G181: 56.15
A182: E1006001S725010022400090111200001 | B182: Sg-vNNe--SpE07 | C182: Preisblatt 1 | E182: 41.33 | G182: 41.33
A183: E1006001S725010023500050000300001 | B183: Sg-vNNe--SpE07 | C183: Preisblatt 1 | E183: 36.15 | G183: 36.15
A184: E1006001S725010042100150418200001 | B184: Sg-vNNe--SpE07 | C184: Preisblatt 1 | E184: 28.91 | G184: 28.91
A185: E1006001S725010024200040414700001 | B185: Sg-vNNe--SpE07 | C185: Preisblatt 1 | E185: 38.87 | G185: 38.87
A186: E1006001S725010020300030063100001 | B186: Sg-vNNe--SpE07 | C186: Preisblatt 1 | E186: 20.8 | G186: 20.8
A187: E1006001S725010040900630275800001 | B187: Sg-vNNe--SpE07 | C187: Preisblatt 1 | E187: 22.47 | G187: 22.47

Sheet MPM_anzulegender_Wert
C1: =Deckblatt!H1 -> 03.03.2014
A3: Netzbetreiber : | B3: =Deckblatt!C11 -> Gammertinger Energie- und Wasserversorgung GmbH
A5: Angaben zur Berechnung des anzulegenden Werts nach § 33 h EEG für die Berechnung der Marktprämie
A7: Anlagenschlüssel | B7: Vergütungskategorie | C7: erzeugte Strommenge in der jeweiligen Kategorie [kWh] | D7: theoretisch auszuzahlende EEG-Mindestvergütung für Kategorien ohne festen Vergütungssatz [€] | E7: Vergütungssatz der angegebenen Kategorie [ct/kWh] | F7: Berechnete theoretisch auszuzahlende EEG-Mindestvergütung [€]
B8: Vergütungskategorien, die mit dem Anlagenbetreiber abgerechnet worden wären, wenn die Anlage in der Festvergütung vergütet worden wäre. | C8: Erzeugte Strommenge in der jeweiligen Kategorie für die Zeit, in der die Anlage in der Direktvermarktung nach § 33b Nr. 1 EEG (Markprämie) war. Vergütungskürzungen bei Nichteinhaltung von § 27 Abs. 3 und 4, § 27a Abs. 2 sowie § 27c Abs. 3 EEG sind hier nicht zu berücksichtigen. | D8: Pflichtfeld bei Kategorien, die mit Marktwert zu vergüten sind (Kategorien die auf "MW" enden)

Sheet MPM_Monatswerte
D1: =Deckblatt!H1 -> 03.03.2014
A3: Netzbetreiber : | B3: =Deckblatt!C11 -> Gammertinger Energie- und Wasserversorgung GmbH
A5: Anlagenschlüssel | B5: Marktprämienkategorie bzw. Kategorie für Entfall der Marktprämie | C5: erzeugte Strommenge im zur Kategorie gehörigen Monat bzw. in der jeweiligen Kategorie [kWh] | D5: Bemerkungen | E5: monats- und anlagenspezifischer anzulegender Wert gemäß § 33 h EEG [ct/kWh] | F5: berechneter jahres- und anlagenspezifischer anzulegender Wert [ct/kWh] | G5: berechnete Marktprämie [€]
D6: bspw. Angabe der Monate in denen ein Entfall der Marktprämie angesetzt wurde | E6: Angabe nur dann erforderlich, wenn sich die theoretische EEG-Vergütung einer Anlage während dem Jahr geändert hat oder wenn sich durch die Berechnung Rundungsdifferenzen zu den von Ihren Systemen berechneten Werten ergeben (Nur Werte innerhalb der Rundungstoleranz zulässig). | F6: gemäß Tabellenblatt "MPM_anzulegender Wert" (bzw. bei ganzjähriger Verringerung der Vergütung auf den Marktwert der jeweilige Marktwert)

Sheet Flexibilitätsprämie
E1: =Deckblatt!H1 -> 03.03.2014
A3: Netzbetreiber : | B3: =Deckblatt!C11 -> Gammertinger Energie- und Wasserversorgung GmbH
A5: Anlagenschlüssel | B5: Vergütungskategorie | C5: erzeugte Strommenge in der jeweiligen Kategorie [kWh] | D5: Zusatzleistung [kW] | E5: Flexibilitätsprämie [€]

Sheet MPM_Ergebnissblatt
J1: =Deckblatt!H1 -> 03.03.2014
A3: Netzbetreiber : | B3: =Deckblatt!C11 -> Gammertinger Energie- und Wasserversorgung GmbH
A5: Anlagenschlüssel | B5: Marktprämie [€] | C5: Marktprämie [€] | D5: Marktprämie [€] | E5: Marktprämie [€] | F5: Marktprämie [€] | G5: Marktprämie [€] | H5: Marktprämie [€] | I5: Marktprämie [€] | J5: Marktprämie [€] | K5: Marktprämie [€] | L5: Marktprämie [€] | M5: Marktprämie [€] | N5: Marktprämie gesamt [€]
B6: Januar | C6: Februar | D6: März | E6: April | F6: Mai | G6: Juni | H6: Juli | I6: August | J6: September | K6: Oktober | L6: November | M6: Dezember | N6: 2013

Sheet Marktwerte
A1: Monat | B1: Januar | C1: Februar | D1: März | E1: April | F1: Mai | G1: Juni | H1: Juli | I1: August | J1: September | K1: Oktober | L1: November | M1: Dezember
B2: 2013 | C2: 2013 | D2: 2013 | E2: 2013 | F2: 2013 | G2: 2013 | H2: 2013 | I2: 2013 | J2: 2013 | K2: 2013 | L2: 2013 | M2: 2013
A3: MW-EPEX (Marktwert-EPEX) | B3: 4.331 | C3: 4.462 | D3: 3.911 | E3: 3.792 | F3: 3.206 | G3: 2.782 | H3: 3.642 | I3: 3.823 | J3: 4.171 | K3: 3.768 | L3: 3.922 | M3: 3.575
A5: MW Wind (Marktwert Wind) | B5: 3.519 | C5: 3.872 | D5: 3.208 | E5: 3.664 | F5: 3.069 | G5: 2.345 | H5: 3.41 | I5: 3.455 | J5: 3.709 | K5: 3.191 | L5: 3.269 | M5: 2.638
A6: PM Wind (Managementprämie Wind) | B6: 0.65 | C6: =$B6 -> 0.65 | D6: =$B6 -> 0.65 | E6: 0.65 | F6: 0.65 | G6: 0.65 | H6: 0.65 | I6: 0.65 | J6: 0.65 | K6: 0.65 | L6: 0.65 | M6: 0.65
A7: PM Wind fst. (Managementprämie Wind fernsteuerbar) | B7: 0.75 | C7: =$B7 -> 0.75 | D7: 0.75 | E7: 0.75 | F7: 0.75 | G7: 0.75 | H7: 0.75 | I7: 0.75 | J7: 0.75 | K7: 0.75 | L7: 0.75 | M7: 0.75
A8: RW Wind (Referenzmarktwert Wind) | B8: =B5-B6 -> 2.869 | C8: =C5-C6 -> 3.222 | D8: 2.558 | E8: 3.014 | F8: 2.419 | G8: 1.695 | H8: 2.76 | I8: 2.805 | J8: 3.059 | K8: 2.541 | L8: 2.619 | M8: 1.988
A9: RW Wind (Referenzmarktwert Wind fernsteuerbar) | B9: =B5-B7 -> 2.769 | C9: =C5-C7 -> 3.122 | D9: 2.458 | E9: 2.914 | F9: 2.319 | G9: 1.595 | H9: 2.66 | I9: 2.705 | J9: 2.959 | K9: 2.441 | L9: 2.519 | M9: 1.888
A11: MW Solar (Marktwert Solar) | B11: 4.775 | C11: 4.906 | D11: 3.578 | E11: 3.66 | F11: 3.347 | G11: 2.842 | H11: 3.743 | I11: 3.999 | J11: 4.376 | K11: 3.75 | L11: 4.203 | M11: 4.05
A12: PM Solar (Managementprämie Solar) | B12: =B6 -> 0.65 | C12: =$B12 -> 0.65 | D12: =$B12 -> 0.65 | E12: 0.65 | F12: 0.65 | G12: 0.65 | H12: 0.65 | I12: 0.65 | J12: 0.65 | K12: 0.65 | L12: 0.65 | M12: 0.65
A13: PM Solar fst. (Managementprämie Solar fernsteuerbar) | B13: =B7 -> 0.75 | C13: =$B13 -> 0.75 | D13: 0.75 | E13: 0.75 | F13: 0.75 | G13: 0.75 | H13: 0.75 | I13: 0.75 | J13: 0.75 | K13: 0.75 | L13: 0.75 | M13: 0.75
A14: RW Solar (Referenzmarktwert Solar) | B14: =B11-B12 -> 4.125 | C14: 4.256 | D14: 2.928 | E14: 3.01 | F14: 2.697 | G14: 2.192 | H14: 3.093 | I14: 3.349 | J14: 3.726 | K14: 3.1 | L14: 3.553 | M14: 3.4
A15: RW Solar (Referenzmarktwert Solar fernsteuerbar) | B15: =B11-B13 -> 4.025 | C15: 4.156 | D15: 2.828 | E15: 2.91 | F15: 2.597 | G15: 2.092 | H15: 2.993 | I15: 3.249 | J15: 3.626 | K15: 3 | L15: 3.453 | M15: 3.3
A17: MW steuerbar (Marktwert steuerbar) | B17: =B3 -> 4.331 | C17: 4.462 | D17: 3.911 | E17: 3.792 | F17: 3.206 | G17: 2.782 | H17: 3.642 | I17: 3.823 | J17: 4.171 | K17: 3.768 | L17: 3.922 | M17: 3.575
A18: PM steuerbar (Managementprämie steuerbar) | B18: 0.275 | C18: =$B18 -> 0.275 | D18: =$B18 -> 0.275 | E18: 0.275 | F18: 0.275 | G18: 0.275 | H18: 0.275 | I18: 0.275 | J18: 0.275 | K18: 0.275 | L18: 0.275 | M18: 0.275
A19: PM steuerbar (Managementprämie fernsteuerbar) | B19: =B18 -> 0.275 | C19: =$B19 -> 0.275 | D19: 0.275 | E19: 0.275 | F19: 0.275 | G19: 0.275 | H19: 0.275 | I19: 0.275 | J19: 0.275 | K19: 0.275 | L19: 0.275 | M19: 0.275
A20: RW steuerbar (Referenzmarktwert steuerbar) | B20: =B17-B18 -> 4.056 | C20: 4.187 | D20: 3.636 | E20: 3.517 | F20: 2.931 | G20: 2.507 | H20: 3.367 | I20: 3.548 | J20: 3.896 | K20: 3.493 | L20: 3.647 | M20: 3.3
A21: RW steuerbar (Referenzmarktwert steuerbar fernsteuerbar) | B21: =B17-B19 -> 4.056 | C21: 4.187 | D21: 3.636 | E21: 3.517 | F21: 2.931 | G21: 2.507 | H21: 3.367 | I21: 3.548 | J21: 3.896 | K21: 3.493 | L21: 3.647 | M21: 3.3
A25: Legende:
A26: erfasste Daten
A27: berechnete Daten

Sheet Erläuterungen Kategorien
A1: Erläuterungen zur EEG-Vergütungskategorientabelle bis einschl. Inbetriebnahmejahr 2011
A2: Informationen zu den Vergütungskategorien auf der gemeinsamen Internetseite der vier Übertragungsnetzbetreiber: www.eeg-kwk.net
A3: Bedeutung der farblichen Hinterlegung der Einträge:
A4: weiß | B4: Vergütungskategorie stimmt mit bisheriger Kategorie nach EEG 2004 überein
A5: grün | B5: Vergütungskategorie bestand bereits nach EEG 2004, Vergütung wird ab 1.1.2009 erhöht
A6: gelb | B6: Vergütungskategorie ist neu nach EEG 2009
A7: orange | B7: Vergütungskategorie ist 2012/2013 neu nach EEG 2009
A8: rosa | B8: Vergütungskategorie ist 2012 neu nach EEG 2012, nur auf Anlagen mit Inbetriebnahme nach 31.12.2011 anwendbar
A9: braun | B9: Vergütungskategorie ist 2012 neu nach EEG 2012, auch auf Anlagen mit Inbetriebnahme vor 1.1.2012 anwendbar
A10: rosa / braun | B10: Vergütungskategorie ist 2012 neu nach EEG 2012, Anwendbarkeit auf Anlagen mit Inbetriebnahme vor 1.1.2012 unsicher
A11: violett | B11: Vergütungskategorie ist 2012 neu nach EEG 2012 in der am 29.06.2012 beschlossenen Fassung (sogenannte PV-Novelle)
A12: blau | B12: Vergütungskategorie ist 2013 neu nach EEG 2012 und/oder der Managementprämienverordnung (MaPrV)
A13: blassblau | B13: Vergütungskategorie ist 2013 ergänzt worden
A15: Anmerkung: | B15: Sofern eine Unterscheidung zwischen dem EEG 2012 in der vom 01.01.2012 bis 31.03.2012 geltenden alten Fassung und der ab 01.04.2012 gelten neuen Fassung erforderlich ist, ist dies durch die Verwendung von EEG 2012 a.F. bzw. EEG 2012 n.F. gekennzeichnet.
A17: Bonusregeln für Anlagen bis einschließlich Inbetriebnahmejahr 2008
A18: aus EEG 2004 und EEG 2009
A19: Bonusregel a1: (§ 8 Abs. 2 Satz 1 EEG 2004) in Höhe von 6,0 ct/kWh für den Anteil der eingespeisten Wirkarbeit bis einschließlich 500 kW
A21: Bonusregel a2: (§ 8 Abs. 2 Satz 1 EEG 2004) in Höhe von 4,0 ct/kWh für den Anteil der eingespeisten Wirkarbeit oberhalb von 500 kW bis einschließlich 5 MW
A23: Bonusregeln a1 und a2 jeweils bei Anlagen mit ausschließlichem Einsatz von Biomasse aus: (a) Pflanzen oder Pflanzenbestandteilen ohne Aufbereitung im Sinne von § 8 Abs. 2 Satz 1 Nr. 1 EEG, (b) Gülle und Schlempe im Sinne von § 8 Abs. 2 Satz 1 Nr. 1 EEG oder (c) Stoffgemisch aus (a) und (b) sofern ein Tagebuch über den ausschließlichen Einsatz dieser Stoffe geführt wird oder eine Genehmigung der Anlage für den ausschließlichen Einsatz dieser Stoffe vorliegt, sowie keine Biomasseanlagen auf demselben Gelände betrieben werden, in denen Strom aus sonstigen Stoffen gewonnen wird.
A25: Bonusregel a3: (§ 8 Abs. 2 Satz 2 EEG 2004) in Höhe von 2,5 ct/kWh bei Verbrennung von Holz für den Anteil oberhalb von 500 kW bis einschließlich 5 MW.
A27: Weitere Nawaro-Bonusregeln G, M1, M2, L, X1, X2: siehe Erläuterungen unten für Inbetriebnahmejahre ab 2009.
A29: Bonusregel b: (§ 8 Abs. 4 EEG 2004) in Höhe von 2,0 ct/kWh für Anlagen, die auch in Kraft-Wärmekopplung betrieben werden, bei ausschließlicher Verwendung von Biomasse gemäß Biomasseverordnung und Umwandlung der Biomasse durch thermochemische Vergasung oder Trockenfermentation oder Aufarbeitung des Biogases auf Erdgasqualität oder Erzeugung des Stroms mittels Brennstoffzelle, Gasturbine, Dampfmotoren, Organic-Rankine-Anlagen, Mehrstoffgemisch-Anlagen (u.a. Kalina-Cycle-Anlagen) bzw. Stirling-Motoren für den Anteil bis einschließlich 5 MW.
A31: KWK-Bonusregeln (KWK, KA3, K09, K10, K11 und K12): Bonus KWK (§ 8 Abs. 3 EEG 2004) in Höhe von 2,0 ct/kWh bei ausschließlicher Verwendung von Biomasse gemäß Biomasseverordnung für Anlagen, die KWK-Anlage gemäß FW 308 sind und dies entsprechend nachweisen. Die Bonusregel gilt nur für den KWK-Anteil des erzeugten elektrischen Stroms. Bonus K09, K10, K11 und K12 (§ 66 Abs. 1 Nr. 3 Satz 1 EEG 2009): Für Biomasseanlagen, die vor dem 01.01.2009 in Betrieb genommen wurden und die nach dem 31.12.2008 erstmals in Kraft-Wärme-Kopplung nach Maßgabe der Anlage 3 zum EEG 2009 betrieben wurden, beträgt der KWK-Bonus 3,00 ct/kWh bei erstmaligem KWK-Betrieb in 2009 (Bonus K09), 2,97 ct/kWh bei erstmaligem KWK-Betrieb in 2010 (Bonus K10), 2,94 ct/kWh bei erstmaligem KWK-Betrieb in 2011 (Bonus K11) und 2,91 ct/kWh bei erstmaligem KWK-Betrieb in 2012 (Bonus K12). Bonus KA3 (§ 66 Abs. 1 Nr. 3 Satz 2 EEG 2009): Für Strom aus sonstigen Biomasseanlagen mit Inbetriebnahme vor dem 01.01.2009, der in Kraft-Wärme-Kopplung nach Maßgabe der Anlage 3 zum EEG 2009 erzeugt worden ist, beträgt der KWK-Bonus bis einschließlich einer Leistung von 500 Kilowatt 3,0 ct/kWh.
A33: Bonusregel y: (§ 66 Abs.1 Nr. 4a EEG 2009) Strom aus Biomasseanlagen bis zu einer Anlagenleistung von 500 KW, die Biogas einsetzen, erhalten eine um 1,0 ct/kWh höhere Vergütung, wenn entsprechende Formaldehydgrenzwerte nach TA Luft eingehalten werden (Bonus y).
A35: Bonusregel S: (§ 66 Abs. 1 Nr. 6 EEG 2009) Windenergieanlagen, die nach dem 31.12.2001 und vor dem 01.01.2009 in Betrieb genommen worden sind, erhalten einen Systemdienstleistungsbonus von 0,7 ct/kWh, wenn sie infolge einer Nachrüstung vor dem 01.01.2011 die Anforderungen der Verordnung nach § 64 Abs. 1 Nr. 1 EEG 2009 erstmals einhalten.
A38: Bonusregeln für Anlagen mit Inbetriebnahmejahr 2009, 2010, 2011, 2012
A39: aus EEG 2009
F40: Bonushöhe
A41: Bonusbezeichnung | B41: Beschreibung | C41: Einschränkung | D41: gesetzliche Norm | F41: IB in 2009 | G41: IB in 2010 | H41: IB in 2011 | I41: IB in 2012
A42: Immissionsbonus | C42: Biomasse
A43: i | B43: Immissionsschutzrechtlich genehmigte Anlagen | C43: < 0,5 MW | D43: § 27 Abs. 5 EEG | F43: 1 | G43: 0.99 | H43: 0.98
A45: Technologiebonus | C45: Deponiegas, Klärgas, Grubengas (nur t3), Biomasse
A46: t1 | B46: Technologiebonus Gasaufbereitung; | C46: < 5 MW, 0-350 Normkubikmeter pro Std. | D46: § 27 Abs. 4 Satz 1 Nr. 1 EEG; Anlage 1 Punkt I., 2a | F46: 2 | G46: 1,98 (Biom.) 1,97 (Gase) | H46: 1,96 (Biom.) 1,94 (Gase)
A47: t2 | B47: Technologiebonus Gasaufbereitung; | C47: < 5 MW, 350-700 Normkubikmeter pro Std. | D47: § 27 Abs. 4 Satz 1 Nr. 1 EEG; Anlage 1 Punkt I., 2b | F47: 1 | G47: 0.99 | H47: 0,98 (Biom.) 0,97 (Gase)
A48: t3 | B48: Technonogiebonus Innovative Anlagentechnik | C48: < 5 MW | D48: § 27 Abs. 4 Satz 1 Nr. 1 EEG; Anlage 1 Punkt II., 2 | F48: 2 | G48: 1,98 (Biom.) 1,97 (Gase) | H48: 1,96 (Biom.) 1,94 (Gase) | I48: 1,94 (Biom.)
A50: Nawarobonus | C50: Biomasse
A51: a1 | B51: Nawarobonus_allgemein | C51: <0,5 MW | D51: § 27 Abs. 4 Satz 1 Nr. 2 EEG; Anlage 2 Punkt VI., 1a (1) | F51: 6 | G51: 5.94 | H51: 5.88 | I51: 5.82
A52: a2 | B52: Nawarobonus_allgemein | C52: 0,5-5 MW | D52: § 27 Abs. 4 Satz 1 Nr. 2 EEG; Anlage 2 Punkt VI., 1a (2) | F52: 4 | G52: 3.96 | H52: 3.92 | I52: 3.88
A53: ah | B53: Nawarobonus_allgemein | C53: 0,5-5 MW; Einschränkung Holz | D53: § 27 Abs. 4 Satz 1 Nr. 2 EEG; Anlage 2 Punkt VI., 1b | F53: 2.5 | G53: 2.48 | H53: 2.45 | I53: 2.43
A55: G | B55: Nawarobonus_Biogas | C55: <0,5 MW; | D55: § 27 Abs. 4 Satz 1 Nr. 2 EEG; Anlage 2 Punkt VI., 2a | F55: 7 | G55: 6.93 | H55: 6.86
A56: M1 | B56: Nawarobonus_Biogas | C56: 0-0,150 MW; Gülleanteil > 30 % | D56: § 27 Abs. 4 Satz 1 Nr. 2 EEG; Anlage 2 Punkt VI., 2b (1) | F56: 11 | G56: 10.89 | H56: 10.78
A57: M2 | B57: Nawarobonus_Biogas | C57: 0,150-0,5 MW; Gülleanteil > 30 % | D57: § 27 Abs. 4 Satz 1 Nr. 2 EEG; Anlage 2 Punkt VI., 2b (2) | F57: 8 | G57: 7.92 | H57: 7.84
A59: L | B59: Nawarobonus_Biogas | C59: 0-0,5 MW; Landschaftspflege | D59: § 27 Abs. 4 Satz 1 Nr. 2 EEG; Anlage 2 Punkt VI., 2c | F59: 9 | G59: 8.91 | H59: 8.82
A60: X1 | B60: Nawarobonus_Biogas | C60: 0-0,150 MW; Landschaftspflege; Gülleanteil > 30 % | D60: § 27 Abs. 4 Satz 1 Nr. 2 EEG; Anlage 2 Punkt VI., 2b (1) und Punkt VI., 2c (Kombination aus Bonus M1 und Bonus L) | F60: 13 | G60: 12.87 | H60: 12.74
A61: X2 | B61: Nawarobonus_Biogas | C61: 0,150-0,5 MW; Landschaftspflege; Gülleanteil > 30 % | D61: § 27 Abs. 4 Satz 1 Nr. 2 EEG; Anlage 2 Punkt VI., 2b (2) und Punkt VI., 2c (Kombination aus Bonus M2 und Bonus L) | F61: 10 | G61: 9.9 | H61: 9.8
A63: KWK-Bonus | C63: Biomasse
A64: K | B64: KWK-Bonus | C64: Anteil KWK-Strom | D64: § 27 Abs. 4 Satz 1 Nr. 3 EEG | F64: 3 | G64: 2.97 | H64: 2.94 | I64: 2.91
A66: Wärmenutzungs-bonus | C66: Geothermie
A67: W | B67: Wärmenutzungsbonus | D67: § 28 Abs. 2 EEG; Anlage 4 | F67: 3 | G67: 2.97 | H67: 2.94
A69: Bonus für Einsatz petrothermaler Technik | C69: Geothermie
A70: P | B70: Bonus petrothermale Technik | D70: § 28 Abs. 3 EEG | F70: 4 | G70: 3.96 | H70: 3.92
A72: Systemdienst-leistungsbonus | C72: Wind
A73: S | B73: Systemdienstleistungs-bonus | D73: § 29 Abs. 2 EEG | F73: 0.5 | G73: 0.5 | H73: 0.49
A78: Hinweise zu den Bezeichnungen der Vergütungskategorien
A79: vgl. auch: Umsetzungshilfe zum EEG 2009, Version 1.1 vom 01.12.2009, Anhang 3, online unter http://www.bdew.de/bdew.nsf/id/DE_EEG-Verfahrensbeschreibun_und_-Umsetzungshilfen
A81: 1. Biomasseanlagen mit Inbetriebnahme bis Ende 2003
A82: und alle anderen Anlagen mit Inbetriebnahme bis Juli 2004
A83: Stellen 1-2: | B83: Energieart:
B84: Wa = Wasser,
B85: Bi = Biomasse,
B86: Ga = Deponie-, Klär- und Grubengas
B87: Ge = Geothermie
B88: Wi = Wind
B89: So = Solarenergie
A90: Stelle 3: | B90: „K“ für Kategorie
A91: Stelle 4 | B91: relevanter Paragraph aus dem EEG 2000:
B92: 4 für Wasserkraft sowie Deponie-, Klär- und Grubengas
B93: 5 für Biomasse
B94: 6 für Geothermie
B95: 7 für Windenergie
B96: 8 für Solarenergie
A97: Stelle 5 | B97: fortlaufende Nummer (i.d.R. entsprechende(r) Satz/ Ziffer innerhalb des Paragraphen) zur Angabe der jeweiligen Vergütungszone
A98: Stelle 6 | B98: „n“ bei Biomasseanlagen für die Vergütungszone 0-150 kW
B99: „a“ sonst
A100: Stellen 7-12 (Biomasse) | B100: Angabe der Bonusregelungen:
B101: Die Kürzel für die gewährten Vergütungsboni werden in den Stellen 7 bis 12 nach und nach in folgender Reihenfolge eingeführt:
B102: 1. NaWaRo-Bonus (a1, a2, a3, G, M1, M2, L, X1 oder X2)
B103: 2. KWK-Bonus (KWK, KA3 oder K09)
B104: 3. Formaldehyd-Bonus (y)
B105: Alle 3 Bonustypen sind – unter Beachtung der verschiedenen Geltungsbereiche (Vergütungszonen) – miteinander kombinierbar.
B106: Weitere, noch freie Stellen werden mit Minuszeichen aufgefüllt.
A107: Stellen 7-12 (außer Biomasse) | B107: Minuszeichen
A108: Stellen 13 bis 14: | B108: Inbetriebnahmejahr (2-stellig)
A111: 2. Biomasseanlagen des Inbetriebnahmezeitraums Januar 2004 bis Ende 2008
A112: und alle anderen Anlagen des Inbetriebnahmezeitraums August 2004 bis Ende 2008
A113: Stellen 1-2: | B113: Energieart (vgl. oben)
A114: Stelle 3: | B114: „K“ für Kategorie
A115: Stelle 4 (Wa, Ga, Bi, Ge) bzw. 4-5 (Wind, Solar) | B115: relevanter Paragraph aus dem EEG 2004:
B116: 6 für Wasserkraft
B117: 7 für Deponie-, Klär- und Grubengas
B118: 8 für Biomasse
B119: 9 für Geothermie
B120: 10 für Windenergie
B121: 11 für Solarenergie
A122: Stelle 5 (Wa, Ga, Bi, Ge) bzw. 6 (Wind, Solar) | B122: fortlaufende Nummer (i.d.R. entsprechende(r) Satz/ Ziffer innerhalb des Paragraphen zur Angabe der einzelnen Vergütungszone
B123: bzw. zur Darstellung weiterer vergütungsrelevanter Angaben:
B124: a) Zuschlag bei Gasen nach EEG 2004
B125: b) Wind: Unterscheidung zwischen Anfangs- und Endvergütung
B126: c) Solarenergie: Fassadenbonus
A127: Stellen 6 bis 12 (Biomasse) | B127: Angabe der Vergütungsboni bei Biomasseanlagen
B128: Die Kürzel für die gewährten Vergütungsboni werden in den Stellen 6 bis 12 nach und nach in folgender Reihenfolge eingeführt:
B129: 1. NaWaRo-Bonus (a1, a2, a3, G, M1, M2, L, X1 oder X2)
B130: 2. Technologiebonus (b)
B131: 3. Formaldehyd-Bonus (y)
B132: 4. KWK-Bonus (KWK, KA3, K09, K10, K11 oder K12)
B133: Alle 4 Bonustypen sind – unter Beachtung der verschiedenen Geltungsbereiche (Vergütungszonen) – miteinander kombinierbar.
B134: Freie Stellen bis Stelle 12 werden mit Minuszeichen aufgefüllt.
A135: Stellen 6 bis 7 (Geothermie) | B135: Angabe der Vergütungsboni bei Geothermieanlagen :
B136: Die Kürzel für die gewährten Vergütungsboni werden in den Stellen 6 bis 7 in folgender Reihenfolge eingeführt:
B137: 1. Wärmenutzungs-Bonus (W)
B138: 2. Bonus für petrothermale Techniken (P)
B139: Die Bonustypen sind miteinander kombinierbar.
B140: Freie Stellen bis Stelle 12 werden mit Minuszeichen aufgefüllt.
A141: Stelle 7 (Windenergie) | B141: Angabe des Systemdienstleistungs-Bonus (SDL-Bonus):
B142: „S“ bei Vorliegen der Voraussetzungen für den SDL-Bonus
B143: Alle weiteren Stellen bis Stelle 12 werden mit Minuszeichen aufgefüllt
A144: Stellen 13 bis 14: | B144: Inbetriebnahmejahr (2-stellig)
A147: 3. Anlagen mit Vergütung nach EEG 2009
A148: Stellen 1-2: | B148: Energieart:
B149: Wa = Wasser,
B150: Bi = Biomasse,
B151: De = Deponiegas (ab Inbetriebnahmejahr 2009)
B152: Kl = Klärgas (ab Inbetriebnahmejahr 2009)
B153: Gr = Grubengas (ab Inbetriebnahmejahr 2009)
B154: Ge = Geothermie
B155: Wn = Wind onshore (ab Inbetriebnahmejahr 2009)
B156: Wr = Wind Repowering (ab Inbetriebnahmejahr 2009)
B157: Wf = Wind offshore (ab Inbetriebnahmejahr 2009)
B158: So = Solarenergie-Freiflächenanlagen
B159: Sg = Solarenergie an oder auf Gebäuden (ab Inbetriebnahmejahr 2009)
A160: Stelle 3: | B160: „K“ für Kategorie
A161: Stellen 4-5 | B161: relevanter Paragraph aus dem EEG 2009:
B162: 23 für Wasserkraft
B163: 24 für Deponiegas
B164: 25 für Klärgas
B165: 26 für Grubengas
B166: 27 für Biomasse
B167: 28 für Geothermie
B168: 29 für Windenergie an Land
B169: 30 für Windenergie an Land Repowering
B170: 31 für Windenergie offshore
B171: 32 für Solarenergie (Freiflächenanlagen)
B172: 33 für Solarenergie an oder auf Gebäuden
A173: Stelle 6 | B173: fortlaufende Nummer (i.d.R. entsprechende(r) Satz/ Ziffer innerhalb des Paragraphen) zur Darstellung der jeweiligen Vergütungszone
B174: oder anderer vergütungsrelevanter Angaben:
B175: a) Wasserkraft: modernisierte Anlage oder Neubau
B176: b) Windenergie: Anfangs- oder Endvergütung
B177: c) Solarenergie: „normale“ Vergütung oder Eigenverbrauch
A178: Stelle 7-8 (Biomasse) | B178: Angabe der Vergütungsboni:
B179: Die Kürzel für die gewährten Vergütungsboni werden in den Stellen 7 bis 12 nach und nach in folgender Reihenfolge eingeführt:
B180: 1. Technologiebonus (t1, t2, t3)
B181: 2. NaWaRo-Bonus (a1, a2, ah, G, M1, M2, L, X1 oder X2)
B182: 3. Formaldehyd-Bonus (i)
B183: 4. KWK-Bonus (K)
B184: Alle 4 Bonustypen sind – unter Beachtung der verschiedenen Geltungsbereiche (Vergütungszonen) – miteinander kombinierbar.
A185: Stellen 7-8 (Geothermie) | B185: Angabe der Vergütungsboni:
B186: Die Kürzel für die gewährten Vergütungsboni werden in den Stellen 7 bis 8 in folgender Reihenfolge eingeführt:
B187: 1. Wärmenutzungs-Bonus (W)
B188: 2. Bonus für petrothermale Techniken (P)
B189: Die Bonustypen sind miteinander kombinierbar.
A190: Stelle 7 (Windenergie) | B190: Angabe des Systemdienstleistungs-Bonus (SDL-Bonus):
B191: „S“ bei Vorliegen der Voraussetzungen für den SDL-Bonus
A192: Stellen 7-8 (Solar) | B192: Angabe zum Solarstrom-Selbstverbrauch in Stelle 7:
B193: "1" - fiktive Einspeisung des selbstverbrauchten Stroms
B194: "2" - fiktive Rückspeisung des selbstverbrauchten Stroms, ggf. nur Anteil bis zu 30 % der Gesamterzeugung der Anlage im Kalenderjahr
B195: "3" - fiktive Rückspeisung des selbstverbrauchten Stroms über 30 % der Gesamterzeugung der Anlage im Kalenderjahr
B196: In Stelle 8 wird die Leistungsstufe (0 … 30 kW, 30 … 100 kW und 100 … 500 kW) unterschieden.
A197: Stellen 7-12 | B197: "BS" (teilweise nur "B") für Bestandsschutz: Durch Übergangsbestimmungen geregelter Investitionsschutz des Weitergeltens von Vergütungen
A198: Alle weiteren Stellen bis Stelle 12 werden mit Minuszeichen aufgefüllt, Ausnahmen:
B199: - unterjährig einsetzende neue Vergütungssätze (bei Photovoltaikanlagen ab Juli, September oder Oktober): Monatsangaben in den Stellen 10 bis 12
B200: - "BS" (teilweise nur "B") für Bestandsschutz: Durch Übergangsbestimmungen geregelter Investitionsschutz des Weitergeltens von Vergütungen
A201: Stellen 13 bis 14: | B201: Inbetriebnahmejahr (2-stellig)
A204: 4. Anlagen mit Vergütung nach EEG 2012
A205: Stellen 1-2: | B205: Energieart:
B206: Wa = Wasser,
B207: Bi = Biomasse,
B208: Ga = Deponie-, Klär- oder Grubengas (bis Inbetriebnahmejahr 2008)
B209: De = Deponiegas (ab Inbetriebnahmejahr 2009)
B210: Kl = Klärgas (ab Inbetriebnahmejahr 2009)
B211: Gr = Grubengas (ab Inbetriebnahmejahr 2009)
B212: Ge = Geothermie
B213: Wi = Wind (bis Inbetriebnahmejahr 2008)
B214: Wn = Wind onshore (ab Inbetriebnahmejahr 2009)
B215: Wr = Wind Repowering (ab Inbetriebnahmejahr 2009)
B216: Wf = Wind offshore (ab Inbetriebnahmejahr 2009)
B217: So = Solarenergie-Freiflächenanlagen (auch an oder auf Gebäuden bis Inbetriebnahmejahr 2008)
B218: Sg = Solarenergie an oder auf Gebäuden (ab Inbetriebnahmejahr 2009)
A219: Stelle 3: | B219: „K“ für Kategorie
A220: Stellen 4-5, teils 4-6 | B220: relevanter Paragraph aus dem EEG 2012:
B221: 17 für Verringerung des Vergütungsanspruchs (alle Energieträger)
B222: 23 für Wasserkraft
B223: 24 für Deponiegas
B224: 25 für Klärgas
B225: 26 für Grubengas
B226: 27 für Biomasse
B227: 27a für Vergärung von Bioabfällen (Energieträger Biomasse)
B228: 27b für Vergärung von Gülle (Energieträger Biomasse)
B229: 28 für Geothermie
B230: 29 für Windenergie an Land
B231: 30 für Windenergie an Land Repowering
... 74 more rows

Sheet Kategorien
A1: EEG-Vergütungskategorientabelle bis einschließlich Inbetriebnahmejahr 2013 | H1: Liste vNE-Kategorien | O1: Liste Marktprämienkategorien | V1: Flexibilitätsprämie
A2: Bezeichnung | B2: Energieträger | C2: Inbetriebnahme | D2: Weitere Kriterien | E2: Anteilige Zuordnung | F2: Mindestvergütung in ct/kWh | H2: Bezeichnung | I2: Energieträger | J2: Inbetriebnahme | K2: Weitere Kriterien | L2: Anteilige Zuordnung | M2: Mindestvergütung in ct/kWh | O2: Bezeichnung | P2: Energieträger | Q2: Inbetriebnahme | R2: Weitere Kriterien | S2: Anteilige Zuordnung | T2: Mindestvergütung in ct/kWh | V2: BiK33iM----FLP | W2: Biomasse | Y2: Flexibilitätsprämie für Biomethan
A3: WaK41a------01 | B3: Wasser | C3: Inbetriebnahme bis 2001 | D3: 0-0,5 MW | F3: 7.67 | H3: Wa-vNNe--SpE01 | I3: Wasser | K3: vNNe, Spannungsebene: HöS | O3: WaK33b1-MPMJan | P3: Wasser | R3: Marktprämie für Kalendermonat Januar | V3: BiK33iG----FLP | W3: Biomasse | Y3: Flexibilitätsprämie für sonstige Biogase außer Biomethan
A4: WaK42a------01 | B4: Wasser | C4: Inbetriebnahme bis 2001 | D4: 0,5-5 MW | F4: 6.65 | H4: Wa-vNNe--SpE02 | I4: Wasser | K4: vNNe, Spannungsebene: Hös/HS | O4: WaK33b1-MPMFeb | P4: Wasser | R4: Marktprämie für Kalendermonat Februar
A5: WaK41a------02 | B5: Wasser | C5: Inbetriebnahme 2002 | D5: 0-0,5 MW | F5: 7.67 | H5: Wa-vNNe--SpE03 | I5: Wasser | K5: vNNe, Spannungsebene: HS | O5: WaK33b1-MPMMrz | P5: Wasser | R5: Marktprämie für Kalendermonat März
A6: WaK42a------02 | B6: Wasser | C6: Inbetriebnahme 2002 | D6: 0,5-5 MW | F6: 6.65 | H6: Wa-vNNe--SpE04 | I6: Wasser | K6: vNNe, Spannungsebene: HS/MS | O6: WaK33b1-MPMApr | P6: Wasser | R6: Marktprämie für Kalendermonat April
A7: WaK41a------03 | B7: Wasser | C7: Inbetriebnahme 2003 | D7: 0-0,5 MW | F7: 7.67 | H7: Wa-vNNe--SpE05 | I7: Wasser | K7: vNNe, Spannungsebene: MS | O7: WaK33b1-MPMMai | P7: Wasser | R7: Marktprämie für Kalendermonat Mai
A8: WaK42a------03 | B8: Wasser | C8: Inbetriebnahme 2003 | D8: 0,5-5 MW | F8: 6.65 | H8: Wa-vNNe--SpE06 | I8: Wasser | K8: vNNe, Spannungsebene: MS/NS | O8: WaK33b1-MPMJun | P8: Wasser | R8: Marktprämie für Kalendermonat Juni
A9: WaK41a------04 | B9: Wasser | C9: Inbetriebnahme 01-07/2004 | D9: 0-0,5 MW | F9: 7.67 | H9: Wa-vNNe--SpE07 | I9: Wasser | K9: vNNe, Spannungsebene: NS | O9: WaK33b1-MPMJul | P9: Wasser | R9: Marktprämie für Kalendermonat Juli
A10: WaK42a------04 | B10: Wasser | C10: Inbetriebnahme 01-07/2004 | D10: 0,5-5 MW | F10: 6.65 | H10: Bi-vNNe--SpE01 | I10: Biomasse | K10: vNNe, Spannungsebene: HöS | O10: WaK33b1-MPMAug | P10: Wasser | R10: Marktprämie für Kalendermonat August
A11: WaK61-------04 | B11: Wasser | C11: Inbetriebnahme 08-12/2004 | D11: 0-0,5 MW | F11: 9.67 | H11: Bi-vNNe--SpE02 | I11: Biomasse | K11: vNNe, Spannungsebene: Hös/HS | O11: WaK33b1-MPMSep | P11: Wasser | R11: Marktprämie für Kalendermonat September
A12: WaK62-------04 | B12: Wasser | C12: Inbetriebnahme 08-12/2004 | D12: 0,5-5 MW | F12: 6.65 | H12: Bi-vNNe--SpE03 | I12: Biomasse | K12: vNNe, Spannungsebene: HS | O12: WaK33b1-MPMOkt | P12: Wasser | R12: Marktprämie für Kalendermonat Oktober
A13: WaK63-------04 | B13: Wasser | C13: Inbetriebnahme 08-12/2004 | D13: >5 MW , Zubau 0-0,5 MW | F13: 7.67 | H13: Bi-vNNe--SpE04 | I13: Biomasse | K13: vNNe, Spannungsebene: HS/MS | O13: WaK33b1-MPMNov | P13: Wasser | R13: Marktprämie für Kalendermonat November
A14: WaK64-------04 | B14: Wasser | C14: Inbetriebnahme 08-12/2004 | D14: >5 MW , Zubau 0,5-10 MW | F14: 6.65 | H14: Bi-vNNe--SpE05 | I14: Biomasse | K14: vNNe, Spannungsebene: MS | O14: WaK33b1-MPMDez | P14: Wasser | R14: Marktprämie für Kalendermonat Dezember
A15: WaK65-------04 | B15: Wasser | C15: Inbetriebnahme 08-12/2004 | D15: >5 MW , Zubau 10-20 MW | F15: 6.1 | H15: Bi-vNNe--SpE06 | I15: Biomasse | K15: vNNe, Spannungsebene: MS/NS | O15: BiK33b1-MPMJan | P15: Biomasse | R15: Marktprämie für Kalendermonat Januar
A16: WaK66-------04 | B16: Wasser | C16: Inbetriebnahme 08-12/2004 | D16: >5 MW , Zubau 20-50 MW | F16: 4.56 | H16: Bi-vNNe--SpE07 | I16: Biomasse | K16: vNNe, Spannungsebene: NS | O16: BiK33b1-MPMFeb | P16: Biomasse | R16: Marktprämie für Kalendermonat Februar
A17: WaK67-------04 | B17: Wasser | C17: Inbetriebnahme 08-12/2004 | D17: >5 MW , Zubau 50-150 MW | F17: 3.7 | H17: Ga-vNNe--SpE01 | I17: Deponie-,Klär-,Grubengas | K17: vNNe, Spannungsebene: HöS, bis 2008 | O17: BiK33b1-MPMMrz | P17: Biomasse | R17: Marktprämie für Kalendermonat März
A18: WaK61-------05 | B18: Wasser | C18: Inbetriebnahme 2005 | D18: 0-0,5 MW | F18: 9.67 | H18: Ga-vNNe--SpE02 | I18: Deponie-,Klär-,Grubengas | K18: vNNe, Spannungsebene: Hös/HS, bis 2008 | O18: BiK33b1-MPMApr | P18: Biomasse | R18: Marktprämie für Kalendermonat April
A19: WaK62-------05 | B19: Wasser | C19: Inbetriebnahme 2005 | D19: 0,5-5 MW | F19: 6.65 | H19: Ga-vNNe--SpE03 | I19: Deponie-,Klär-,Grubengas | K19: vNNe, Spannungsebene: HS, bis 2008 | O19: BiK33b1-MPMMai | P19: Biomasse | R19: Marktprämie für Kalendermonat Mai
A20: WaK63-------05 | B20: Wasser | C20: Inbetriebnahme 2005 | D20: >5 MW , Zubau 0-0,5 MW | F20: 7.59 | H20: Ga-vNNe--SpE04 | I20: Deponie-,Klär-,Grubengas | K20: vNNe, Spannungsebene: HS/MS, bis 2008 | O20: BiK33b1-MPMJun | P20: Biomasse | R20: Marktprämie für Kalendermonat Juni
A21: WaK64-------05 | B21: Wasser | C21: Inbetriebnahme 2005 | D21: >5 MW , Zubau 0,5-10 MW | F21: 6.58 | H21: Ga-vNNe--SpE05 | I21: Deponie-,Klär-,Grubengas | K21: vNNe, Spannungsebene: MS, bis 2008 | O21: BiK33b1-MPMJul | P21: Biomasse | R21: Marktprämie für Kalendermonat Juli
A22: WaK65-------05 | B22: Wasser | C22: Inbetriebnahme 2005 | D22: >5 MW , Zubau 10-20 MW | F22: 6.04 | H22: Ga-vNNe--SpE06 | I22: Deponie-,Klär-,Grubengas | K22: vNNe, Spannungsebene: MS/NS, bis 2008 | O22: BiK33b1-MPMAug | P22: Biomasse | R22: Marktprämie für Kalendermonat August
A23: WaK66-------05 | B23: Wasser | C23: Inbetriebnahme 2005 | D23: >5 MW , Zubau 20-50 MW | F23: 4.51 | H23: Ga-vNNe--SpE07 | I23: Deponie-,Klär-,Grubengas | K23: vNNe, Spannungsebene: NS, bis 2008 | O23: BiK33b1-MPMSep | P23: Biomasse | R23: Marktprämie für Kalendermonat September
A24: WaK67-------05 | B24: Wasser | C24: Inbetriebnahme 2005 | D24: >5 MW , Zubau 50-150 MW | F24: 3.66 | H24: De-vNNe--SpE01 | I24: Deponiegas | K24: vNNe, Spannungsebene: HöS, ab 2009 | O24: BiK33b1-MPMOkt | P24: Biomasse | R24: Marktprämie für Kalendermonat Oktober
A25: WaK61-------06 | B25: Wasser | C25: Inbetriebnahme 2006 | D25: 0-0,5 MW | F25: 9.67 | H25: De-vNNe--SpE02 | I25: Deponiegas | K25: vNNe, Spannungsebene: Hös/HS, ab 2009 | O25: BiK33b1-MPMNov | P25: Biomasse | R25: Marktprämie für Kalendermonat November
A26: WaK62-------06 | B26: Wasser | C26: Inbetriebnahme 2006 | D26: 0,5-5 MW | F26: 6.65 | H26: De-vNNe--SpE03 | I26: Deponiegas | K26: vNNe, Spannungsebene: HS, ab 2009 | O26: BiK33b1-MPMDez | P26: Biomasse | R26: Marktprämie für Kalendermonat Dezember
A27: WaK63-------06 | B27: Wasser | C27: Inbetriebnahme 2006 | D27: >5 MW, Zubau 0-0,5 MW | F27: 7.51 | H27: De-vNNe--SpE04 | I27: Deponiegas | K27: vNNe, Spannungsebene: HS/MS, ab 2009 | O27: GaK33b1-MPMJan | P27: Deponie-,Klär-,Grubengas | R27: Marktprämie für Kalendermonat Januar
A28: WaK64-------06 | B28: Wasser | C28: Inbetriebnahme 2006 | D28: >5 MW, Zubau 0,5-10 MW | F28: 6.51 | H28: De-vNNe--SpE05 | I28: Deponiegas | K28: vNNe, Spannungsebene: MS, ab 2009 | O28: GaK33b1-MPMFeb | P28: Deponie-,Klär-,Grubengas | R28: Marktprämie für Kalendermonat Februar
A29: WaK65-------06 | B29: Wasser | C29: Inbetriebnahme 2006 | D29: >5 MW , Zubau 10-20 MW | F29: 5.98 | H29: De-vNNe--SpE06 | I29: Deponiegas | K29: vNNe, Spannungsebene: MS/NS, ab 2009 | O29: GaK33b1-MPMMrz | P29: Deponie-,Klär-,Grubengas | R29: Marktprämie für Kalendermonat März
A30: WaK66-------06 | B30: Wasser | C30: Inbetriebnahme 2006 | D30: >5 MW , Zubau 20-50 MW | F30: 4.46 | H30: De-vNNe--SpE07 | I30: Deponiegas | K30: vNNe, Spannungsebene: NS, ab 2009 | O30: GaK33b1-MPMApr | P30: Deponie-,Klär-,Grubengas | R30: Marktprämie für Kalendermonat April
A31: WaK67-------06 | B31: Wasser | C31: Inbetriebnahme 2006 | D31: >5 MW , Zubau 50-150 MW | F31: 3.62 | H31: Kl-vNNe--SpE01 | I31: Klärgas | K31: vNNe, Spannungsebene: HöS, ab 2009 | O31: GaK33b1-MPMMai | P31: Deponie-,Klär-,Grubengas | R31: Marktprämie für Kalendermonat Mai
A32: WaK61-------07 | B32: Wasser | C32: Inbetriebnahme 2007 | D32: 0-0,5 MW | F32: 9.67 | H32: Kl-vNNe--SpE02 | I32: Klärgas | K32: vNNe, Spannungsebene: Hös/HS, ab 2009 | O32: GaK33b1-MPMJun | P32: Deponie-,Klär-,Grubengas | R32: Marktprämie für Kalendermonat Juni
A33: WaK62-------07 | B33: Wasser | C33: Inbetriebnahme 2007 | D33: 0,5-5 MW | F33: 6.65 | H33: Kl-vNNe--SpE03 | I33: Klärgas | K33: vNNe, Spannungsebene: HS, ab 2009 | O33: GaK33b1-MPMJul | P33: Deponie-,Klär-,Grubengas | R33: Marktprämie für Kalendermonat Juli
A34: WaK63-------07 | B34: Wasser | C34: Inbetriebnahme 2007 | D34: >5 MW , Zubau 0-0,5 MW | F34: 7.43 | H34: Kl-vNNe--SpE04 | I34: Klärgas | K34: vNNe, Spannungsebene: HS/MS, ab 2009 | O34: GaK33b1-MPMAug | P34: Deponie-,Klär-,Grubengas | R34: Marktprämie für Kalendermonat August
A35: WaK64-------07 | B35: Wasser | C35: Inbetriebnahme 2007 | D35: >5 MW , Zubau 0,5-10 MW | F35: 6.44 | H35: Kl-vNNe--SpE05 | I35: Klärgas | K35: vNNe, Spannungsebene: MS, ab 2009 | O35: GaK33b1-MPMSep | P35: Deponie-,Klär-,Grubengas | R35: Marktprämie für Kalendermonat September
A36: WaK65-------07 | B36: Wasser | C36: Inbetriebnahme 2007 | D36: >5 MW , Zubau 10-20 MW | F36: 5.92 | H36: Kl-vNNe--SpE06 | I36: Klärgas | K36: vNNe, Spannungsebene: MS/NS, ab 2009 | O36: GaK33b1-MPMOkt | P36: Deponie-,Klär-,Grubengas | R36: Marktprämie für Kalendermonat Oktober
A37: WaK66-------07 | B37: Wasser | C37: Inbetriebnahme 2007 | D37: >5 MW , Zubau 20-50 MW | F37: 4.42 | H37: Kl-vNNe--SpE07 | I37: Klärgas | K37: vNNe, Spannungsebene: NS, ab 2009 | O37: GaK33b1-MPMNov | P37: Deponie-,Klär-,Grubengas | R37: Marktprämie für Kalendermonat November
A38: WaK67-------07 | B38: Wasser | C38: Inbetriebnahme 2007 | D38: >5 MW , Zubau 50-150 MW | F38: 3.58 | H38: Gr-vNNe--SpE01 | I38: Grubengas | K38: vNNe, Spannungsebene: HöS, ab 2009 | O38: GaK33b1-MPMDez | P38: Deponie-,Klär-,Grubengas | R38: Marktprämie für Kalendermonat Dezember
A39: WaK61-------08 | B39: Wasser | C39: Inbetriebnahme 2008 | D39: 0-0,5 MW | F39: 9.67 | H39: Gr-vNNe--SpE02 | I39: Grubengas | K39: vNNe, Spannungsebene: Hös/HS, ab 2009 | O39: DeK33b1-MPMJan | P39: Deponiegas | R39: Marktprämie für Kalendermonat Januar
A40: WaK62-------08 | B40: Wasser | C40: Inbetriebnahme 2008 | D40: 0,5-5 MW | F40: 6.65 | H40: Gr-vNNe--SpE03 | I40: Grubengas | K40: vNNe, Spannungsebene: HS, ab 2009 | O40: DeK33b1-MPMFeb | P40: Deponiegas | R40: Marktprämie für Kalendermonat Februar
A41: WaK63-------08 | B41: Wasser | C41: Inbetriebnahme 2008 | D41: >5 MW , Zubau 0-0,5 MW | F41: 7.36 | H41: Gr-vNNe--SpE04 | I41: Grubengas | K41: vNNe, Spannungsebene: HS/MS, ab 2009 | O41: DeK33b1-MPMMrz | P41: Deponiegas | R41: Marktprämie für Kalendermonat März
A42: WaK64-------08 | B42: Wasser | C42: Inbetriebnahme 2008 | D42: >5 MW , Zubau 0,5-10 MW | F42: 6.38 | H42: Gr-vNNe--SpE05 | I42: Grubengas | K42: vNNe, Spannungsebene: MS, ab 2009 | O42: DeK33b1-MPMApr | P42: Deponiegas | R42: Marktprämie für Kalendermonat April
A43: WaK65-------08 | B43: Wasser | C43: Inbetriebnahme 2008 | D43: >5 MW , Zubau 10-20 MW | F43: 5.86 | H43: Gr-vNNe--SpE06 | I43: Grubengas | K43: vNNe, Spannungsebene: MS/NS, ab 2009 | O43: DeK33b1-MPMMai | P43: Deponiegas | R43: Marktprämie für Kalendermonat Mai
A44: WaK66-------08 | B44: Wasser | C44: Inbetriebnahme 2008 | D44: >5 MW , Zubau 20-50 MW | F44: 4.38 | H44: Gr-vNNe--SpE07 | I44: Grubengas | K44: vNNe, Spannungsebene: NS, ab 2009 | O44: DeK33b1-MPMJun | P44: Deponiegas | R44: Marktprämie für Kalendermonat Juni
A45: WaK67-------08 | B45: Wasser | C45: Inbetriebnahme 2008 | D45: >5 MW , Zubau 50-150 MW | F45: 3.54 | H45: Ge-vNNe--SpE01 | I45: Geothermie | K45: vNNe, Spannungsebene: HöS | O45: DeK33b1-MPMJul | P45: Deponiegas | R45: Marktprämie für Kalendermonat Juli
A46: WaK230------09 | B46: Wasser | C46: Inbetriebnahme 2009 | D46: 0-0,5 MW, Anlage < 5 MW | F46: 12.67 | H46: Ge-vNNe--SpE02 | I46: Geothermie | K46: vNNe, Spannungsebene: Hös/HS | O46: DeK33b1-MPMAug | P46: Deponiegas | R46: Marktprämie für Kalendermonat August
A47: WaK231------09 | B47: Wasser | C47: Inbetriebnahme 2009 | D47: 0-0,5 MW, Anlage < 5 MW, Modernisierung | F47: 11.67 | H47: Ge-vNNe--SpE03 | I47: Geothermie | K47: vNNe, Spannungsebene: HS | O47: DeK33b1-MPMSep | P47: Deponiegas | R47: Marktprämie für Kalendermonat September
A48: WaK232------09 | B48: Wasser | C48: Inbetriebnahme 2009 | D48: 0,5-2 MW, Anlage < 5 MW | F48: 8.65 | H48: Ge-vNNe--SpE04 | I48: Geothermie | K48: vNNe, Spannungsebene: HS/MS | O48: DeK33b1-MPMOkt | P48: Deponiegas | R48: Marktprämie für Kalendermonat Oktober
A49: WaK233------09 | B49: Wasser | C49: Inbetriebnahme 2009 | D49: 2-5 MW, Anlage < 5 MW | F49: 7.65 | H49: Ge-vNNe--SpE05 | I49: Geothermie | K49: vNNe, Spannungsebene: MS | O49: DeK33b1-MPMNov | P49: Deponiegas | R49: Marktprämie für Kalendermonat November
A50: WaK234------09 | B50: Wasser | C50: Inbetriebnahme 2009 | D50: 0,5-5 MW, Anlage < 5 MW, Modernisierung | F50: 8.65 | H50: Ge-vNNe--SpE06 | I50: Geothermie | K50: vNNe, Spannungsebene: MS/NS | O50: DeK33b1-MPMDez | P50: Deponiegas | R50: Marktprämie für Kalendermonat Dezember
A51: WaK235------09 | B51: Wasser | C51: Inbetriebnahme 2009 | D51: >5 MW, Zubau 0-0,5 MW | F51: 7.29 | H51: Ge-vNNe--SpE07 | I51: Geothermie | K51: vNNe, Spannungsebene: NS | O51: KlK33b1-MPMJan | P51: Klärgas | R51: Marktprämie für Kalendermonat Januar
A52: WaK236------09 | B52: Wasser | C52: Inbetriebnahme 2009 | D52: >5 MW, Zubau 0,5-10 MW | F52: 6.32 | H52: Wi-vNNe--SpE01 | I52: Wind | K52: vNNe, Spannungsebene: HöS, bis 2008 | O52: KlK33b1-MPMFeb | P52: Klärgas | R52: Marktprämie für Kalendermonat Februar
A53: WaK237------09 | B53: Wasser | C53: Inbetriebnahme 2009 | D53: >5 MW, Zubau 10-20 MW | F53: 5.8 | H53: Wi-vNNe--SpE02 | I53: Wind | K53: vNNe, Spannungsebene: Hös/HS, bis 2008 | O53: KlK33b1-MPMMrz | P53: Klärgas | R53: Marktprämie für Kalendermonat März
A54: WaK238------09 | B54: Wasser | C54: Inbetriebnahme 2009 | D54: >5 MW, Zubau 20-50 MW | F54: 4.34 | H54: Wi-vNNe--SpE03 | I54: Wind | K54: vNNe, Spannungsebene: HS, bis 2008 | O54: KlK33b1-MPMApr | P54: Klärgas | R54: Marktprämie für Kalendermonat April
A55: WaK239------09 | B55: Wasser | C55: Inbetriebnahme 2009 | D55: >5 MW, Zubau >50 MW | F55: 3.5 | H55: Wi-vNNe--SpE04 | I55: Wind | K55: vNNe, Spannungsebene: HS/MS, bis 2008 | O55: KlK33b1-MPMMai | P55: Klärgas | R55: Marktprämie für Kalendermonat Mai
A56: WaK230------10 | B56: Wasser | C56: Inbetriebnahme 2010 | D56: 0-0,5 MW, Anlage < 5 MW | F56: 12.67 | H56: Wi-vNNe--SpE05 | I56: Wind | K56: vNNe, Spannungsebene: MS, bis 2008 | O56: KlK33b1-MPMJun | P56: Klärgas | R56: Marktprämie für Kalendermonat Juni
A57: WaK231------10 | B57: Wasser | C57: Inbetriebnahme 2010 | D57: 0-0,5 MW, Anlage < 5 MW, Modernisierung | F57: 11.67 | H57: Wi-vNNe--SpE06 | I57: Wind | K57: vNNe, Spannungsebene: MS/NS, bis 2008 | O57: KlK33b1-MPMJul | P57: Klärgas | R57: Marktprämie für Kalendermonat Juli
A58: WaK232------10 | B58: Wasser | C58: Inbetriebnahme 2010 | D58: 0,5-2 MW, Anlage < 5 MW | F58: 8.65 | H58: Wi-vNNe--SpE07 | I58: Wind | K58: vNNe, Spannungsebene: NS, bis 2008 | O58: KlK33b1-MPMAug | P58: Klärgas | R58: Marktprämie für Kalendermonat August
A59: WaK233------10 | B59: Wasser | C59: Inbetriebnahme 2010 | D59: 2-5 MW, Anlage < 5 MW | F59: 7.65 | H59: Wn-vNNe--SpE01 | I59: Wind onshore | K59: vNNe, Spannungsebene: HöS, ab 2009 | O59: KlK33b1-MPMSep | P59: Klärgas | R59: Marktprämie für Kalendermonat September
A60: WaK234------10 | B60: Wasser | C60: Inbetriebnahme 2010 | D60: 0,5-5 MW, Anlage < 5 MW, Modernisierung | F60: 8.65 | H60: Wn-vNNe--SpE02 | I60: Wind onshore | K60: vNNe, Spannungsebene: Hös/HS, ab 2009 | O60: KlK33b1-MPMOkt | P60: Klärgas | R60: Marktprämie für Kalendermonat Oktober
A61: WaK235------10 | B61: Wasser | C61: Inbetriebnahme 2010 | D61: >5 MW, Zubau 0-0,5 MW | F61: 7.22 | H61: Wn-vNNe--SpE03 | I61: Wind onshore | K61: vNNe, Spannungsebene: HS, ab 2009 | O61: KlK33b1-MPMNov | P61: Klärgas | R61: Marktprämie für Kalendermonat November
A62: WaK236------10 | B62: Wasser | C62: Inbetriebnahme 2010 | D62: >5 MW, Zubau 0,5-10 MW | F62: 6.26 | H62: Wn-vNNe--SpE04 | I62: Wind onshore | K62: vNNe, Spannungsebene: HS/MS, ab 2009 | O62: KlK33b1-MPMDez | P62: Klärgas | R62: Marktprämie für Kalendermonat Dezember
A63: WaK237------10 | B63: Wasser | C63: Inbetriebnahme 2010 | D63: >5 MW, Zubau 10-20 MW | F63: 5.74 | H63: Wn-vNNe--SpE05 | I63: Wind onshore | K63: vNNe, Spannungsebene: MS, ab 2009 | O63: GrK33b1-MPMJan | P63: Grubengas | R63: Marktprämie für Kalendermonat Januar
A64: WaK238------10 | B64: Wasser | C64: Inbetriebnahme 2010 | D64: >5 MW, Zubau 20-50 MW | F64: 4.3 | H64: Wn-vNNe--SpE06 | I64: Wind onshore | K64: vNNe, Spannungsebene: MS/NS, ab 2009 | O64: GrK33b1-MPMFeb | P64: Grubengas | R64: Marktprämie für Kalendermonat Februar
A65: WaK239------10 | B65: Wasser | C65: Inbetriebnahme 2010 | D65: >5 MW, Zubau >50 MW | F65: 3.47 | H65: Wn-vNNe--SpE07 | I65: Wind onshore | K65: vNNe, Spannungsebene: NS, ab 2009 | O65: GrK33b1-MPMMrz | P65: Grubengas | R65: Marktprämie für Kalendermonat März
A66: WaK230------11 | B66: Wasser | C66: Inbetriebnahme 2011 | D66: 0-0,5 MW, Anlage < 5 MW | F66: 12.67 | H66: Wr-vNNe--SpE01 | I66: Wind Repowering | K66: vNNe, Spannungsebene: HöS, ab 2009 | O66: GrK33b1-MPMApr | P66: Grubengas | R66: Marktprämie für Kalendermonat April
A67: WaK231------11 | B67: Wasser | C67: Inbetriebnahme 2011 | D67: 0-0,5 MW, Anlage < 5 MW, Modernisierung | F67: 11.67 | H67: Wr-vNNe--SpE02 | I67: Wind Repowering | K67: vNNe, Spannungsebene: Hös/HS, ab 2009 | O67: GrK33b1-MPMMai | P67: Grubengas | R67: Marktprämie für Kalendermonat Mai
A68: WaK232------11 | B68: Wasser | C68: Inbetriebnahme 2011 | D68: 0,5-2 MW, Anlage < 5 MW | F68: 8.65 | H68: Wr-vNNe--SpE03 | I68: Wind Repowering | K68: vNNe, Spannungsebene: HS, ab 2009 | O68: GrK33b1-MPMJun | P68: Grubengas | R68: Marktprämie für Kalendermonat Juni
A69: WaK233------11 | B69: Wasser | C69: Inbetriebnahme 2011 | D69: 2-5 MW, Anlage < 5 MW | F69: 7.65 | H69: Wr-vNNe--SpE04 | I69: Wind Repowering | K69: vNNe, Spannungsebene: HS/MS, ab 2009 | O69: GrK33b1-MPMJul | P69: Grubengas | R69: Marktprämie für Kalendermonat Juli
A70: WaK234------11 | B70: Wasser | C70: Inbetriebnahme 2011 | D70: 0,5-5 MW, Anlage < 5 MW, Modernisierung | F70: 8.65 | H70: Wr-vNNe--SpE05 | I70: Wind Repowering | K70: vNNe, Spannungsebene: MS, ab 2009 | O70: GrK33b1-MPMAug | P70: Grubengas | R70: Marktprämie für Kalendermonat August
A71: WaK235------11 | B71: Wasser | C71: Inbetriebnahme 2011 | D71: >5 MW, Zubau 0-0,5 MW | F71: 7.14 | H71: Wr-vNNe--SpE06 | I71: Wind Repowering | K71: vNNe, Spannungsebene: MS/NS, ab 2009 | O71: GrK33b1-MPMSep | P71: Grubengas | R71: Marktprämie für Kalendermonat September
A72: WaK236------11 | B72: Wasser | C72: Inbetriebnahme 2011 | D72: >5 MW, Zubau 0,5-10 MW | F72: 6.19 | H72: Wr-vNNe--SpE07 | I72: Wind Repowering | K72: vNNe, Spannungsebene: NS, ab 2009 | O72: GrK33b1-MPMOkt | P72: Grubengas | R72: Marktprämie für Kalendermonat Oktober
A73: WaK237------11 | B73: Wasser | C73: Inbetriebnahme 2011 | D73: >5 MW, Zubau 10-20 MW | F73: 5.68 | H73: So-vNNe--SpE01 | I73: Solar | K73: vNNe, Spannungsebene: HöS | O73: GrK33b1-MPMNov | P73: Grubengas | R73: Marktprämie für Kalendermonat November
A74: WaK238------11 | B74: Wasser | C74: Inbetriebnahme 2011 | D74: >5 MW, Zubau 20-50 MW | F74: 4.25 | H74: So-vNNe--SpE02 | I74: Solar | K74: vNNe, Spannungsebene: Hös/HS | O74: GrK33b1-MPMDez | P74: Grubengas | R74: Marktprämie für Kalendermonat Dezember
A75: WaK239------11 | B75: Wasser | C75: Inbetriebnahme 2011 | D75: >5 MW, Zubau >50 MW | F75: 3.43 | H75: So-vNNe--SpE03 | I75: Solar | K75: vNNe, Spannungsebene: HS | O75: GeK33b1-MPMJan | P75: Geothermie | R75: Marktprämie für Kalendermonat Januar
A76: WaK230BS----12 | B76: Wasser | C76: Inbetriebnahme 2012 | D76: 0-0,5 MW, Anlage 0,5-5 MW, wasserrechtliche Genehmigung vor 01.01.2012 (Bestandsschutz nach § 66 Abs. 5 EEG 2012) | F76: 12.67 | H76: So-vNNe--SpE04 | I76: Solar | K76: vNNe, Spannungsebene: HS/MS | O76: GeK33b1-MPMFeb | P76: Geothermie | R76: Marktprämie für Kalendermonat Februar
A77: WaK231BS----12 | B77: Wasser | C77: Modernisierung 2012 | D77: 0-0,5 MW, Anlage < 5 MW mit IB vor 01.08.2004, Modernisierung (Bestandsschutz nach § 66 Abs. 14 EEG 2012) | F77: 11.67 | H77: So-vNNe--SpE05 | I77: Solar | K77: vNNe, Spannungsebene: MS | O77: GeK33b1-MPMMrz | P77: Geothermie | R77: Marktprämie für Kalendermonat März
A78: WaK232BS----12 | B78: Wasser | C78: Inbetriebnahme 2012 | D78: 0,5-2 MW, Anlage 0,5-5 MW, wasserrechtliche Genehmigung vor 01.01.2012 (Bestandsschutz nach § 66 Abs. 5 EEG 2012) | F78: 8.65 | H78: So-vNNe--SpE06 | I78: Solar | K78: vNNe, Spannungsebene: MS/NS | O78: GeK33b1-MPMApr | P78: Geothermie | R78: Marktprämie für Kalendermonat April
A79: WaK233BS----12 | B79: Wasser | C79: Inbetriebnahme 2012 | D79: 2-5 MW, Anlage 0,5-5 MW, wasserrechtliche Genehmigung vor 01.01.2012 (Bestandsschutz nach § 66 Abs. 5 EEG 2012) | F79: 7.65 | H79: So-vNNe--SpE07 | I79: Solar | K79: vNNe, Spannungsebene: NS | O79: GeK33b1-MPMMai | P79: Geothermie | R79: Marktprämie für Kalendermonat Mai
A80: WaK234BS----12 | B80: Wasser | C80: Modernisierung 2012 | D80: 0,5-5 MW, Anlage < 5 MW mit IB vor 01.08.2004, Modernisierung (Bestandsschutz nach § 66 Abs. 14 EEG 2012) | F80: 8.65 | H80: Sg-vNNe--SpE01 | I80: Solar/Gebäude | K80: vNNe, Spannungsebene: HöS, ab 2009 | O80: GeK33b1-MPMJun | P80: Geothermie | R80: Marktprämie für Kalendermonat Juni
A81: WaK230------12 | B81: Wasser | C81: Inbetriebnahme 2012 | D81: 0-0,5 MW | F81: 12.7 | H81: Sg-vNNe--SpE02 | I81: Solar/Gebäude | K81: vNNe, Spannungsebene: Hös/HS, ab 2009 | O81: GeK33b1-MPMJul | P81: Geothermie | R81: Marktprämie für Kalendermonat Juli
A82: WaK231------12 | B82: Wasser | C82: Inbetriebnahme 2012 | D82: 0,5-2 MW | F82: 8.3 | H82: Sg-vNNe--SpE03 | I82: Solar/Gebäude | K82: vNNe, Spannungsebene: HS, ab 2009 | O82: GeK33b1-MPMAug | P82: Geothermie | R82: Marktprämie für Kalendermonat August
A83: WaK232------12 | B83: Wasser | C83: Inbetriebnahme 2012 | D83: 2-5 MW | F83: 6.3 | H83: Sg-vNNe--SpE04 | I83: Solar/Gebäude | K83: vNNe, Spannungsebene: HS/MS, ab 2009 | O83: GeK33b1-MPMSep | P83: Geothermie | R83: Marktprämie für Kalendermonat September
A84: WaK233------12 | B84: Wasser | C84: Inbetriebnahme 2012 | D84: 5-10 MW | F84: 5.5 | H84: Sg-vNNe--SpE05 | I84: Solar/Gebäude | K84: vNNe, Spannungsebene: MS, ab 2009 | O84: GeK33b1-MPMOkt | P84: Geothermie | R84: Marktprämie für Kalendermonat Oktober
A85: WaK234------12 | B85: Wasser | C85: Inbetriebnahme 2012 | D85: 10-20 MW | F85: 5.3 | H85: Sg-vNNe--SpE06 | I85: Solar/Gebäude | K85: vNNe, Spannungsebene: MS/NS, ab 2009 | O85: GeK33b1-MPMNov | P85: Geothermie | R85: Marktprämie für Kalendermonat November
A86: WaK235------12 | B86: Wasser | C86: Inbetriebnahme 2012 | D86: 20-50 MW | F86: 4.2 | H86: Sg-vNNe--SpE07 | I86: Solar/Gebäude | K86: vNNe, Spannungsebene: NS, ab 2009 | O86: GeK33b1-MPMDez | P86: Geothermie | R86: Marktprämie für Kalendermonat Dezember
A87: WaK236------12 | B87: Wasser | C87: Inbetriebnahme 2012 | D87: > 50 MW | F87: 3.4 | O87: WiK33b1-MPMJan | P87: Wind | R87: Marktprämie für Kalendermonat Januar (reguläre Managementprämie)
A88: WaK230M-----12 | B88: Wasser | C88: Modernisierung 2012 | D88: 0-0,5 MW, IB vor 01.01.2009, Modernisierung 2012 | F88: 12.7 | O88: WiK33b1-MPMFeb | P88: Wind | R88: Marktprämie für Kalendermonat Februar (reguläre Managementprämie)
A89: WaK231M-----12 | B89: Wasser | C89: Modernisierung 2012 | D89: 0,5-2 MW, IB vor 01.01.2009, Modernisierung 2012 | F89: 8.3 | O89: WiK33b1-MPMMrz | P89: Wind | R89: Marktprämie für Kalendermonat März (reguläre Managementprämie)
A90: WaK232M-----12 | B90: Wasser | C90: Modernisierung 2012 | D90: 2-5 MW, IB vor 01.01.2009, Modernisierung 2012 | F90: 6.3 | O90: WiK33b1-MPMApr | P90: Wind | R90: Marktprämie für Kalendermonat April (reguläre Managementprämie)
A91: WaK233M-----12 | B91: Wasser | C91: Modernisierung 2012 | D91: 5-10 MW, IB vor 01.01.2009, Modernisierung 2012 | F91: 5.5 | O91: WiK33b1-MPMMai | P91: Wind | R91: Marktprämie für Kalendermonat Mai (reguläre Managementprämie)
A92: WaK234M-----12 | B92: Wasser | C92: Modernisierung 2012 | D92: 10-20 MW, IB vor 01.01.2009, Modernisierung 2012 | F92: 5.3 | O92: WiK33b1-MPMJun | P92: Wind | R92: Marktprämie für Kalendermonat Juni (reguläre Managementprämie)
A93: WaK235M-----12 | B93: Wasser | C93: Modernisierung 2012 | D93: 20-50 MW, IB vor 01.01.2009, Modernisierung 2012 | F93: 4.2 | O93: WiK33b1-MPMJul | P93: Wind | R93: Marktprämie für Kalendermonat Juli (reguläre Managementprämie)
A94: WaK236M-----12 | B94: Wasser | C94: Modernisierung 2012 | D94: > 50 MW, IB vor 01.01.2009, Modernisierung 2012 | F94: 3.4 | O94: WiK33b1-MPMAug | P94: Wind | R94: Marktprämie für Kalendermonat August (reguläre Managementprämie)
A95: WaK230BS----13 | B95: Wasser | C95: Inbetriebnahme 2013 | D95: 0-0,5 MW, Anlage 0,5-5 MW, wasserrechtliche Genehmigung vor 01.01.2012 (Bestandsschutz nach § 66 Abs. 5 EEG 2012) | F95: 12.67 | O95: WiK33b1-MPMSep | P95: Wind | R95: Marktprämie für Kalendermonat September (reguläre Managementprämie)
A96: WaK231BS----13 | B96: Wasser | C96: Modernisierung 2013 | D96: 0-0,5 MW, Anlage < 5 MW mit IB vor 01.08.2004, Modernisierung (Bestandsschutz nach § 66 Abs. 14 EEG 2012) | F96: 11.67 | O96: WiK33b1-MPMOkt | P96: Wind | R96: Marktprämie für Kalendermonat Oktober (reguläre Managementprämie)
A97: WaK232BS----13 | B97: Wasser | C97: Inbetriebnahme 2013 | D97: 0,5-2 MW, Anlage 0,5-5 MW, wasserrechtliche Genehmigung vor 01.01.2012 (Bestandsschutz nach § 66 Abs. 5 EEG 2012) | F97: 8.65 | O97: WiK33b1-MPMNov | P97: Wind | R97: Marktprämie für Kalendermonat November (reguläre Managementprämie)
A98: WaK233BS----13 | B98: Wasser | C98: Inbetriebnahme 2013 | D98: 2-5 MW, Anlage 0,5-5 MW, wasserrechtliche Genehmigung vor 01.01.2012 (Bestandsschutz nach § 66 Abs. 5 EEG 2012) | F98: 7.65 | O98: WiK33b1-MPMDez | P98: Wind | R98: Marktprämie für Kalendermonat Dezember (reguläre Managementprämie)
A99: WaK234BS----13 | B99: Wasser | C99: Modernisierung 2013 | D99: 0,5-5 MW, Anlage < 5 MW mit IB vor 01.08.2004, Modernisierung (Bestandsschutz nach § 66 Abs. 14 EEG 2012) | F99: 8.65 | O99: WiK33b1eMPMJan | P99: Wind | R99: Marktprämie für Kalendermonat Januar bei Fernsteuerbarkeit nach § 3 Abs. 1 MaPrV (erhöhte Managementprämie)
A100: WaK230------13 | B100: Wasser | C100: Inbetriebnahme 2013 | D100: 0-0,5 MW | F100: 12.57 | O100: WiK33b1eMPMFeb | P100: Wind | R100: Marktprämie für Kalendermonat Februar bei Fernsteuerbarkeit nach § 3 Abs. 1 MaPrV (erhöhte Managementprämie)
A101: WaK231------13 | B101: Wasser | C101: Inbetriebnahme 2013 | D101: 0,5-2 MW | F101: 8.22 | O101: WiK33b1eMPMMrz | P101: Wind | R101: Marktprämie für Kalendermonat März bei Fernsteuerbarkeit nach § 3 Abs. 1 MaPrV (erhöhte Managementprämie)
A102: WaK232------13 | B102: Wasser | C102: Inbetriebnahme 2013 | D102: 2-5 MW | F102: 6.24 | O102: WiK33b1eMPMApr | P102: Wind | R102: Marktprämie für Kalendermonat April bei Fernsteuerbarkeit nach § 3 Abs. 1 MaPrV (erhöhte Managementprämie)
A103: WaK233------13 | B103: Wasser | C103: Inbetriebnahme 2013 | D103: 5-10 MW | F103: 5.45 | O103: WiK33b1eMPMMai | P103: Wind | R103: Marktprämie für Kalendermonat Mai bei Fernsteuerbarkeit nach § 3 Abs. 1 MaPrV (erhöhte Managementprämie)
A104: WaK234------13 | B104: Wasser | C104: Inbetriebnahme 2013 | D104: 10-20 MW | F104: 5.25 | O104: WiK33b1eMPMJun | P104: Wind | R104: Marktprämie für Kalendermonat Juni bei Fernsteuerbarkeit nach § 3 Abs. 1 MaPrV (erhöhte Managementprämie)
A105: WaK235------13 | B105: Wasser | C105: Inbetriebnahme 2013 | D105: 20-50 MW | F105: 4.16 | O105: WiK33b1eMPMJul | P105: Wind | R105: Marktprämie für Kalendermonat Juli bei Fernsteuerbarkeit nach § 3 Abs. 1 MaPrV (erhöhte Managementprämie)
A106: WaK236------13 | B106: Wasser | C106: Inbetriebnahme 2013 | D106: > 50 MW | F106: 3.37 | O106: WiK33b1eMPMAug | P106: Wind | R106: Marktprämie für Kalendermonat August bei Fernsteuerbarkeit nach § 3 Abs. 1 MaPrV (erhöhte Managementprämie)
A107: WaK230M-----13 | B107: Wasser | C107: Modernisierung 2013 | D107: 0-0,5 MW, IB vor 01.01.2009, Modernisierung 2013 | F107: 12.57 | O107: WiK33b1eMPMSep | P107: Wind | R107: Marktprämie für Kalendermonat September bei Fernsteuerbarkeit nach § 3 Abs. 1 MaPrV (erhöhte Managementprämie)
A108: WaK231M-----13 | B108: Wasser | C108: Modernisierung 2013 | D108: 0,5-2 MW, IB vor 01.01.2009, Modernisierung 2013 | F108: 8.22 | O108: WiK33b1eMPMOkt | P108: Wind | R108: Marktprämie für Kalendermonat Oktober bei Fernsteuerbarkeit nach § 3 Abs. 1 MaPrV (erhöhte Managementprämie)
A109: WaK232M-----13 | B109: Wasser | C109: Modernisierung 2013 | D109: 2-5 MW, IB vor 01.01.2009, Modernisierung 2013 | F109: 6.24 | O109: WiK33b1eMPMNov | P109: Wind | R109: Marktprämie für Kalendermonat November bei Fernsteuerbarkeit nach § 3 Abs. 1 MaPrV (erhöhte Managementprämie)
A110: WaK233M-----13 | B110: Wasser | C110: Modernisierung 2013 | D110: 5-10 MW, IB vor 01.01.2009, Modernisierung 2013 | F110: 5.45 | O110: WiK33b1eMPMDez | P110: Wind | R110: Marktprämie für Kalendermonat Dezember bei Fernsteuerbarkeit nach § 3 Abs. 1 MaPrV (erhöhte Managementprämie)
A111: WaK234M-----13 | B111: Wasser | C111: Modernisierung 2013 | D111: 10-20 MW, IB vor 01.01.2009, Modernisierung 2013 | F111: 5.25 | O111: WnK33b1-MPMJan | P111: Wind onshore | R111: Marktprämie für Kalendermonat Januar (reguläre Managementprämie)
A112: WaK235M-----13 | B112: Wasser | C112: Modernisierung 2013 | D112: 20-50 MW, IB vor 01.01.2009, Modernisierung 2013 | F112: 4.16 | O112: WnK33b1-MPMFeb | P112: Wind onshore | R112: Marktprämie für Kalendermonat Februar (reguläre Managementprämie)
A113: WaK236M-----13 | B113: Wasser | C113: Modernisierung 2013 | D113: > 50 MW, IB vor 01.01.2009, Modernisierung 2013 | F113: 3.37 | O113: WnK33b1-MPMMrz | P113: Wind onshore | R113: Marktprämie für Kalendermonat März (reguläre Managementprämie)
A114: BiK51n------01 | B114: Biomasse | C114: Inbetriebnahme bis 2001 | D114: 0-0,150 MW | E114: Anteil Nicht-KWK | F114: 11.67 | O114: WnK33b1-MPMApr | P114: Wind onshore | R114: Marktprämie für Kalendermonat April (reguläre Managementprämie)
A115: BiK51nKA3---01 | B115: Biomasse | C115: Inbetriebnahme bis 2001 | D115: 0-0,150 MW, Bonusregel K wenn Anlage 3 erfüllt | E115: Anteil KWK gemäß Anlage 3 | F115: 14.67 | O115: WnK33b1-MPMMai | P115: Wind onshore | R115: Marktprämie für Kalendermonat Mai (reguläre Managementprämie)
A116: BiK51nK09---01 | B116: Biomasse | C116: Inbetriebnahme bis 2001 | D116: 0-0,150 MW, Bonusregel K erstmals 2009 | E116: Anteil KWK, erstmals 2009 | F116: 14.67 | O116: WnK33b1-MPMJun | P116: Wind onshore | R116: Marktprämie für Kalendermonat Juni (reguläre Managementprämie)
A117: BiK51nK10---01 | B117: Biomasse | C117: Inbetriebnahme bis 2001 | D117: 0-0,150 MW, Bonusregel K erstmals 2010 | E117: Anteil KWK, erstmals 2010 | F117: 14.64 | O117: WnK33b1-MPMJul | P117: Wind onshore | R117: Marktprämie für Kalendermonat Juli (reguläre Managementprämie)
A118: BiK51nK11---01 | B118: Biomasse | C118: Inbetriebnahme bis 2001 | D118: 0-0,150 MW, Bonusregel K erstmals 2011 | E118: Anteil KWK, erstmals 2011 | F118: 14.61 | O118: WnK33b1-MPMAug | P118: Wind onshore | R118: Marktprämie für Kalendermonat August (reguläre Managementprämie)
A119: BiK51nK12---01 | B119: Biomasse | C119: Inbetriebnahme bis 2001 | D119: 0-0,150 MW, Bonusregel K erstmals 2012 | E119: Anteil KWK, erstmals 2012 | F119: 14.58 | O119: WnK33b1-MPMSep | P119: Wind onshore | R119: Marktprämie für Kalendermonat September (reguläre Managementprämie)
A120: BiK51ny-----01 | B120: Biomasse | C120: Inbetriebnahme bis 2001 | D120: 0-0,150 MW, Bonusregel y | E120: Anteil Nicht-KWK | F120: 12.67 | O120: WnK33b1-MPMOkt | P120: Wind onshore | R120: Marktprämie für Kalendermonat Oktober (reguläre Managementprämie)
A121: BiK51nKA3y--01 | B121: Biomasse | C121: Inbetriebnahme bis 2001 | D121: 0-0,150 MW, Bonusregeln y und K wenn Anlage 3 erfüllt | E121: Anteil KWK gemäß Anlage 3 | F121: 15.67 | O121: WnK33b1-MPMNov | P121: Wind onshore | R121: Marktprämie für Kalendermonat November (reguläre Managementprämie)
A122: BiK51nK09y--01 | B122: Biomasse | C122: Inbetriebnahme bis 2001 | D122: 0-0,150 MW, Bonusregeln y und K erstmals 2009 | E122: Anteil KWK, erstmals 2009 | F122: 15.67 | O122: WnK33b1-MPMDez | P122: Wind onshore | R122: Marktprämie für Kalendermonat Dezember (reguläre Managementprämie)
A123: BiK51nK10y--01 | B123: Biomasse | C123: Inbetriebnahme bis 2001 | D123: 0-0,150 MW, Bonusregeln y und K erstmals 2010 | E123: Anteil KWK, erstmals 2010 | F123: 15.64 | O123: WnK33b1eMPMJan | P123: Wind onshore | R123: Marktprämie für Kalendermonat Januar bei Fernsteuerbarkeit nach § 3 Abs. 1 MaPrV (erhöhte Managementprämie)
A124: BiK51nK11y--01 | B124: Biomasse | C124: Inbetriebnahme bis 2001 | D124: 0-0,150 MW, Bonusregeln y und K erstmals 2011 | E124: Anteil KWK, erstmals 2011 | F124: 15.61 | O124: WnK33b1eMPMFeb | P124: Wind onshore | R124: Marktprämie für Kalendermonat Februar bei Fernsteuerbarkeit nach § 3 Abs. 1 MaPrV (erhöhte Managementprämie)
A125: BiK51nK12y--01 | B125: Biomasse | C125: Inbetriebnahme bis 2001 | D125: 0-0,150 MW, Bonusregeln y und K erstmals 2012 | E125: Anteil KWK, erstmals 2012 | F125: 15.58 | O125: WnK33b1eMPMMrz | P125: Wind onshore | R125: Marktprämie für Kalendermonat März bei Fernsteuerbarkeit nach § 3 Abs. 1 MaPrV (erhöhte Managementprämie)
A126: BiK51na1----01 | B126: Biomasse | C126: Inbetriebnahme bis 2001 | D126: 0-0,150 MW; Bonusregel a1 | E126: Anteil Nicht-KWK | F126: 17.67 | O126: WnK33b1eMPMApr | P126: Wind onshore | R126: Marktprämie für Kalendermonat April bei Fernsteuerbarkeit nach § 3 Abs. 1 MaPrV (erhöhte Managementprämie)
A127: BiK51na1KA3-01 | B127: Biomasse | C127: Inbetriebnahme bis 2001 | D127: 0-0,150 MW, Bonusregeln a1, K wenn Anlage 3 erfüllt | E127: Anteil KWK gemäß Anlage 3 | F127: 20.67 | O127: WnK33b1eMPMMai | P127: Wind onshore | R127: Marktprämie für Kalendermonat Mai bei Fernsteuerbarkeit nach § 3 Abs. 1 MaPrV (erhöhte Managementprämie)
A128: BiK51na1K09-01 | B128: Biomasse | C128: Inbetriebnahme bis 2001 | D128: 0-0,150 MW, Bonusregeln a1, K erstmals 2009 | E128: Anteil KWK, erstmals 2009 | F128: 20.67 | O128: WnK33b1eMPMJun | P128: Wind onshore | R128: Marktprämie für Kalendermonat Juni bei Fernsteuerbarkeit nach § 3 Abs. 1 MaPrV (erhöhte Managementprämie)
A129: BiK51na1K10-01 | B129: Biomasse | C129: Inbetriebnahme bis 2001 | D129: 0-0,150 MW, Bonusregeln a1, K erstmals 2010 | E129: Anteil KWK, erstmals 2010 | F129: 20.64 | O129: WnK33b1eMPMJul | P129: Wind onshore | R129: Marktprämie für Kalendermonat Juli bei Fernsteuerbarkeit nach § 3 Abs. 1 MaPrV (erhöhte Managementprämie)
A130: BiK51na1K11-01 | B130: Biomasse | C130: Inbetriebnahme bis 2001 | D130: 0-0,150 MW, Bonusregeln a1, K erstmals 2011 | E130: Anteil KWK, erstmals 2011 | F130: 20.61 | O130: WnK33b1eMPMAug | P130: Wind onshore | R130: Marktprämie für Kalendermonat August bei Fernsteuerbarkeit nach § 3 Abs. 1 MaPrV (erhöhte Managementprämie)
A131: BiK51na1K12-01 | B131: Biomasse | C131: Inbetriebnahme bis 2001 | D131: 0-0,150 MW, Bonusregeln a1, K erstmals 2012 | E131: Anteil KWK, erstmals 2012 | F131: 20.58 | O131: WnK33b1eMPMSep | P131: Wind onshore | R131: Marktprämie für Kalendermonat September bei Fernsteuerbarkeit nach § 3 Abs. 1 MaPrV (erhöhte Managementprämie)
A132: BiK51na1y---01 | B132: Biomasse | C132: Inbetriebnahme bis 2001 | D132: 0-0,150 MW; Bonusregeln a1, y | E132: Anteil Nicht-KWK | F132: 18.67 | O132: WnK33b1eMPMOkt | P132: Wind onshore | R132: Marktprämie für Kalendermonat Oktober bei Fernsteuerbarkeit nach § 3 Abs. 1 MaPrV (erhöhte Managementprämie)
A133: BiK51na1KA3y01 | B133: Biomasse | C133: Inbetriebnahme bis 2001 | D133: 0-0,150 MW, Bonusregeln a1, y und K wenn Anlage 3 erfüllt | E133: Anteil KWK gemäß Anlage 3 | F133: 21.67 | O133: WnK33b1eMPMNov | P133: Wind onshore | R133: Marktprämie für Kalendermonat November bei Fernsteuerbarkeit nach § 3 Abs. 1 MaPrV (erhöhte Managementprämie)
A134: BiK51na1K09y01 | B134: Biomasse | C134: Inbetriebnahme bis 2001 | D134: 0-0,150 MW, Bonusregeln a1, y und K erstmals 2009 | E134: Anteil KWK, erstmals 2009 | F134: 21.67 | O134: WnK33b1eMPMDez | P134: Wind onshore | R134: Marktprämie für Kalendermonat Dezember bei Fernsteuerbarkeit nach § 3 Abs. 1 MaPrV (erhöhte Managementprämie)
A135: BiK51na1K10y01 | B135: Biomasse | C135: Inbetriebnahme bis 2001 | D135: 0-0,150 MW, Bonusregeln a1, y und K erstmals 2010 | E135: Anteil KWK, erstmals 2010 | F135: 21.64 | O135: WrK33b1-MPMJan | P135: Wind Repowering | R135: Marktprämie für Kalendermonat Januar (reguläre Managementprämie)
A136: BiK51na1K11y01 | B136: Biomasse | C136: Inbetriebnahme bis 2001 | D136: 0-0,150 MW, Bonusregeln a1, y und K erstmals 2011 | E136: Anteil KWK, erstmals 2011 | F136: 21.61 | O136: WrK33b1-MPMFeb | P136: Wind Repowering | R136: Marktprämie für Kalendermonat Februar (reguläre Managementprämie)
A137: BiK51na1K12y01 | B137: Biomasse | C137: Inbetriebnahme bis 2001 | D137: 0-0,150 MW, Bonusregeln a1, y und K erstmals 2012 | E137: Anteil KWK, erstmals 2012 | F137: 21.58 | O137: WrK33b1-MPMMrz | P137: Wind Repowering | R137: Marktprämie für Kalendermonat März (reguläre Managementprämie)
A138: BiK51nG-----01 | B138: Biomasse | C138: Inbetriebnahme bis 2001 | D138: 0-0,15 MW, Bonusregel G | E138: Anteil Nicht-KWK | F138: 18.67 | O138: WrK33b1-MPMApr | P138: Wind Repowering | R138: Marktprämie für Kalendermonat April (reguläre Managementprämie)
A139: BiK51nGKA3--01 | B139: Biomasse | C139: Inbetriebnahme bis 2001 | D139: 0-0,15 MW, Bonusregeln G und K wenn Anlage 3 erfüllt | E139: Anteil KWK gemäß Anlage 3 | F139: 21.67 | O139: WrK33b1-MPMMai | P139: Wind Repowering | R139: Marktprämie für Kalendermonat Mai (reguläre Managementprämie)
A140: BiK51nGK09--01 | B140: Biomasse | C140: Inbetriebnahme bis 2001 | D140: 0-0,15 MW, Bonusregeln G und K erstmals 2009 | E140: Anteil KWK, erstmals 2009 | F140: 21.67 | O140: WrK33b1-MPMJun | P140: Wind Repowering | R140: Marktprämie für Kalendermonat Juni (reguläre Managementprämie)
A141: BiK51nGK10--01 | B141: Biomasse | C141: Inbetriebnahme bis 2001 | D141: 0-0,15 MW, Bonusregeln G und K erstmals 2010 | E141: Anteil KWK, erstmals 2010 | F141: 21.64 | O141: WrK33b1-MPMJul | P141: Wind Repowering | R141: Marktprämie für Kalendermonat Juli (reguläre Managementprämie)
A142: BiK51nGK11--01 | B142: Biomasse | C142: Inbetriebnahme bis 2001 | D142: 0-0,15 MW, Bonusregeln G und K erstmals 2011 | E142: Anteil KWK, erstmals 2011 | F142: 21.61 | O142: WrK33b1-MPMAug | P142: Wind Repowering | R142: Marktprämie für Kalendermonat August (reguläre Managementprämie)
A143: BiK51nGK12--01 | B143: Biomasse | C143: Inbetriebnahme bis 2001 | D143: 0-0,15 MW, Bonusregeln G und K erstmals 2012 | E143: Anteil KWK, erstmals 2012 | F143: 21.58 | O143: WrK33b1-MPMSep | P143: Wind Repowering | R143: Marktprämie für Kalendermonat September (reguläre Managementprämie)
A144: BiK51nGy----01 | B144: Biomasse | C144: Inbetriebnahme bis 2001 | D144: 0-0,15 MW, Bonusregel G, y | E144: Anteil Nicht-KWK | F144: 19.67 | O144: WrK33b1-MPMOkt | P144: Wind Repowering | R144: Marktprämie für Kalendermonat Oktober (reguläre Managementprämie)
A145: BiK51nGKA3y-01 | B145: Biomasse | C145: Inbetriebnahme bis 2001 | D145: 0-0,15 MW, Bonusregeln G, y und K wenn Anlage 3 erfüllt | E145: Anteil KWK gemäß Anlage 3 | F145: 22.67 | O145: WrK33b1-MPMNov | P145: Wind Repowering | R145: Marktprämie für Kalendermonat November (reguläre Managementprämie)
A146: BiK51nGK09y-01 | B146: Biomasse | C146: Inbetriebnahme bis 2001 | D146: 0-0,15 MW, Bonusregeln G, y und K erstmals 2009 | E146: Anteil KWK, erstmals 2009 | F146: 22.67 | O146: WrK33b1-MPMDez | P146: Wind Repowering | R146: Marktprämie für Kalendermonat Dezember (reguläre Managementprämie)
A147: BiK51nGK10y-01 | B147: Biomasse | C147: Inbetriebnahme bis 2001 | D147: 0-0,15 MW, Bonusregeln G, y und K erstmals 2010 | E147: Anteil KWK, erstmals 2010 | F147: 22.64 | O147: WrK33b1eMPMJan | P147: Wind Repowering | R147: Marktprämie für Kalendermonat Januar bei Fernsteuerbarkeit nach § 3 Abs. 1 MaPrV (erhöhte Managementprämie)
A148: BiK51nGK11y-01 | B148: Biomasse | C148: Inbetriebnahme bis 2001 | D148: 0-0,15 MW, Bonusregeln G, y und K erstmals 2011 | E148: Anteil KWK, erstmals 2011 | F148: 22.61 | O148: WrK33b1eMPMFeb | P148: Wind Repowering | R148: Marktprämie für Kalendermonat Februar bei Fernsteuerbarkeit nach § 3 Abs. 1 MaPrV (erhöhte Managementprämie)
A149: BiK51nGK12y-01 | B149: Biomasse | C149: Inbetriebnahme bis 2001 | D149: 0-0,15 MW, Bonusregeln G, y und K erstmals 2012 | E149: Anteil KWK, erstmals 2012 | F149: 22.58 | O149: WrK33b1eMPMMrz | P149: Wind Repowering | R149: Marktprämie für Kalendermonat März bei Fernsteuerbarkeit nach § 3 Abs. 1 MaPrV (erhöhte Managementprämie)
A150: BiK51nM1----01 | B150: Biomasse | C150: Inbetriebnahme bis 2001 | D150: 0-0,15 MW, Bonusregel M1 | E150: Anteil Nicht-KWK | F150: 22.67 | O150: WrK33b1eMPMApr | P150: Wind Repowering | R150: Marktprämie für Kalendermonat April bei Fernsteuerbarkeit nach § 3 Abs. 1 MaPrV (erhöhte Managementprämie)
A151: BiK51nM1KA3-01 | B151: Biomasse | C151: Inbetriebnahme bis 2001 | D151: 0-0,15 MW, Bonusregeln M1 und K wenn Anlage 3 erfüllt | E151: Anteil KWK gemäß Anlage 3 | F151: 25.67 | O151: WrK33b1eMPMMai | P151: Wind Repowering | R151: Marktprämie für Kalendermonat Mai bei Fernsteuerbarkeit nach § 3 Abs. 1 MaPrV (erhöhte Managementprämie)
A152: BiK51nM1K09-01 | B152: Biomasse | C152: Inbetriebnahme bis 2001 | D152: 0-0,15 MW, Bonusregeln M1 und K erstmals 2009 | E152: Anteil KWK, erstmals 2009 | F152: 25.67 | O152: WrK33b1eMPMJun | P152: Wind Repowering | R152: Marktprämie für Kalendermonat Juni bei Fernsteuerbarkeit nach § 3 Abs. 1 MaPrV (erhöhte Managementprämie)
A153: BiK51nM1K10-01 | B153: Biomasse | C153: Inbetriebnahme bis 2001 | D153: 0-0,15 MW, Bonusregeln M1 und K erstmals 2010 | E153: Anteil KWK, erstmals 2010 | F153: 25.64 | O153: WrK33b1eMPMJul | P153: Wind Repowering | R153: Marktprämie für Kalendermonat Juli bei Fernsteuerbarkeit nach § 3 Abs. 1 MaPrV (erhöhte Managementprämie)
A154: BiK51nM1K11-01 | B154: Biomasse | C154: Inbetriebnahme bis 2001 | D154: 0-0,15 MW, Bonusregeln M1 und K erstmals 2011 | E154: Anteil KWK, erstmals 2011 | F154: 25.61 | O154: WrK33b1eMPMAug | P154: Wind Repowering | R154: Marktprämie für Kalendermonat August bei Fernsteuerbarkeit nach § 3 Abs. 1 MaPrV (erhöhte Managementprämie)
A155: BiK51nM1K12-01 | B155: Biomasse | C155: Inbetriebnahme bis 2001 | D155: 0-0,15 MW, Bonusregeln M1 und K erstmals 2012 | E155: Anteil KWK, erstmals 2012 | F155: 25.58 | O155: WrK33b1eMPMSep | P155: Wind Repowering | R155: Marktprämie für Kalendermonat September bei Fernsteuerbarkeit nach § 3 Abs. 1 MaPrV (erhöhte Managementprämie)
A156: BiK51nM1y---01 | B156: Biomasse | C156: Inbetriebnahme bis 2001 | D156: 0-0,15 MW, Bonusregeln M1, y | E156: Anteil Nicht-KWK | F156: 23.67 | O156: WrK33b1eMPMOkt | P156: Wind Repowering | R156: Marktprämie für Kalendermonat Oktober bei Fernsteuerbarkeit nach § 3 Abs. 1 MaPrV (erhöhte Managementprämie)
A157: BiK51nM1KA3y01 | B157: Biomasse | C157: Inbetriebnahme bis 2001 | D157: 0-0,15 MW, Bonusregeln M1, y und K wenn Anlage 3 erfüllt | E157: Anteil KWK gemäß Anlage 3 | F157: 26.67 | O157: WrK33b1eMPMNov | P157: Wind Repowering | R157: Marktprämie für Kalendermonat November bei Fernsteuerbarkeit nach § 3 Abs. 1 MaPrV (erhöhte Managementprämie)
A158: BiK51nM1K09y01 | B158: Biomasse | C158: Inbetriebnahme bis 2001 | D158: 0-0,15 MW, Bonusregeln M1, y und K erstmals 2009 | E158: Anteil KWK, erstmals 2009 | F158: 26.67 | O158: WrK33b1eMPMDez | P158: Wind Repowering | R158: Marktprämie für Kalendermonat Dezember bei Fernsteuerbarkeit nach § 3 Abs. 1 MaPrV (erhöhte Managementprämie)
A159: BiK51nM1K10y01 | B159: Biomasse | C159: Inbetriebnahme bis 2001 | D159: 0-0,15 MW, Bonusregeln M1, y und K erstmals 2010 | E159: Anteil KWK, erstmals 2010 | F159: 26.64 | O159: SoK33b1-MPMJan | P159: Solar | R159: Marktprämie für Kalendermonat Januar (reguläre Managementprämie)
A160: BiK51nM1K11y01 | B160: Biomasse | C160: Inbetriebnahme bis 2001 | D160: 0-0,15 MW, Bonusregeln M1, y und K erstmals 2011 | E160: Anteil KWK, erstmals 2011 | F160: 26.61 | O160: SoK33b1-MPMFeb | P160: Solar | R160: Marktprämie für Kalendermonat Februar (reguläre Managementprämie)
A161: BiK51nM1K12y01 | B161: Biomasse | C161: Inbetriebnahme bis 2001 | D161: 0-0,15 MW, Bonusregeln M1, y und K erstmals 2012 | E161: Anteil KWK, erstmals 2012 | F161: 26.58 | O161: SoK33b1-MPMMrz | P161: Solar | R161: Marktprämie für Kalendermonat März (reguläre Managementprämie)
A162: BiK51nL-----01 | B162: Biomasse | C162: Inbetriebnahme bis 2001 | D162: 0-0,15 MW, Bonusregel L | E162: Anteil Nicht-KWK | F162: 20.67 | O162: SoK33b1-MPMApr | P162: Solar | R162: Marktprämie für Kalendermonat April (reguläre Managementprämie)
A163: BiK51nLKA3--01 | B163: Biomasse | C163: Inbetriebnahme bis 2001 | D163: 0-0,15 MW, Bonusregeln L und K wenn Anlage 3 erfüllt | E163: Anteil KWK gemäß Anlage 3 | F163: 23.67 | O163: SoK33b1-MPMMai | P163: Solar | R163: Marktprämie für Kalendermonat Mai (reguläre Managementprämie)
A164: BiK51nLK09--01 | B164: Biomasse | C164: Inbetriebnahme bis 2001 | D164: 0-0,15 MW, Bonusregeln L und K erstmals 2009 | E164: Anteil KWK, erstmals 2009 | F164: 23.67 | O164: SoK33b1-MPMJun | P164: Solar | R164: Marktprämie für Kalendermonat Juni (reguläre Managementprämie)
A165: BiK51nLK10--01 | B165: Biomasse | C165: Inbetriebnahme bis 2001 | D165: 0-0,15 MW, Bonusregeln L und K erstmals 2010 | E165: Anteil KWK, erstmals 2010 | F165: 23.64 | O165: SoK33b1-MPMJul | P165: Solar | R165: Marktprämie für Kalendermonat Juli (reguläre Managementprämie)
A166: BiK51nLK11--01 | B166: Biomasse | C166: Inbetriebnahme bis 2001 | D166: 0-0,15 MW, Bonusregeln L und K erstmals 2011 | E166: Anteil KWK, erstmals 2011 | F166: 23.61 | O166: SoK33b1-MPMAug | P166: Solar | R166: Marktprämie für Kalendermonat August (reguläre Managementprämie)
A167: BiK51nLK12--01 | B167: Biomasse | C167: Inbetriebnahme bis 2001 | D167: 0-0,15 MW, Bonusregeln L und K erstmals 2012 | E167: Anteil KWK, erstmals 2012 | F167: 23.58 | O167: SoK33b1-MPMSep | P167: Solar | R167: Marktprämie für Kalendermonat September (reguläre Managementprämie)
A168: BiK51nLy----01 | B168: Biomasse | C168: Inbetriebnahme bis 2001 | D168: 0-0,15 MW, Bonusregeln L, y | E168: Anteil Nicht-KWK | F168: 21.67 | O168: SoK33b1-MPMOkt | P168: Solar | R168: Marktprämie für Kalendermonat Oktober (reguläre Managementprämie)
A169: BiK51nLKA3y-01 | B169: Biomasse | C169: Inbetriebnahme bis 2001 | D169: 0-0,15 MW, Bonusregeln L, y und K wenn Anlage 3 erfüllt | E169: Anteil KWK gemäß Anlage 3 | F169: 24.67 | O169: SoK33b1-MPMNov | P169: Solar | R169: Marktprämie für Kalendermonat November (reguläre Managementprämie)
A170: BiK51nLK09y-01 | B170: Biomasse | C170: Inbetriebnahme bis 2001 | D170: 0-0,15 MW, Bonusregeln L, y und K erstmals 2009 | E170: Anteil KWK, erstmals 2009 | F170: 24.67 | O170: SoK33b1-MPMDez | P170: Solar | R170: Marktprämie für Kalendermonat Dezember (reguläre Managementprämie)
A171: BiK51nLK10y-01 | B171: Biomasse | C171: Inbetriebnahme bis 2001 | D171: 0-0,15 MW, Bonusregeln L, y und K erstmals 2010 | E171: Anteil KWK, erstmals 2010 | F171: 24.64 | O171: SoK33b1eMPMJan | P171: Solar | R171: Marktprämie für Kalendermonat Januar bei Fernsteuerbarkeit nach § 3 Abs. 1 MaPrV (erhöhte Managementprämie)
A172: BiK51nLK11y-01 | B172: Biomasse | C172: Inbetriebnahme bis 2001 | D172: 0-0,15 MW, Bonusregeln L, y und K erstmals 2011 | E172: Anteil KWK, erstmals 2011 | F172: 24.61 | O172: SoK33b1eMPMFeb | P172: Solar | R172: Marktprämie für Kalendermonat Februar bei Fernsteuerbarkeit nach § 3 Abs. 1 MaPrV (erhöhte Managementprämie)
A173: BiK51nLK12y-01 | B173: Biomasse | C173: Inbetriebnahme bis 2001 | D173: 0-0,15 MW, Bonusregeln L, y und K erstmals 2012 | E173: Anteil KWK, erstmals 2012 | F173: 24.58 | O173: SoK33b1eMPMMrz | P173: Solar | R173: Marktprämie für Kalendermonat März bei Fernsteuerbarkeit nach § 3 Abs. 1 MaPrV (erhöhte Managementprämie)
A174: BiK51nX1----01 | B174: Biomasse | C174: Inbetriebnahme bis 2001 | D174: 0-0,15 MW, Bonusregel X1 | E174: Anteil Nicht-KWK | F174: 24.67 | O174: SoK33b1eMPMApr | P174: Solar | R174: Marktprämie für Kalendermonat April bei Fernsteuerbarkeit nach § 3 Abs. 1 MaPrV (erhöhte Managementprämie)
A175: BiK51nX1KA3-01 | B175: Biomasse | C175: Inbetriebnahme bis 2001 | D175: 0-0,15 MW, Bonusregeln X1 und K wenn Anlage 3 erfüllt | E175: Anteil KWK gemäß Anlage 3 | F175: 27.67 | O175: SoK33b1eMPMMai | P175: Solar | R175: Marktprämie für Kalendermonat Mai bei Fernsteuerbarkeit nach § 3 Abs. 1 MaPrV (erhöhte Managementprämie)
A176: BiK51nX1K09-01 | B176: Biomasse | C176: Inbetriebnahme bis 2001 | D176: 0-0,15 MW, Bonusregeln X1 und K erstmals 2009 | E176: Anteil KWK, erstmals 2009 | F176: 27.67 | O176: SoK33b1eMPMJun | P176: Solar | R176: Marktprämie für Kalendermonat Juni bei Fernsteuerbarkeit nach § 3 Abs. 1 MaPrV (erhöhte Managementprämie)
A177: BiK51nX1K10-01 | B177: Biomasse | C177: Inbetriebnahme bis 2001 | D177: 0-0,15 MW, Bonusregeln X1 und K erstmals 2010 | E177: Anteil KWK, erstmals 2010 | F177: 27.64 | O177: SoK33b1eMPMJul | P177: Solar | R177: Marktprämie für Kalendermonat Juli bei Fernsteuerbarkeit nach § 3 Abs. 1 MaPrV (erhöhte Managementprämie)
A178: BiK51nX1K11-01 | B178: Biomasse | C178: Inbetriebnahme bis 2001 | D178: 0-0,15 MW, Bonusregeln X1 und K erstmals 2011 | E178: Anteil KWK, erstmals 2011 | F178: 27.61 | O178: SoK33b1eMPMAug | P178: Solar | R178: Marktprämie für Kalendermonat August bei Fernsteuerbarkeit nach § 3 Abs. 1 MaPrV (erhöhte Managementprämie)
A179: BiK51nX1K12-01 | B179: Biomasse | C179: Inbetriebnahme bis 2001 | D179: 0-0,15 MW, Bonusregeln X1 und K erstmals 2012 | E179: Anteil KWK, erstmals 2012 | F179: 27.58 | O179: SoK33b1eMPMSep | P179: Solar | R179: Marktprämie für Kalendermonat September bei Fernsteuerbarkeit nach § 3 Abs. 1 MaPrV (erhöhte Managementprämie)
A180: BiK51nX1y---01 | B180: Biomasse | C180: Inbetriebnahme bis 2001 | D180: 0-0,15 MW, Bonusregeln X1, y | E180: Anteil Nicht-KWK | F180: 25.67 | O180: SoK33b1eMPMOkt | P180: Solar | R180: Marktprämie für Kalendermonat Oktober bei Fernsteuerbarkeit nach § 3 Abs. 1 MaPrV (erhöhte Managementprämie)
A181: BiK51nX1KA3y01 | B181: Biomasse | C181: Inbetriebnahme bis 2001 | D181: 0-0,15 MW, Bonusregeln X1, y und K wenn Anlage 3 erfüllt | E181: Anteil KWK gemäß Anlage 3 | F181: 28.67 | O181: SoK33b1eMPMNov | P181: Solar | R181: Marktprämie für Kalendermonat November bei Fernsteuerbarkeit nach § 3 Abs. 1 MaPrV (erhöhte Managementprämie)
A182: BiK51nX1K09y01 | B182: Biomasse | C182: Inbetriebnahme bis 2001 | D182: 0-0,15 MW, Bonusregeln X1, y und K erstmals 2009 | E182: Anteil KWK, erstmals 2009 | F182: 28.67 | O182: SoK33b1eMPMDez | P182: Solar | R182: Marktprämie für Kalendermonat Dezember bei Fernsteuerbarkeit nach § 3 Abs. 1 MaPrV (erhöhte Managementprämie)
A183: BiK51nX1K10y01 | B183: Biomasse | C183: Inbetriebnahme bis 2001 | D183: 0-0,15 MW, Bonusregeln X1, y und K erstmals 2010 | E183: Anteil KWK, erstmals 2010 | F183: 28.64 | O183: SgK33b1-MPMJan | P183: Solar/Gebäude | R183: Marktprämie für Kalendermonat Januar (reguläre Managementprämie)
A184: BiK51nX1K11y01 | B184: Biomasse | C184: Inbetriebnahme bis 2001 | D184: 0-0,15 MW, Bonusregeln X1, y und K erstmals 2011 | E184: Anteil KWK, erstmals 2011 | F184: 28.61 | O184: SgK33b1-MPMFeb | P184: Solar/Gebäude | R184: Marktprämie für Kalendermonat Februar (reguläre Managementprämie)
A185: BiK51nX1K12y01 | B185: Biomasse | C185: Inbetriebnahme bis 2001 | D185: 0-0,15 MW, Bonusregeln X1, y und K erstmals 2012 | E185: Anteil KWK, erstmals 2012 | F185: 28.58 | O185: SgK33b1-MPMMrz | P185: Solar/Gebäude | R185: Marktprämie für Kalendermonat März (reguläre Managementprämie)
A186: BiK51a------01 | B186: Biomasse | C186: Inbetriebnahme bis 2001 | D186: 0,150-0,5 MW | E186: Anteil Nicht-KWK | F186: 10.23 | O186: SgK33b1-MPMApr | P186: Solar/Gebäude | R186: Marktprämie für Kalendermonat April (reguläre Managementprämie)
A187: BiK51aKA3---01 | B187: Biomasse | C187: Inbetriebnahme bis 2001 | D187: 0,150-0,5 MW, Bonusregel K wenn Anlage 3 erfüllt | E187: Anteil KWK gemäß Anlage 3 | F187: 13.23 | O187: SgK33b1-MPMMai | P187: Solar/Gebäude | R187: Marktprämie für Kalendermonat Mai (reguläre Managementprämie)
A188: BiK51aK09---01 | B188: Biomasse | C188: Inbetriebnahme bis 2001 | D188: 0,150-0,5 MW, Bonusregel K erstmals 2009 | E188: Anteil KWK, erstmals 2009 | F188: 13.23 | O188: SgK33b1-MPMJun | P188: Solar/Gebäude | R188: Marktprämie für Kalendermonat Juni (reguläre Managementprämie)
A189: BiK51aK10---01 | B189: Biomasse | C189: Inbetriebnahme bis 2001 | D189: 0,150-0,5 MW, Bonusregel K erstmals 2010 | E189: Anteil KWK, erstmals 2010 | F189: 13.2 | O189: SgK33b1-MPMJul | P189: Solar/Gebäude | R189: Marktprämie für Kalendermonat Juli (reguläre Managementprämie)
A190: BiK51aK11---01 | B190: Biomasse | C190: Inbetriebnahme bis 2001 | D190: 0,150-0,5 MW, Bonusregel K erstmals 2011 | E190: Anteil KWK, erstmals 2011 | F190: 13.17 | O190: SgK33b1-MPMAug | P190: Solar/Gebäude | R190: Marktprämie für Kalendermonat August (reguläre Managementprämie)
A191: BiK51aK12---01 | B191: Biomasse | C191: Inbetriebnahme bis 2001 | D191: 0,150-0,5 MW, Bonusregel K erstmals 2012 | E191: Anteil KWK, erstmals 2012 | F191: 13.14 | O191: SgK33b1-MPMSep | P191: Solar/Gebäude | R191: Marktprämie für Kalendermonat September (reguläre Managementprämie)
A192: BiK51ay-----01 | B192: Biomasse | C192: Inbetriebnahme bis 2001 | D192: 0,150-0,5 MW, Bonusregel y | E192: Anteil Nicht-KWK | F192: 11.23 | O192: SgK33b1-MPMOkt | P192: Solar/Gebäude | R192: Marktprämie für Kalendermonat Oktober (reguläre Managementprämie)
A193: BiK51aKA3y--01 | B193: Biomasse | C193: Inbetriebnahme bis 2001 | D193: 0,150-0,5 MW, Bonusregeln y und K wenn Anlage 3 erfüllt | E193: Anteil KWK gemäß Anlage 3 | F193: 14.23 | O193: SgK33b1-MPMNov | P193: Solar/Gebäude | R193: Marktprämie für Kalendermonat November (reguläre Managementprämie)
A194: BiK51aK09y--01 | B194: Biomasse | C194: Inbetriebnahme bis 2001 | D194: 0,150-0,5 MW, Bonusregeln y und K erstmals 2009 | E194: Anteil KWK, erstmals 2009 | F194: 14.23 | O194: SgK33b1-MPMDez | P194: Solar/Gebäude | R194: Marktprämie für Kalendermonat Dezember (reguläre Managementprämie)
A195: BiK51aK10y--01 | B195: Biomasse | C195: Inbetriebnahme bis 2001 | D195: 0,150-0,5 MW, Bonusregeln y und K erstmals 2010 | E195: Anteil KWK, erstmals 2010 | F195: 14.2 | O195: SgK33b1eMPMJan | P195: Solar/Gebäude | R195: Marktprämie für Kalendermonat Januar bei Fernsteuerbarkeit nach § 3 Abs. 1 MaPrV (erhöhte Managementprämie)
A196: BiK51aK11y--01 | B196: Biomasse | C196: Inbetriebnahme bis 2001 | D196: 0,150-0,5 MW, Bonusregeln y und K erstmals 2011 | E196: Anteil KWK, erstmals 2011 | F196: 14.17 | O196: SgK33b1eMPMFeb | P196: Solar/Gebäude | R196: Marktprämie für Kalendermonat Februar bei Fernsteuerbarkeit nach § 3 Abs. 1 MaPrV (erhöhte Managementprämie)
A197: BiK51aK12y--01 | B197: Biomasse | C197: Inbetriebnahme bis 2001 | D197: 0,150-0,5 MW, Bonusregeln y und K erstmals 2012 | E197: Anteil KWK, erstmals 2012 | F197: 14.14 | O197: SgK33b1eMPMMrz | P197: Solar/Gebäude | R197: Marktprämie für Kalendermonat März bei Fernsteuerbarkeit nach § 3 Abs. 1 MaPrV (erhöhte Managementprämie)
A198: BiK51aa1----01 | B198: Biomasse | C198: Inbetriebnahme bis 2001 | D198: 0,150-0,5 MW, Bonusregel a1 | E198: Anteil Nicht-KWK | F198: 16.23 | O198: SgK33b1eMPMApr | P198: Solar/Gebäude | R198: Marktprämie für Kalendermonat April bei Fernsteuerbarkeit nach § 3 Abs. 1 MaPrV (erhöhte Managementprämie)
A199: BiK51aa1KA3-01 | B199: Biomasse | C199: Inbetriebnahme bis 2001 | D199: 0,150-0,5 MW, Bonusregeln a1 und K wenn Anlage 3 erfüllt | E199: Anteil KWK gemäß Anlage 3 | F199: 19.23 | O199: SgK33b1eMPMMai | P199: Solar/Gebäude | R199: Marktprämie für Kalendermonat Mai bei Fernsteuerbarkeit nach § 3 Abs. 1 MaPrV (erhöhte Managementprämie)
A200: BiK51aa1K09-01 | B200: Biomasse | C200: Inbetriebnahme bis 2001 | D200: 0,150-0,5 MW, Bonusregeln a1 und K erstmals 2009 | E200: Anteil KWK, erstmals 2009 | F200: 19.23 | O200: SgK33b1eMPMJun | P200: Solar/Gebäude | R200: Marktprämie für Kalendermonat Juni bei Fernsteuerbarkeit nach § 3 Abs. 1 MaPrV (erhöhte Managementprämie)
... 3868 more rows

Sheet Beispiel Solarstromeigenverbr.
A1: Beispiel für den Solarstrom-Eigenverbrauch einer PV-Anlage
A3: Photovoltaikanlage an oder auf Gebäude, Inbetriebnahme im Juli 2010
A4: elektrische Leistung: 200 kW
A5: Von der gesamten im Kalenderjahr erzeugten Strommenge von 200.000 kWh werden zeitgleich 80.000 kWh nach § 33 Abs. 2 EEG selbst verbraucht.
A7: 1. Aufteilung auf die Leistungszonen
A9: Bei Photovoltaikanlagen erfolgt die Aufteilung der Einspeisung auf die Leistungszone entsprechend der installierten Leistung.
A11: Der Leistungszone 0-30 kW werden zugerechnet:
A12: 30 / 200 = 15 % der erzeugten und selbstverbrauchten Strommenge
B13: Gesamterzeugung: | D13: 30.000 kWh
B14: Selbstverbrauch: | D14: 12.000 kWh
B15: davon | C15: bis 30 % Gesamterzeugung: | D15: 9.000 kWh
C16: über 30 % Gesamterzeugung: | D16: 3.000 kWh
B17: Einspeisung ins Netz: | D17: 18.000 kWh
A19: Der Leistungszone 30-100 kW werden zugerechnet:
A20: 70 / 200 = 35 % der erzeugten und selbstverbrauchten Strommenge
B21: Gesamterzeugung: | D21: 70.000 kWh
B22: Selbstverbrauch: | D22: 28.000 kWh
B23: davon | C23: bis 30 % Gesamterzeugung: | D23: 21.000 kWh
C24: über 30 % Gesamterzeugung: | D24: 7.000 kWh
B25: Einspeisung ins Netz: | D25: 42.000 kWh
A27: Der Leistungszone 100-1000 kW werden zugerechnet:
A28: Rest: 100 / 200 = 50 % der erzeugten und selbstverbrauchten Strommenge
B29: Gesamterzeugung: | D29: 100.000 kWh
B30: Selbstverbrauch: | D30: 40.000 kWh
B31: davon | C31: bis 30 % Gesamterzeugung: | D31: 30.000 kWh
C32: über 30 % Gesamterzeugung: | D32: 10.000 kWh
B33: Einspeisung ins Netz: | D33: 60.000 kWh
A36: 2. Vergütungskategorien
A38: Aus diesen Angaben ergibt sich folgende Aufteilung der gesamten EEG-Strommenge auf die Vergütungskategorien:
A40: Vergütungskategorie | B40: Vergütungssatz der Vergütungskategorie | D40: Strommenge, die der jeweiligen Kategorie zugerechnet wird | F40: Vergütung | H40: Beschreibung der Vergütungskategorie
B41: (ct/kWh) | D41: (kWh) | F41: (Euro)
A43: SgK330---Jul10 | B43: 34.05 | D43: 18000 | F43: =D43*B43/100 -> 6129 | H43: 0-30 KW
A44: SgK33410-Jul10 | B44: 34.05 | D44: 12000 | F44: 4086 | H44: 0-30 KW, selbstverbrauchte Erzeugung
A45: SgK33420-Jul10 | B45: 16.38 | D45: -9000 | F45: -1474.2 | H45: 0-30 KW, Rückvergütung für Selbstverbrauch bis 30% der Gesamterzeugung der Anlage
A46: SgK33430-Jul10 | B46: 12 | D46: -3000 | F46: -360 | H46: 0-30 KW, Rückvergütung für Selbstverbrauch über 30% der Gesamterzeugung der Anlage
A47: SgK331---Jul10 | B47: 32.39 | D47: 42000 | F47: 13603.8 | H47: 30-100 KW
A48: SgK33411-Jul10 | B48: 32.39 | D48: 28000 | F48: 9069.2 | H48: 30-100 KW, selbstverbrauchte Erzeugung
A49: SgK33421-Jul10 | B49: 16.38 | D49: -21000 | F49: -3439.8 | H49: 30-100 KW, Rückvergütung für Selbstverbrauch bis 30% der Gesamterzeugung der Anlage
A50: SgK33431-Jul10 | B50: 12 | D50: -7000 | F50: -840 | H50: 30-100 KW, Rückvergütung für Selbstverbrauch über 30% der Gesamterzeugung der Anlage
A51: SgK332---Jul10 | B51: 30.65 | D51: 60000 | F51: 18390 | H51: 100 KW-1 MW
A52: SgK33412-Jul10 | B52: 30.65 | D52: 40000 | F52: 12260 | H52: 100-500 KW, selbstverbrauchte Erzeugung
A53: SgK33422-Jul10 | B53: 16.38 | D53: -30000 | F53: -4914 | H53: 100-500 KW, Rückvergütung für Selbstverbrauch bis 30% der Gesamterzeugung der Anlage
A54: SgK33432-Jul10 | B54: 12 | D54: -10000 | F54: -1200 | H54: 100-500 KW, Rückvergütung für Selbstverbrauch über 30% der Gesamterzeugung der Anlage
A56: Summe | D56: =SUM(D43:D54) -> 120000 | F56: =SUM(F43:F54) -> 51310
A58: Die summierte Strommenge von 120.000 kWh entspricht der tatsächlichen Netzeinspeisung.
A59: Diese Strommenge ist bei der Berechnung der vermiedenen Netzentgelte zugrunde zu legen.
A60: Das heißt, dass für den selbst verbrauchten Strom (im Beispiel 80.000 kWh) keine vermiedenen Netzentgelte berechnet werden.
A63: 3. Berechnung der vermiedenen Netzentgelte:
A65: Erfolgt die Einspeisung z.B. in Spannungsebene 5 (Mittelspannung), so werden die vermiedenen Netzentgelte in die vNNE-Kategorie
A66: der Spannungsebene 5 eingetragen:
A67: Sg-vNNe--SpE05
A69: Die Höhe der vermiedenen Netzentgelte bemisst sich allerdings nach den Netzentgelten (Leistungsanteil und Arbeitsanteil) der
A70: Spannungsebene, in der durch die EEG-Einspeisung Netznutzung vermieden wird.
A71: In der Regel ist dies die Netz- bzw. Umspannebene, die der Einspeiseebene direkt vorgelagert ist - in diesem Beispiel wäre demnach
A72: das Netzentgelt der Ebene 4 (HS/MS) für die Berechnung der vermiedenen Netzentgelte maßgeblich.

Sheet Beispiel Biomasseanlage
A1: Beispiel für die Einordnung einer EEG-Anlage in die zutreffenden EEG-Vergütungskategorien
A3: Biomasseanlage, Inbetriebnahme in 2006
A4: elektrische Leistung: 400 kW
A5: Stromerzeugung erfolgt zu 30% in KWK-Betrieb, Anforderungen der Anlage 3 zum EEG werden erfüllt
A6: Die Anlage hat Anspruch auf den allgemeinen NaWaRo-Bonus a1
A8: Berechnung der EEG-Vergütung in 2009:
A10: 1. Berechnung der Leistung nach § 18 Abs. 2 EEG, die für die Aufteilung in die Vergütungszonen relevant ist ("Bemessungsleistung"):
A12: EEG-Strom-Erzeugung in 2009: | D12: W2009 = | E12: 3285000 | F12: kWh
A14: Anzahl der Stunden des Jahres 2009: | D14: n2009 = | E14: 8760 | F14: h
A16: Anzahl der Stunden von Jahresbeginn 2009 bis zur erstmaligen
A17: Erzeugung von Strom aus Erneuerbaren Energien | D17: n2009,vorEEGErzeugung = | E17: 0 | F17: h
A19: Anzahl der Stunden im Jahr 2009 von der endgültigen
A20: Stilllegung bis zum Ende des Kalenderjahres 2009: | D20: n2009,nachStillegung = | E20: 0 | F20: h
A22: Bemessungsleistung PB,i nach § 18 Abs. 2 EEG: | D22: PB,2009 = | E22: =E12/(E14-E17-E20) -> 375 | F22: kW
A24: Formel für PB,i allgemein (vgl. EEG-Verfahrensbeschreibung):
A31: 2. Aufteilung der Stromerzeugung auf die Vergütungskategorien:
A33: zu beachten: | B33: 1. Aufteilung auf die Leistungszonen 0-150 kW und 150-500 kW
B34: 2. Aufteilung zwischen KWK-Anteil und Nicht-KWK-Anteil
A36: Der Leistungszone 0-150 kW werden zugerechnet:
A37: 150 / 375 = 40 % der erzeugten Strommenge
A38: davon entfallen | B38: 70 % auf den Nicht-KWK-Anteil und
B39: 30 % auf den KWK-Anteil
A41: Der Leistungszone 150-500 kW werden zugerechnet:
A42: (375-150) / 375 = 60 % der erzeugten Strommenge
A43: davon entfallen | B43: 70 % auf den Nicht-KWK-Anteil und
B44: 30 % auf den KWK-Anteil
A47: Aus diesen Angaben ergibt sich folgende Aufteilung der gesamten EEG-Strommenge auf die Vergütungskategorien:
A49: Vergütungskategorie | B49: Anteil der gesamten Strom-erzeugung, der der jeweilig. Kategorie zugerechnet wird | D49: Strommenge, die der jeweiligen Kategorie zugerechnet wird | F49: Vergütungssatz der Vergütungskategorie | G49: Vergütung
E50: (kWh) | F50: (ct/kWh) | G50: (Euro)
A52: BiK81a1-----06 | B52: 40% * 70% = | C52: =0.4*0.7 -> 0.28 | D52: 28% von 3.285.000 = | E52: =C52*E$12 -> 919800 | F52: 17.67 | G52: =E52*F52/100 -> 162528.66
A53: BiK81a1KA3--06 | B53: 40% * 30% = | C53: =0.4*0.3 -> 0.12 | D53: 12% von 3.285.000 = | E53: =C53*E$12 -> 394200 | F53: 20.67 | G53: =E53*F53/100 -> 81481.14
A54: BiK82a1-----06 | B54: 60% * 70% = | C54: =0.6*0.7 -> 0.42 | D54: 42% von 3.285.000 = | E54: =C54*E$12 -> 1379700 | F54: 15.6 | G54: =E54*F54/100 -> 215233.2
A55: BiK82a1KA3--06 | B55: 60% * 30% = | C55: =0.6*0.3 -> 0.18 | D55: 18% von 3.285.000 = | E55: =C55*E$12 -> 591300 | F55: 18.6 | G55: =E55*F55/100 -> 109981.8
A57: Summe | C57: =SUM(C52:C55) -> 1 | E57: =SUM(E52:E55) -> 3285000 | G57: =SUM(G52:G55) -> 569224.8
A60: In Formelschreibweise lässt sich die Vergütungsberechnung für 2009 in diesem Beispiel wie folgt darstellen:
A75: = 162.528,66 Euro + 81.481.14 Euro + 215.233,20 Euro + 109.981,80 Euro
A77: = 569.224,80 Euro
A82: 3. Berechnung der vermiedenen Netzentgelte:
A84: Erfolgt die Einspeisung z.B. in Spannungsebene 5 (Mittelspannung), so werden die vermiedenen Netzentgelte in die vNNE-Kategorie
A85: der Spannungsebene 5 eingetragen:
A86: Bi-vNNe--SpE05
A88: Die Höhe der vermiedenen Netzentgelte bemisst sich allerdings nach den Netzentgelten (Leistungsanteil und Arbeitsanteil) der
A89: Spannungsebene, in der durch die EEG-Einspeisung Netznutzung vermieden wird.
A90: In der Regel ist dies die Netz- bzw. Umspannebene, die der Einspeiseebene direkt vorgelagert ist - in diesem Beispiel wäre demnach
A91: das Netzentgelt der Ebene 4 (HS/MS) für die Berechnung der vermiedenen Netzentgelte maßgeblich.

Sheet Konfiguration (hidden)
A1: Energieträger | B1: Typ | C1: Erlaubt in Stammdaten ? | E1: Spannungsebenen | H1: Einspeisemanagement | J1: Bundesländer | L1: Buchungstypen | N1: Prüfungsschritt/Fehlernummer: | O1: Fehlerbeschreibung | P1: Zeile (bei Schritt 1 u. 2) bzw. Anlagenschlüssel (bei Schritt 3) | Q1: Tabellenblatt (nur bei Schritt 1 und 2) | R1: Spalte (nur bei Schritt 2, sofern möglich) | U1: Inbetriebnahmejahre | V1: Von | W1: Bis | Y1: SORT_KEY | Z1: TYP | AA1: EEG_Kategorien | AB1: VEG | AC1: VEG_KONTROLLE | AD1: VIN_Kontrolle | AE1: VIN | AF1: Leistungsgrenze Von | AG1: Leistungsgrenze Bis | AH1: Ergänzende Infos | AI1: TEC-Bonus | AJ1: KWK-Bonus | AK1: RV-Anteil | AL1: KWK | AM1: Sv o. Spanungsebene o. Bezugsmonat bei DV | AN1: Vergütungssatz | AO1: Fernsteuerbar | AR1: MPM-Auswahl | AU1: Erläuterung der 3 Prüfungsschritte:
A2: Wasser | B2: Wasserkraft | C2: Ja | E2: HöS | F2: keine gültige Spannungsebene | H2: Nicht regelbar | J2: Baden-Württemberg | L2: BIL | U2: Inbetriebnahme 01.01. bis 31.07.2004 | V2: 2004-01-01 | W2: 2004-07-31 | Y2: 1 | Z2: EEG | AA2: WaK41a------01 | AB2: Wasser | AC2: =VLOOKUP(AB2,ENERGIETRAEGER,1,FALSE) -> Wasser | AD2: =VLOOKUP(AE2,VIN,1,FALSE) -> Inbetriebnahme bis 2001 | AE2: Inbetriebnahme bis 2001 | AH2: 0-0,5 MW | AN2: 7.67 | AQ2: EEG | AR2: WaK41a------01 | AU2: Schritt 1 von 3 (Stammdatenprüfung): | AV2: Prüfung der Stammdaten (Tabellenblatt "Stammdaten") auf Vollständigkeit und Gültigkeit
A3: Biomasse | B3: Biomasse | C3: Ja | E3: Hös/HS | F3: Spannungsebene: HöS | H3: regelbar nach § 6 Abs. 1 EEG 2012 | J3: Bayern | L3: BIP | U3: Inbetriebnahme 01-03/2012 | V3: 2012-01-01 | W3: 2012-03-31 | Y3: 2 | Z3: EEG | AA3: WaK42a------01 | AB3: Wasser | AC3: Wasser | AD3: Inbetriebnahme bis 2001 | AE3: Inbetriebnahme bis 2001 | AH3: 0,5-5 MW | AN3: 6.65 | AQ3: EEG | AR3: WaK42a------01 | AU3: Schritt 2a von 3 (Bewegungsdatenprüfung ohne Marktprämie): | AV3: Prüfung der Angaben in den Tabellenblättern "Festvergütung_GSP_Sonst" und "vNE" auf Vollständigkeit und Gültigkeit (nur möglich, wenn die Stammdatenprüfung ohne Fehler durchlaufen wurde)
A4: Geothermie | B4: Geothermie | C4: Ja | E4: HS | F4: Spannungsebene: Hös/HS | H4: regelbar nach § 6 Abs. 2 EEG 2012 | J4: Hessen | L4: GAL | U4: Inbetriebnahme 01-06/2010 | V4: 2010-01-01 | W4: 2010-06-30 | Y4: 3 | Z4: EEG | AA4: WaK41a------02 | AB4: Wasser | AC4: Wasser | AD4: Inbetriebnahme 2002 | AE4: Inbetriebnahme 2002 | AH4: 0-0,5 MW | AN4: 7.67 | AQ4: EEG | AR4: WaK41a------02 | AU4: Schritt 2b von 3 (Bewegungsdatenprüfung für Marktprämie): | AV4: Prüfung der Angaben zur Direktvermarktung vom Typ Marktprämie (Tabellenblätter "MPM_anzulegender_Wert" und "MPM_Monatswerte") auf Vollständigkeit und Gültigkeit (nur möglich, wenn die Stammdatenprüfung ohne Fehler durchlaufen wurde)
A5: Wind | B5: Windenergie | C5: Ja | E5: HS/MS | F5: Spannungsebene: HS | H5: 70%-Begrenzung | J5: Rheinland-Pfalz | L5: GAP | U5: Inbetriebnahme 01-07/2004 | V5: 2004-01-01 | W5: 2004-07-31 | Y5: 4 | Z5: EEG | AA5: WaK42a------02 | AB5: Wasser | AC5: Wasser | AD5: Inbetriebnahme 2002 | AE5: Inbetriebnahme 2002 | AH5: 0,5-5 MW | AN5: 6.65 | AQ5: EEG | AR5: WaK42a------02 | AU5: Schritt 3 von 3 (abschließende Prüfung) | AV5: Prüfung der Gesamtergebnisse auf Plausibilität und Vollständigkeit (nur möglich, wenn alle vorherigen Prüfungsschritte ohne Fehler durchlaufen wurden)
A6: Solar | B6: Solar | C6: Ja | E6: MS | F6: Spannungsebene: HS/MS | L6: GEL | U6: Inbetriebnahme 04/2012 | V6: 2012-04-01 | W6: 2012-04-30 | Y6: 5 | Z6: EEG | AA6: WaK41a------03 | AB6: Wasser | AC6: Wasser | AD6: Inbetriebnahme 2003 | AE6: Inbetriebnahme 2003 | AH6: 0-0,5 MW | AN6: 7.67 | AQ6: EEG | AR6: WaK41a------03
A7: Solar/Gebäude | B7: Solar | C7: Ja | E7: MS/NS | F7: Spannungsebene: MS | L7: GEP | U7: Inbetriebnahme 04-06/2012 | V7: 2012-04-01 | W7: 2012-06-30 | Y7: 6 | Z7: EEG | AA7: WaK42a------03 | AB7: Wasser | AC7: Wasser | AD7: Inbetriebnahme 2003 | AE7: Inbetriebnahme 2003 | AH7: 0,5-5 MW | AN7: 6.65 | AQ7: EEG | AR7: WaK42a------03
A8: Deponiegas | B8: Deponie-, Klär-, Grubengas | C8: Ja | E8: NS | F8: Spannungsebene: MS/NS | L8: SOL | U8: Inbetriebnahme 05/2012 | V8: 2012-05-01 | W8: 2012-05-31 | Y8: 7 | Z8: EEG | AA8: WaK41a------04 | AB8: Wasser | AC8: Wasser | AD8: Inbetriebnahme 01-07/2004 | AE8: Inbetriebnahme 01-07/2004 | AH8: 0-0,5 MW | AN8: 7.67 | AQ8: EEG | AR8: WaK41a------04
A9: Klärgas | B9: Deponie-, Klär-, Grubengas | C9: Ja | L9: SOP | U9: Inbetriebnahme 06/2012 | V9: 2012-06-01 | W9: 2012-06-30 | Y9: 8 | Z9: EEG | AA9: WaK42a------04 | AB9: Wasser | AC9: Wasser | AD9: Inbetriebnahme 01-07/2004 | AE9: Inbetriebnahme 01-07/2004 | AH9: 0,5-5 MW | AN9: 6.65 | AQ9: EEG | AR9: WaK42a------04
A10: Grubengas | B10: Deponie-, Klär-, Grubengas | C10: Ja | L10: SOT | U10: Inbetriebnahme 07/2012 | V10: 2012-07-01 | W10: 2012-07-31 | Y10: 9 | Z10: EEG | AA10: WaK61-------04 | AB10: Wasser | AC10: Wasser | AD10: Inbetriebnahme 08-12/2004 | AE10: Inbetriebnahme 08-12/2004 | AH10: 0-0,5 MW | AN10: 9.67 | AQ10: EEG | AR10: WaK61-------04
A11: Wind onshore | B11: Windenergie | C11: Ja | L11: WNL | U11: Inbetriebnahme 07-09/2010 | V11: 2010-07-01 | W11: 2010-09-30 | Y11: 10 | Z11: EEG | AA11: WaK62-------04 | AB11: Wasser | AC11: Wasser | AD11: Inbetriebnahme 08-12/2004 | AE11: Inbetriebnahme 08-12/2004 | AH11: 0,5-5 MW | AN11: 6.65 | AQ11: EEG | AR11: WaK62-------04
A12: Wind Repowering | B12: Windenergie | C12: Ja | L12: WNP | U12: Inbetriebnahme 08/2012 | V12: 2012-08-01 | W12: 2012-08-31 | Y12: 11 | Z12: EEG | AA12: WaK63-------04 | AB12: Wasser | AC12: Wasser | AD12: Inbetriebnahme 08-12/2004 | AE12: Inbetriebnahme 08-12/2004 | AH12: >5 MW , Zubau 0-0,5 MW | AN12: 7.67 | AQ12: EEG | AR12: WaK63-------04
A13: Windenergie Offshore | B13: Windenergie | C13: Nein | L13: WAL | U13: Inbetriebnahme 08-12/2004 | V13: 2004-08-01 | W13: 2004-12-31 | Y13: 12 | Z13: EEG | AA13: WaK64-------04 | AB13: Wasser | AC13: Wasser | AD13: Inbetriebnahme 08-12/2004 | AE13: Inbetriebnahme 08-12/2004 | AH13: >5 MW , Zubau 0,5-10 MW | AN13: 6.65 | AQ13: EEG | AR13: WaK64-------04
A14: Deponie-,Klär-,Grubengas | B14: Deponie-, Klär-, Grubengas | C14: Nein | L14: WAP | U14: Inbetriebnahme 09/2012 | V14: 2012-09-01 | W14: 2012-09-30 | Y14: 13 | Z14: EEG | AA14: WaK65-------04 | AB14: Wasser | AC14: Wasser | AD14: Inbetriebnahme 08-12/2004 | AE14: Inbetriebnahme 08-12/2004 | AH14: >5 MW , Zubau 10-20 MW | AN14: 6.1 | AQ14: EEG | AR14: WaK65-------04
U15: Inbetriebnahme 10/2012 | V15: 2012-10-01 | W15: 2012-10-31 | Y15: 14 | Z15: EEG | AA15: WaK66-------04 | AB15: Wasser | AC15: Wasser | AD15: Inbetriebnahme 08-12/2004 | AE15: Inbetriebnahme 08-12/2004 | AH15: >5 MW , Zubau 20-50 MW | AN15: 4.56 | AQ15: EEG | AR15: WaK66-------04
E16: Nein | U16: Inbetriebnahme 10-12/2010 | V16: 2010-10-01 | W16: 2010-12-31 | Y16: 15 | Z16: EEG | AA16: WaK67-------04 | AB16: Wasser | AC16: Wasser | AD16: Inbetriebnahme 08-12/2004 | AE16: Inbetriebnahme 08-12/2004 | AH16: >5 MW , Zubau 50-150 MW | AN16: 3.7 | AQ16: EEG | AR16: WaK67-------04
E17: Ja (keine Belieferung Dritter) | U17: Inbetriebnahme 11/2012 | V17: 2012-11-01 | W17: 2012-11-30 | Y17: 16 | Z17: EEG | AA17: WaK61-------05 | AB17: Wasser | AC17: Wasser | AD17: Inbetriebnahme 2005 | AE17: Inbetriebnahme 2005 | AH17: 0-0,5 MW | AN17: 9.67 | AQ17: EEG | AR17: WaK61-------05
E18: Ja (mit Belieferung Dritter) | U18: Inbetriebnahme 12/2012 | V18: 2012-12-01 | W18: 2012-12-31 | Y18: 17 | Z18: EEG | AA18: WaK62-------05 | AB18: Wasser | AC18: Wasser | AD18: Inbetriebnahme 2005 | AE18: Inbetriebnahme 2005 | AH18: 0,5-5 MW | AN18: 6.65 | AQ18: EEG | AR18: WaK62-------05
U19: Inbetriebnahme 01/2013 | V19: 2013-01-01 | W19: 2013-01-31 | Y19: 18 | Z19: EEG | AA19: WaK63-------05 | AB19: Wasser | AC19: Wasser | AD19: Inbetriebnahme 2005 | AE19: Inbetriebnahme 2005 | AH19: >5 MW , Zubau 0-0,5 MW | AN19: 7.59 | AQ19: EEG | AR19: WaK63-------05
U20: Inbetriebnahme 02/2013 | V20: 2013-02-01 | W20: 2013-02-28 | Y20: 19 | Z20: EEG | AA20: WaK64-------05 | AB20: Wasser | AC20: Wasser | AD20: Inbetriebnahme 2005 | AE20: Inbetriebnahme 2005 | AH20: >5 MW , Zubau 0,5-10 MW | AN20: 6.58 | AQ20: EEG | AR20: WaK64-------05
E21: Ja | U21: Inbetriebnahme 03/2013 | V21: 2013-03-01 | W21: 2013-03-31 | Y21: 20 | Z21: EEG | AA21: WaK65-------05 | AB21: Wasser | AC21: Wasser | AD21: Inbetriebnahme 2005 | AE21: Inbetriebnahme 2005 | AH21: >5 MW , Zubau 10-20 MW | AN21: 6.04 | AQ21: EEG | AR21: WaK65-------05
E22: Nein | U22: Inbetriebnahme 04/2013 | V22: 2013-04-01 | W22: 2013-04-30 | Y22: 21 | Z22: EEG | AA22: WaK66-------05 | AB22: Wasser | AC22: Wasser | AD22: Inbetriebnahme 2005 | AE22: Inbetriebnahme 2005 | AH22: >5 MW , Zubau 20-50 MW | AN22: 4.51 | AQ22: EEG | AR22: WaK66-------05
U23: Inbetriebnahme 05/2013 | V23: 2013-05-01 | W23: 2013-05-31 | Y23: 22 | Z23: EEG | AA23: WaK67-------05 | AB23: Wasser | AC23: Wasser | AD23: Inbetriebnahme 2005 | AE23: Inbetriebnahme 2005 | AH23: >5 MW , Zubau 50-150 MW | AN23: 3.66 | AQ23: EEG | AR23: WaK67-------05
U24: Inbetriebnahme 06/2013 | V24: 2013-06-01 | W24: 2013-06-30 | Y24: 23 | Z24: EEG | AA24: WaK61-------06 | AB24: Wasser | AC24: Wasser | AD24: Inbetriebnahme 2006 | AE24: Inbetriebnahme 2006 | AH24: 0-0,5 MW | AN24: 9.67 | AQ24: EEG | AR24: WaK61-------06
U25: Inbetriebnahme 07/2013 | V25: 2013-07-01 | W25: 2013-07-31 | Y25: 24 | Z25: EEG | AA25: WaK62-------06 | AB25: Wasser | AC25: Wasser | AD25: Inbetriebnahme 2006 | AE25: Inbetriebnahme 2006 | AH25: 0,5-5 MW | AN25: 6.65 | AQ25: EEG | AR25: WaK62-------06
U26: Inbetriebnahme 08/2013 | V26: 2013-08-01 | W26: 2013-08-31 | Y26: 25 | Z26: EEG | AA26: WaK63-------06 | AB26: Wasser | AC26: Wasser | AD26: Inbetriebnahme 2006 | AE26: Inbetriebnahme 2006 | AH26: >5 MW, Zubau 0-0,5 MW | AN26: 7.51 | AQ26: EEG | AR26: WaK63-------06
U27: Inbetriebnahme 09/2013 | V27: 2013-09-01 | W27: 2013-09-30 | Y27: 26 | Z27: EEG | AA27: WaK64-------06 | AB27: Wasser | AC27: Wasser | AD27: Inbetriebnahme 2006 | AE27: Inbetriebnahme 2006 | AH27: >5 MW, Zubau 0,5-10 MW | AN27: 6.51 | AQ27: EEG | AR27: WaK64-------06
U28: Inbetriebnahme 10/2013 | V28: 2013-10-01 | W28: 2013-10-31 | Y28: 27 | Z28: EEG | AA28: WaK65-------06 | AB28: Wasser | AC28: Wasser | AD28: Inbetriebnahme 2006 | AE28: Inbetriebnahme 2006 | AH28: >5 MW , Zubau 10-20 MW | AN28: 5.98 | AQ28: EEG | AR28: WaK65-------06
U29: Inbetriebnahme 11/2013 | V29: 2013-11-01 | W29: 2013-11-30 | Y29: 28 | Z29: EEG | AA29: WaK66-------06 | AB29: Wasser | AC29: Wasser | AD29: Inbetriebnahme 2006 | AE29: Inbetriebnahme 2006 | AH29: >5 MW , Zubau 20-50 MW | AN29: 4.46 | AQ29: EEG | AR29: WaK66-------06
U30: Inbetriebnahme 12/2013 | V30: 2013-12-01 | W30: 2013-12-31 | Y30: 29 | Z30: EEG | AA30: WaK67-------06 | AB30: Wasser | AC30: Wasser | AD30: Inbetriebnahme 2006 | AE30: Inbetriebnahme 2006 | AH30: >5 MW , Zubau 50-150 MW | AN30: 3.62 | AQ30: EEG | AR30: WaK67-------06
U31: Inbetriebnahme 2002 | V31: 2002-01-01 | W31: 2002-12-31 | Y31: 30 | Z31: EEG | AA31: WaK61-------07 | AB31: Wasser | AC31: Wasser | AD31: Inbetriebnahme 2007 | AE31: Inbetriebnahme 2007 | AH31: 0-0,5 MW | AN31: 9.67 | AQ31: EEG | AR31: WaK61-------07
U32: Inbetriebnahme 2003 | V32: 2003-01-01 | W32: 2003-12-31 | Y32: 31 | Z32: EEG | AA32: WaK62-------07 | AB32: Wasser | AC32: Wasser | AD32: Inbetriebnahme 2007 | AE32: Inbetriebnahme 2007 | AH32: 0,5-5 MW | AN32: 6.65 | AQ32: EEG | AR32: WaK62-------07
U33: Inbetriebnahme 2004 | V33: 2004-01-01 | W33: 2004-12-31 | Y33: 32 | Z33: EEG | AA33: WaK63-------07 | AB33: Wasser | AC33: Wasser | AD33: Inbetriebnahme 2007 | AE33: Inbetriebnahme 2007 | AH33: >5 MW , Zubau 0-0,5 MW | AN33: 7.43 | AQ33: EEG | AR33: WaK63-------07
U34: Inbetriebnahme 2005 | V34: 2005-01-01 | W34: 2005-12-31 | Y34: 33 | Z34: EEG | AA34: WaK64-------07 | AB34: Wasser | AC34: Wasser | AD34: Inbetriebnahme 2007 | AE34: Inbetriebnahme 2007 | AH34: >5 MW , Zubau 0,5-10 MW | AN34: 6.44 | AQ34: EEG | AR34: WaK64-------07
U35: Inbetriebnahme 2006 | V35: 2006-01-01 | W35: 2006-12-31 | Y35: 34 | Z35: EEG | AA35: WaK65-------07 | AB35: Wasser | AC35: Wasser | AD35: Inbetriebnahme 2007 | AE35: Inbetriebnahme 2007 | AH35: >5 MW , Zubau 10-20 MW | AN35: 5.92 | AQ35: EEG | AR35: WaK65-------07
U36: Inbetriebnahme 2007 | V36: 2007-01-01 | W36: 2007-12-31 | Y36: 35 | Z36: EEG | AA36: WaK66-------07 | AB36: Wasser | AC36: Wasser | AD36: Inbetriebnahme 2007 | AE36: Inbetriebnahme 2007 | AH36: >5 MW , Zubau 20-50 MW | AN36: 4.42 | AQ36: EEG | AR36: WaK66-------07
U37: Inbetriebnahme 2008 | V37: 2008-01-01 | W37: 2008-12-31 | Y37: 36 | Z37: EEG | AA37: WaK67-------07 | AB37: Wasser | AC37: Wasser | AD37: Inbetriebnahme 2007 | AE37: Inbetriebnahme 2007 | AH37: >5 MW , Zubau 50-150 MW | AN37: 3.58 | AQ37: EEG | AR37: WaK67-------07
U38: Inbetriebnahme 2009 | V38: 2009-01-01 | W38: 2009-12-31 | Y38: 37 | Z38: EEG | AA38: WaK61-------08 | AB38: Wasser | AC38: Wasser | AD38: Inbetriebnahme 2008 | AE38: Inbetriebnahme 2008 | AH38: 0-0,5 MW | AN38: 9.67 | AQ38: EEG | AR38: WaK61-------08
U39: Inbetriebnahme 2010 | V39: 2010-01-01 | W39: 2010-12-31 | Y39: 38 | Z39: EEG | AA39: WaK62-------08 | AB39: Wasser | AC39: Wasser | AD39: Inbetriebnahme 2008 | AE39: Inbetriebnahme 2008 | AH39: 0,5-5 MW | AN39: 6.65 | AQ39: EEG | AR39: WaK62-------08
U40: Inbetriebnahme 2011 | V40: 2011-01-01 | W40: 2011-12-31 | Y40: 39 | Z40: EEG | AA40: WaK63-------08 | AB40: Wasser | AC40: Wasser | AD40: Inbetriebnahme 2008 | AE40: Inbetriebnahme 2008 | AH40: >5 MW , Zubau 0-0,5 MW | AN40: 7.36 | AQ40: EEG | AR40: WaK63-------08
U41: Inbetriebnahme 2012 | V41: 2012-01-01 | W41: 2012-12-31 | Y41: 40 | Z41: EEG | AA41: WaK64-------08 | AB41: Wasser | AC41: Wasser | AD41: Inbetriebnahme 2008 | AE41: Inbetriebnahme 2008 | AH41: >5 MW , Zubau 0,5-10 MW | AN41: 6.38 | AQ41: EEG | AR41: WaK64-------08
U42: Inbetriebnahme 2013 | V42: 2013-01-01 | W42: 2013-12-31 | Y42: 41 | Z42: EEG | AA42: WaK65-------08 | AB42: Wasser | AC42: Wasser | AD42: Inbetriebnahme 2008 | AE42: Inbetriebnahme 2008 | AH42: >5 MW , Zubau 10-20 MW | AN42: 5.86 | AQ42: EEG | AR42: WaK65-------08
U43: Inbetriebnahme 30.06. bis 31.12.2006 | V43: 2006-06-30 | W43: 2006-12-31 | Y43: 42 | Z43: EEG | AA43: WaK66-------08 | AB43: Wasser | AC43: Wasser | AD43: Inbetriebnahme 2008 | AE43: Inbetriebnahme 2008 | AH43: >5 MW , Zubau 20-50 MW | AN43: 4.38 | AQ43: EEG | AR43: WaK66-------08
U44: Inbetriebnahme bis 2001 | W44: 2001-12-31 | Y44: 43 | Z44: EEG | AA44: WaK67-------08 | AB44: Wasser | AC44: Wasser | AD44: Inbetriebnahme 2008 | AE44: Inbetriebnahme 2008 | AH44: >5 MW , Zubau 50-150 MW | AN44: 3.54 | AQ44: EEG | AR44: WaK67-------08
U45: Inbetriebnahme bis 2012 | W45: 2012-12-31 | Y45: 44 | Z45: EEG | AA45: WaK230------09 | AB45: Wasser | AC45: Wasser | AD45: Inbetriebnahme 2009 | AE45: Inbetriebnahme 2009 | AH45: 0-0,5 MW, Anlage < 5 MW | AN45: 12.67 | AQ45: EEG | AR45: WaK230------09
U46: Modernisierung 2012 | V46: 2012-01-01 | W46: 2012-12-31 | Y46: 45 | Z46: EEG | AA46: WaK231------09 | AB46: Wasser | AC46: Wasser | AD46: Inbetriebnahme 2009 | AE46: Inbetriebnahme 2009 | AH46: 0-0,5 MW, Anlage < 5 MW, Modernisierung | AN46: 11.67 | AQ46: EEG | AR46: WaK231------09
U47: Modernisierung 2013 | V47: 2013-01-01 | W47: 2013-12-31 | Y47: 46 | Z47: EEG | AA47: WaK232------09 | AB47: Wasser | AC47: Wasser | AD47: Inbetriebnahme 2009 | AE47: Inbetriebnahme 2009 | AH47: 0,5-2 MW, Anlage < 5 MW | AN47: 8.65 | AQ47: EEG | AR47: WaK232------09
U48: Inbetriebnahme 07-09/2012 | V48: 2012-07-01 | W48: 2012-09-30 | Y48: 47 | Z48: EEG | AA48: WaK233------09 | AB48: Wasser | AC48: Wasser | AD48: Inbetriebnahme 2009 | AE48: Inbetriebnahme 2009 | AH48: 2-5 MW, Anlage < 5 MW | AN48: 7.65 | AQ48: EEG | AR48: WaK233------09
Y49: 48 | Z49: EEG | AA49: WaK234------09 | AB49: Wasser | AC49: Wasser | AD49: Inbetriebnahme 2009 | AE49: Inbetriebnahme 2009 | AH49: 0,5-5 MW, Anlage < 5 MW, Modernisierung | AN49: 8.65 | AQ49: EEG | AR49: WaK234------09
Y50: 49 | Z50: EEG | AA50: WaK235------09 | AB50: Wasser | AC50: Wasser | AD50: Inbetriebnahme 2009 | AE50: Inbetriebnahme 2009 | AH50: >5 MW, Zubau 0-0,5 MW | AN50: 7.29 | AQ50: EEG | AR50: WaK235------09
Y51: 50 | Z51: EEG | AA51: WaK236------09 | AB51: Wasser | AC51: Wasser | AD51: Inbetriebnahme 2009 | AE51: Inbetriebnahme 2009 | AH51: >5 MW, Zubau 0,5-10 MW | AN51: 6.32 | AQ51: EEG | AR51: WaK236------09
Y52: 51 | Z52: EEG | AA52: WaK237------09 | AB52: Wasser | AC52: Wasser | AD52: Inbetriebnahme 2009 | AE52: Inbetriebnahme 2009 | AH52: >5 MW, Zubau 10-20 MW | AN52: 5.8 | AQ52: EEG | AR52: WaK237------09
Y53: 52 | Z53: EEG | AA53: WaK238------09 | AB53: Wasser | AC53: Wasser | AD53: Inbetriebnahme 2009 | AE53: Inbetriebnahme 2009 | AH53: >5 MW, Zubau 20-50 MW | AN53: 4.34 | AQ53: EEG | AR53: WaK238------09
Y54: 53 | Z54: EEG | AA54: WaK239------09 | AB54: Wasser | AC54: Wasser | AD54: Inbetriebnahme 2009 | AE54: Inbetriebnahme 2009 | AH54: >5 MW, Zubau >50 MW | AN54: 3.5 | AQ54: EEG | AR54: WaK239------09
Y55: 54 | Z55: EEG | AA55: WaK230------10 | AB55: Wasser | AC55: Wasser | AD55: Inbetriebnahme 2010 | AE55: Inbetriebnahme 2010 | AH55: 0-0,5 MW, Anlage < 5 MW | AN55: 12.67 | AQ55: EEG | AR55: WaK230------10
Y56: 55 | Z56: EEG | AA56: WaK231------10 | AB56: Wasser | AC56: Wasser | AD56: Inbetriebnahme 2010 | AE56: Inbetriebnahme 2010 | AH56: 0-0,5 MW, Anlage < 5 MW, Modernisierung | AN56: 11.67 | AQ56: EEG | AR56: WaK231------10
Y57: 56 | Z57: EEG | AA57: WaK232------10 | AB57: Wasser | AC57: Wasser | AD57: Inbetriebnahme 2010 | AE57: Inbetriebnahme 2010 | AH57: 0,5-2 MW, Anlage < 5 MW | AN57: 8.65 | AQ57: EEG | AR57: WaK232------10
Y58: 57 | Z58: EEG | AA58: WaK233------10 | AB58: Wasser | AC58: Wasser | AD58: Inbetriebnahme 2010 | AE58: Inbetriebnahme 2010 | AH58: 2-5 MW, Anlage < 5 MW | AN58: 7.65 | AQ58: EEG | AR58: WaK233------10
Y59: 58 | Z59: EEG | AA59: WaK234------10 | AB59: Wasser | AC59: Wasser | AD59: Inbetriebnahme 2010 | AE59: Inbetriebnahme 2010 | AH59: 0,5-5 MW, Anlage < 5 MW, Modernisierung | AN59: 8.65 | AQ59: EEG | AR59: WaK234------10
Y60: 59 | Z60: EEG | AA60: WaK235------10 | AB60: Wasser | AC60: Wasser | AD60: Inbetriebnahme 2010 | AE60: Inbetriebnahme 2010 | AH60: >5 MW, Zubau 0-0,5 MW | AN60: 7.22 | AQ60: EEG | AR60: WaK235------10
Y61: 60 | Z61: EEG | AA61: WaK236------10 | AB61: Wasser | AC61: Wasser | AD61: Inbetriebnahme 2010 | AE61: Inbetriebnahme 2010 | AH61: >5 MW, Zubau 0,5-10 MW | AN61: 6.26 | AQ61: EEG | AR61: WaK236------10
Y62: 61 | Z62: EEG | AA62: WaK237------10 | AB62: Wasser | AC62: Wasser | AD62: Inbetriebnahme 2010 | AE62: Inbetriebnahme 2010 | AH62: >5 MW, Zubau 10-20 MW | AN62: 5.74 | AQ62: EEG | AR62: WaK237------10
Y63: 62 | Z63: EEG | AA63: WaK238------10 | AB63: Wasser | AC63: Wasser | AD63: Inbetriebnahme 2010 | AE63: Inbetriebnahme 2010 | AH63: >5 MW, Zubau 20-50 MW | AN63: 4.3 | AQ63: EEG | AR63: WaK238------10
Y64: 63 | Z64: EEG | AA64: WaK239------10 | AB64: Wasser | AC64: Wasser | AD64: Inbetriebnahme 2010 | AE64: Inbetriebnahme 2010 | AH64: >5 MW, Zubau >50 MW | AN64: 3.47 | AQ64: EEG | AR64: WaK239------10
Y65: 64 | Z65: EEG | AA65: WaK230------11 | AB65: Wasser | AC65: Wasser | AD65: Inbetriebnahme 2011 | AE65: Inbetriebnahme 2011 | AH65: 0-0,5 MW, Anlage < 5 MW | AN65: 12.67 | AQ65: EEG | AR65: WaK230------11
Y66: 65 | Z66: EEG | AA66: WaK231------11 | AB66: Wasser | AC66: =VLOOKUP(AB66,ENERGIETRAEGER,1,FALSE) -> Wasser | AD66: =VLOOKUP(AE66,VIN,1,FALSE) -> Inbetriebnahme 2011 | AE66: Inbetriebnahme 2011 | AH66: 0-0,5 MW, Anlage < 5 MW, Modernisierung | AN66: 11.67 | AQ66: EEG | AR66: WaK231------11
Y67: 66 | Z67: EEG | AA67: WaK232------11 | AB67: Wasser | AC67: Wasser | AD67: Inbetriebnahme 2011 | AE67: Inbetriebnahme 2011 | AH67: 0,5-2 MW, Anlage < 5 MW | AN67: 8.65 | AQ67: EEG | AR67: WaK232------11
Y68: 67 | Z68: EEG | AA68: WaK233------11 | AB68: Wasser | AC68: Wasser | AD68: Inbetriebnahme 2011 | AE68: Inbetriebnahme 2011 | AH68: 2-5 MW, Anlage < 5 MW | AN68: 7.65 | AQ68: EEG | AR68: WaK233------11
Y69: 68 | Z69: EEG | AA69: WaK234------11 | AB69: Wasser | AC69: Wasser | AD69: Inbetriebnahme 2011 | AE69: Inbetriebnahme 2011 | AH69: 0,5-5 MW, Anlage < 5 MW, Modernisierung | AN69: 8.65 | AQ69: EEG | AR69: WaK234------11
Y70: 69 | Z70: EEG | AA70: WaK235------11 | AB70: Wasser | AC70: Wasser | AD70: Inbetriebnahme 2011 | AE70: Inbetriebnahme 2011 | AH70: >5 MW, Zubau 0-0,5 MW | AN70: 7.14 | AQ70: EEG | AR70: WaK235------11
Y71: 70 | Z71: EEG | AA71: WaK236------11 | AB71: Wasser | AC71: Wasser | AD71: Inbetriebnahme 2011 | AE71: Inbetriebnahme 2011 | AH71: >5 MW, Zubau 0,5-10 MW | AN71: 6.19 | AQ71: EEG | AR71: WaK236------11
Y72: 71 | Z72: EEG | AA72: WaK237------11 | AB72: Wasser | AC72: Wasser | AD72: Inbetriebnahme 2011 | AE72: Inbetriebnahme 2011 | AH72: >5 MW, Zubau 10-20 MW | AN72: 5.68 | AQ72: EEG | AR72: WaK237------11
Y73: 72 | Z73: EEG | AA73: WaK238------11 | AB73: Wasser | AC73: Wasser | AD73: Inbetriebnahme 2011 | AE73: Inbetriebnahme 2011 | AH73: >5 MW, Zubau 20-50 MW | AN73: 4.25 | AQ73: EEG | AR73: WaK238------11
Y74: 73 | Z74: EEG | AA74: WaK239------11 | AB74: Wasser | AC74: Wasser | AD74: Inbetriebnahme 2011 | AE74: Inbetriebnahme 2011 | AH74: >5 MW, Zubau >50 MW | AN74: 3.43 | AQ74: EEG | AR74: WaK239------11
Y75: 74 | Z75: EEG | AA75: WaK230BS----12 | AB75: Wasser | AC75: Wasser | AD75: Inbetriebnahme 2012 | AE75: Inbetriebnahme 2012 | AH75: 0-0,5 MW, Anlage 0,5-5 MW, wasserrechtliche Genehmigung vor 01.01.2012 (Bestandsschutz nach § 66 Abs. 5 EEG 2012) | AN75: 12.67 | AQ75: EEG | AR75: WaK230BS----12
Y76: 75 | Z76: EEG | AA76: WaK231BS----12 | AB76: Wasser | AC76: Wasser | AD76: Modernisierung 2012 | AE76: Modernisierung 2012 | AH76: 0-0,5 MW, Anlage < 5 MW mit IB vor 01.08.2004, Modernisierung (Bestandsschutz nach § 66 Abs. 14 EEG 2012) | AN76: 11.67 | AQ76: EEG | AR76: WaK231BS----12
Y77: 76 | Z77: EEG | AA77: WaK232BS----12 | AB77: Wasser | AC77: Wasser | AD77: Inbetriebnahme 2012 | AE77: Inbetriebnahme 2012 | AH77: 0,5-2 MW, Anlage 0,5-5 MW, wasserrechtliche Genehmigung vor 01.01.2012 (Bestandsschutz nach § 66 Abs. 5 EEG 2012) | AN77: 8.65 | AQ77: EEG | AR77: WaK232BS----12
Y78: 77 | Z78: EEG | AA78: WaK233BS----12 | AB78: Wasser | AC78: Wasser | AD78: Inbetriebnahme 2012 | AE78: Inbetriebnahme 2012 | AH78: 2-5 MW, Anlage 0,5-5 MW, wasserrechtliche Genehmigung vor 01.01.2012 (Bestandsschutz nach § 66 Abs. 5 EEG 2012) | AN78: 7.65 | AQ78: EEG | AR78: WaK233BS----12
Y79: 78 | Z79: EEG | AA79: WaK234BS----12 | AB79: Wasser | AC79: Wasser | AD79: Modernisierung 2012 | AE79: Modernisierung 2012 | AH79: 0,5-5 MW, Anlage < 5 MW mit IB vor 01.08.2004, Modernisierung (Bestandsschutz nach § 66 Abs. 14 EEG 2012) | AN79: 8.65 | AQ79: EEG | AR79: WaK234BS----12
Y80: 79 | Z80: EEG | AA80: WaK230------12 | AB80: Wasser | AC80: Wasser | AD80: Inbetriebnahme 2012 | AE80: Inbetriebnahme 2012 | AH80: 0-0,5 MW | AN80: 12.7 | AQ80: EEG | AR80: WaK230------12
Y81: 80 | Z81: EEG | AA81: WaK231------12 | AB81: Wasser | AC81: Wasser | AD81: Inbetriebnahme 2012 | AE81: Inbetriebnahme 2012 | AH81: 0,5-2 MW | AN81: 8.3 | AQ81: EEG | AR81: WaK231------12
Y82: 81 | Z82: EEG | AA82: WaK232------12 | AB82: Wasser | AC82: Wasser | AD82: Inbetriebnahme 2012 | AE82: Inbetriebnahme 2012 | AH82: 2-5 MW | AN82: 6.3 | AQ82: EEG | AR82: WaK232------12
Y83: 82 | Z83: EEG | AA83: WaK233------12 | AB83: Wasser | AC83: Wasser | AD83: Inbetriebnahme 2012 | AE83: Inbetriebnahme 2012 | AH83: 5-10 MW | AN83: 5.5 | AQ83: EEG | AR83: WaK233------12
Y84: 83 | Z84: EEG | AA84: WaK234------12 | AB84: Wasser | AC84: Wasser | AD84: Inbetriebnahme 2012 | AE84: Inbetriebnahme 2012 | AH84: 10-20 MW | AN84: 5.3 | AQ84: EEG | AR84: WaK234------12
Y85: 84 | Z85: EEG | AA85: WaK235------12 | AB85: Wasser | AC85: Wasser | AD85: Inbetriebnahme 2012 | AE85: Inbetriebnahme 2012 | AH85: 20-50 MW | AN85: 4.2 | AQ85: EEG | AR85: WaK235------12
Y86: 85 | Z86: EEG | AA86: WaK236------12 | AB86: Wasser | AC86: Wasser | AD86: Inbetriebnahme 2012 | AE86: Inbetriebnahme 2012 | AH86: > 50 MW | AN86: 3.4 | AQ86: EEG | AR86: WaK236------12
Y87: 86 | Z87: EEG | AA87: WaK230M-----12 | AB87: Wasser | AC87: Wasser | AD87: Modernisierung 2012 | AE87: Modernisierung 2012 | AH87: 0-0,5 MW, IB vor 01.01.2009, Modernisierung 2012 | AN87: 12.7 | AQ87: EEG | AR87: WaK230M-----12
Y88: 87 | Z88: EEG | AA88: WaK231M-----12 | AB88: Wasser | AC88: Wasser | AD88: Modernisierung 2012 | AE88: Modernisierung 2012 | AH88: 0,5-2 MW, IB vor 01.01.2009, Modernisierung 2012 | AN88: 8.3 | AQ88: EEG | AR88: WaK231M-----12
Y89: 88 | Z89: EEG | AA89: WaK232M-----12 | AB89: Wasser | AC89: Wasser | AD89: Modernisierung 2012 | AE89: Modernisierung 2012 | AH89: 2-5 MW, IB vor 01.01.2009, Modernisierung 2012 | AN89: 6.3 | AQ89: EEG | AR89: WaK232M-----12
Y90: 89 | Z90: EEG | AA90: WaK233M-----12 | AB90: Wasser | AC90: Wasser | AD90: Modernisierung 2012 | AE90: Modernisierung 2012 | AH90: 5-10 MW, IB vor 01.01.2009, Modernisierung 2012 | AN90: 5.5 | AQ90: EEG | AR90: WaK233M-----12
Y91: 90 | Z91: EEG | AA91: WaK234M-----12 | AB91: Wasser | AC91: Wasser | AD91: Modernisierung 2012 | AE91: Modernisierung 2012 | AH91: 10-20 MW, IB vor 01.01.2009, Modernisierung 2012 | AN91: 5.3 | AQ91: EEG | AR91: WaK234M-----12
Y92: 91 | Z92: EEG | AA92: WaK235M-----12 | AB92: Wasser | AC92: Wasser | AD92: Modernisierung 2012 | AE92: Modernisierung 2012 | AH92: 20-50 MW, IB vor 01.01.2009, Modernisierung 2012 | AN92: 4.2 | AQ92: EEG | AR92: WaK235M-----12
Y93: 92 | Z93: EEG | AA93: WaK236M-----12 | AB93: Wasser | AC93: Wasser | AD93: Modernisierung 2012 | AE93: Modernisierung 2012 | AH93: > 50 MW, IB vor 01.01.2009, Modernisierung 2012 | AN93: 3.4 | AQ93: EEG | AR93: WaK236M-----12
Y94: 93 | Z94: EEG | AA94: WaK230BS----13 | AB94: Wasser | AC94: Wasser | AD94: Inbetriebnahme 2013 | AE94: Inbetriebnahme 2013 | AH94: 0-0,5 MW, Anlage 0,5-5 MW, wasserrechtliche Genehmigung vor 01.01.2012 (Bestandsschutz nach § 66 Abs. 5 EEG 2012) | AN94: 12.67 | AQ94: EEG | AR94: WaK230BS----13
Y95: 94 | Z95: EEG | AA95: WaK231BS----13 | AB95: Wasser | AC95: Wasser | AD95: Modernisierung 2013 | AE95: Modernisierung 2013 | AH95: 0-0,5 MW, Anlage < 5 MW mit IB vor 01.08.2004, Modernisierung (Bestandsschutz nach § 66 Abs. 14 EEG 2012) | AN95: 11.67 | AQ95: EEG | AR95: WaK231BS----13
Y96: 95 | Z96: EEG | AA96: WaK232BS----13 | AB96: Wasser | AC96: Wasser | AD96: Inbetriebnahme 2013 | AE96: Inbetriebnahme 2013 | AH96: 0,5-2 MW, Anlage 0,5-5 MW, wasserrechtliche Genehmigung vor 01.01.2012 (Bestandsschutz nach § 66 Abs. 5 EEG 2012) | AN96: 8.65 | AQ96: EEG | AR96: WaK232BS----13
Y97: 96 | Z97: EEG | AA97: WaK233BS----13 | AB97: Wasser | AC97: Wasser | AD97: Inbetriebnahme 2013 | AE97: Inbetriebnahme 2013 | AH97: 2-5 MW, Anlage 0,5-5 MW, wasserrechtliche Genehmigung vor 01.01.2012 (Bestandsschutz nach § 66 Abs. 5 EEG 2012) | AN97: 7.65 | AQ97: EEG | AR97: WaK233BS----13
Y98: 97 | Z98: EEG | AA98: WaK234BS----13 | AB98: Wasser | AC98: Wasser | AD98: Modernisierung 2013 | AE98: Modernisierung 2013 | AH98: 0,5-5 MW, Anlage < 5 MW mit IB vor 01.08.2004, Modernisierung (Bestandsschutz nach § 66 Abs. 14 EEG 2012) | AN98: 8.65 | AQ98: EEG | AR98: WaK234BS----13
Y99: 98 | Z99: EEG | AA99: WaK230------13 | AB99: Wasser | AC99: Wasser | AD99: Inbetriebnahme 2013 | AE99: Inbetriebnahme 2013 | AH99: 0-0,5 MW | AN99: 12.57 | AQ99: EEG | AR99: WaK230------13
Y100: 99 | Z100: EEG | AA100: WaK231------13 | AB100: Wasser | AC100: Wasser | AD100: Inbetriebnahme 2013 | AE100: Inbetriebnahme 2013 | AH100: 0,5-2 MW | AN100: 8.22 | AQ100: EEG | AR100: WaK231------13
Y101: 100 | Z101: EEG | AA101: WaK232------13 | AB101: Wasser | AC101: Wasser | AD101: Inbetriebnahme 2013 | AE101: Inbetriebnahme 2013 | AH101: 2-5 MW | AN101: 6.24 | AQ101: EEG | AR101: WaK232------13
Y102: 101 | Z102: EEG | AA102: WaK233------13 | AB102: Wasser | AC102: Wasser | AD102: Inbetriebnahme 2013 | AE102: Inbetriebnahme 2013 | AH102: 5-10 MW | AN102: 5.45 | AQ102: EEG | AR102: WaK233------13
Y103: 102 | Z103: EEG | AA103: WaK234------13 | AB103: Wasser | AC103: Wasser | AD103: Inbetriebnahme 2013 | AE103: Inbetriebnahme 2013 | AH103: 10-20 MW | AN103: 5.25 | AQ103: EEG | AR103: WaK234------13
Y104: 103 | Z104: EEG | AA104: WaK235------13 | AB104: Wasser | AC104: Wasser | AD104: Inbetriebnahme 2013 | AE104: Inbetriebnahme 2013 | AH104: 20-50 MW | AN104: 4.16 | AQ104: EEG | AR104: WaK235------13
Y105: 104 | Z105: EEG | AA105: WaK236------13 | AB105: Wasser | AC105: Wasser | AD105: Inbetriebnahme 2013 | AE105: Inbetriebnahme 2013 | AH105: > 50 MW | AN105: 3.37 | AQ105: EEG | AR105: WaK236------13
Y106: 105 | Z106: EEG | AA106: WaK230M-----13 | AB106: Wasser | AC106: Wasser | AD106: Modernisierung 2013 | AE106: Modernisierung 2013 | AH106: 0-0,5 MW, IB vor 01.01.2009, Modernisierung 2013 | AN106: 12.57 | AQ106: EEG | AR106: WaK230M-----13
Y107: 106 | Z107: EEG | AA107: WaK231M-----13 | AB107: Wasser | AC107: Wasser | AD107: Modernisierung 2013 | AE107: Modernisierung 2013 | AH107: 0,5-2 MW, IB vor 01.01.2009, Modernisierung 2013 | AN107: 8.22 | AQ107: EEG | AR107: WaK231M-----13
Y108: 107 | Z108: EEG | AA108: WaK232M-----13 | AB108: Wasser | AC108: Wasser | AD108: Modernisierung 2013 | AE108: Modernisierung 2013 | AH108: 2-5 MW, IB vor 01.01.2009, Modernisierung 2013 | AN108: 6.24 | AQ108: EEG | AR108: WaK232M-----13
Y109: 108 | Z109: EEG | AA109: WaK233M-----13 | AB109: Wasser | AC109: Wasser | AD109: Modernisierung 2013 | AE109: Modernisierung 2013 | AH109: 5-10 MW, IB vor 01.01.2009, Modernisierung 2013 | AN109: 5.45 | AQ109: EEG | AR109: WaK233M-----13
Y110: 109 | Z110: EEG | AA110: WaK234M-----13 | AB110: Wasser | AC110: Wasser | AD110: Modernisierung 2013 | AE110: Modernisierung 2013 | AH110: 10-20 MW, IB vor 01.01.2009, Modernisierung 2013 | AN110: 5.25 | AQ110: EEG | AR110: WaK234M-----13
Y111: 110 | Z111: EEG | AA111: WaK235M-----13 | AB111: Wasser | AC111: Wasser | AD111: Modernisierung 2013 | AE111: Modernisierung 2013 | AH111: 20-50 MW, IB vor 01.01.2009, Modernisierung 2013 | AN111: 4.16 | AQ111: EEG | AR111: WaK235M-----13
Y112: 111 | Z112: EEG | AA112: WaK236M-----13 | AB112: Wasser | AC112: Wasser | AD112: Modernisierung 2013 | AE112: Modernisierung 2013 | AH112: > 50 MW, IB vor 01.01.2009, Modernisierung 2013 | AN112: 3.37 | AQ112: EEG | AR112: WaK236M-----13
Y113: 112 | Z113: EEG | AA113: BiK51n------01 | AB113: Biomasse | AC113: Biomasse | AD113: Inbetriebnahme bis 2001 | AE113: Inbetriebnahme bis 2001 | AH113: 0-0,150 MW | AJ113: =IF(ISERR(FIND("Anteil KWK",AL113)),"","Ja") ->  | AL113: Anteil Nicht-KWK | AN113: 11.67 | AQ113: EEG | AR113: BiK51n------01
Y114: 113 | Z114: EEG | AA114: BiK51nKA3---01 | AB114: Biomasse | AC114: Biomasse | AD114: Inbetriebnahme bis 2001 | AE114: Inbetriebnahme bis 2001 | AH114: 0-0,150 MW, Bonusregel K wenn Anlage 3 erfüllt | AJ114: =IF(ISERR(FIND("Anteil KWK",AL114)),"","Ja") -> Ja | AL114: Anteil KWK gemäß Anlage 3 | AN114: 14.67 | AQ114: EEG | AR114: BiK51nKA3---01
Y115: 114 | Z115: EEG | AA115: BiK51nK09---01 | AB115: Biomasse | AC115: Biomasse | AD115: Inbetriebnahme bis 2001 | AE115: Inbetriebnahme bis 2001 | AH115: 0-0,150 MW, Bonusregel K erstmals 2009 | AJ115: Ja | AL115: Anteil KWK, erstmals 2009 | AN115: 14.67 | AQ115: EEG | AR115: BiK51nK09---01
Y116: 115 | Z116: EEG | AA116: BiK51nK10---01 | AB116: Biomasse | AC116: Biomasse | AD116: Inbetriebnahme bis 2001 | AE116: Inbetriebnahme bis 2001 | AH116: 0-0,150 MW, Bonusregel K erstmals 2010 | AJ116: Ja | AL116: Anteil KWK, erstmals 2010 | AN116: 14.64 | AQ116: EEG | AR116: BiK51nK10---01
Y117: 116 | Z117: EEG | AA117: BiK51nK11---01 | AB117: Biomasse | AC117: Biomasse | AD117: Inbetriebnahme bis 2001 | AE117: Inbetriebnahme bis 2001 | AH117: 0-0,150 MW, Bonusregel K erstmals 2011 | AJ117: Ja | AL117: Anteil KWK, erstmals 2011 | AN117: 14.61 | AQ117: EEG | AR117: BiK51nK11---01
Y118: 117 | Z118: EEG | AA118: BiK51nK12---01 | AB118: Biomasse | AC118: Biomasse | AD118: Inbetriebnahme bis 2001 | AE118: Inbetriebnahme bis 2001 | AH118: 0-0,150 MW, Bonusregel K erstmals 2012 | AJ118: Ja | AL118: Anteil KWK, erstmals 2012 | AN118: 14.58 | AQ118: EEG | AR118: BiK51nK12---01
Y119: 118 | Z119: EEG | AA119: BiK51ny-----01 | AB119: Biomasse | AC119: Biomasse | AD119: Inbetriebnahme bis 2001 | AE119: Inbetriebnahme bis 2001 | AH119: 0-0,150 MW, Bonusregel y | AL119: Anteil Nicht-KWK | AN119: 12.67 | AQ119: EEG | AR119: BiK51ny-----01
Y120: 119 | Z120: EEG | AA120: BiK51nKA3y--01 | AB120: Biomasse | AC120: Biomasse | AD120: Inbetriebnahme bis 2001 | AE120: Inbetriebnahme bis 2001 | AH120: 0-0,150 MW, Bonusregeln y und K wenn Anlage 3 erfüllt | AJ120: Ja | AL120: Anteil KWK gemäß Anlage 3 | AN120: 15.67 | AQ120: EEG | AR120: BiK51nKA3y--01
Y121: 120 | Z121: EEG | AA121: BiK51nK09y--01 | AB121: Biomasse | AC121: Biomasse | AD121: Inbetriebnahme bis 2001 | AE121: Inbetriebnahme bis 2001 | AH121: 0-0,150 MW, Bonusregeln y und K erstmals 2009 | AJ121: Ja | AL121: Anteil KWK, erstmals 2009 | AN121: 15.67 | AQ121: EEG | AR121: BiK51nK09y--01
Y122: 121 | Z122: EEG | AA122: BiK51nK10y--01 | AB122: Biomasse | AC122: Biomasse | AD122: Inbetriebnahme bis 2001 | AE122: Inbetriebnahme bis 2001 | AH122: 0-0,150 MW, Bonusregeln y und K erstmals 2010 | AJ122: Ja | AL122: Anteil KWK, erstmals 2010 | AN122: 15.64 | AQ122: EEG | AR122: BiK51nK10y--01
Y123: 122 | Z123: EEG | AA123: BiK51nK11y--01 | AB123: Biomasse | AC123: Biomasse | AD123: Inbetriebnahme bis 2001 | AE123: Inbetriebnahme bis 2001 | AH123: 0-0,150 MW, Bonusregeln y und K erstmals 2011 | AJ123: Ja | AL123: Anteil KWK, erstmals 2011 | AN123: 15.61 | AQ123: EEG | AR123: BiK51nK11y--01
Y124: 123 | Z124: EEG | AA124: BiK51nK12y--01 | AB124: Biomasse | AC124: Biomasse | AD124: Inbetriebnahme bis 2001 | AE124: Inbetriebnahme bis 2001 | AH124: 0-0,150 MW, Bonusregeln y und K erstmals 2012 | AJ124: Ja | AL124: Anteil KWK, erstmals 2012 | AN124: 15.58 | AQ124: EEG | AR124: BiK51nK12y--01
Y125: 124 | Z125: EEG | AA125: BiK51na1----01 | AB125: Biomasse | AC125: Biomasse | AD125: Inbetriebnahme bis 2001 | AE125: Inbetriebnahme bis 2001 | AH125: 0-0,150 MW; Bonusregel a1 | AL125: Anteil Nicht-KWK | AN125: 17.67 | AQ125: EEG | AR125: BiK51na1----01
Y126: 125 | Z126: EEG | AA126: BiK51na1KA3-01 | AB126: Biomasse | AC126: Biomasse | AD126: Inbetriebnahme bis 2001 | AE126: Inbetriebnahme bis 2001 | AH126: 0-0,150 MW, Bonusregeln a1, K wenn Anlage 3 erfüllt | AJ126: Ja | AL126: Anteil KWK gemäß Anlage 3 | AN126: 20.67 | AQ126: EEG | AR126: BiK51na1KA3-01
Y127: 126 | Z127: EEG | AA127: BiK51na1K09-01 | AB127: Biomasse | AC127: Biomasse | AD127: Inbetriebnahme bis 2001 | AE127: Inbetriebnahme bis 2001 | AH127: 0-0,150 MW, Bonusregeln a1, K erstmals 2009 | AJ127: Ja | AL127: Anteil KWK, erstmals 2009 | AN127: 20.67 | AQ127: EEG | AR127: BiK51na1K09-01
Y128: 127 | Z128: EEG | AA128: BiK51na1K10-01 | AB128: Biomasse | AC128: Biomasse | AD128: Inbetriebnahme bis 2001 | AE128: Inbetriebnahme bis 2001 | AH128: 0-0,150 MW, Bonusregeln a1, K erstmals 2010 | AJ128: Ja | AL128: Anteil KWK, erstmals 2010 | AN128: 20.64 | AQ128: EEG | AR128: BiK51na1K10-01
Y129: 128 | Z129: EEG | AA129: BiK51na1K11-01 | AB129: Biomasse | AC129: Biomasse | AD129: Inbetriebnahme bis 2001 | AE129: Inbetriebnahme bis 2001 | AH129: 0-0,150 MW, Bonusregeln a1, K erstmals 2011 | AJ129: Ja | AL129: Anteil KWK, erstmals 2011 | AN129: 20.61 | AQ129: EEG | AR129: BiK51na1K11-01
Y130: 129 | Z130: EEG | AA130: BiK51na1K12-01 | AB130: Biomasse | AC130: =VLOOKUP(AB130,ENERGIETRAEGER,1,FALSE) -> Biomasse | AD130: =VLOOKUP(AE130,VIN,1,FALSE) -> Inbetriebnahme bis 2001 | AE130: Inbetriebnahme bis 2001 | AH130: 0-0,150 MW, Bonusregeln a1, K erstmals 2012 | AJ130: Ja | AL130: Anteil KWK, erstmals 2012 | AN130: 20.58 | AQ130: EEG | AR130: BiK51na1K12-01
Y131: 130 | Z131: EEG | AA131: BiK51na1y---01 | AB131: Biomasse | AC131: Biomasse | AD131: Inbetriebnahme bis 2001 | AE131: Inbetriebnahme bis 2001 | AH131: 0-0,150 MW; Bonusregeln a1, y | AL131: Anteil Nicht-KWK | AN131: 18.67 | AQ131: EEG | AR131: BiK51na1y---01
Y132: 131 | Z132: EEG | AA132: BiK51na1KA3y01 | AB132: Biomasse | AC132: Biomasse | AD132: Inbetriebnahme bis 2001 | AE132: Inbetriebnahme bis 2001 | AH132: 0-0,150 MW, Bonusregeln a1, y und K wenn Anlage 3 erfüllt | AJ132: Ja | AL132: Anteil KWK gemäß Anlage 3 | AN132: 21.67 | AQ132: EEG | AR132: BiK51na1KA3y01
Y133: 132 | Z133: EEG | AA133: BiK51na1K09y01 | AB133: Biomasse | AC133: Biomasse | AD133: Inbetriebnahme bis 2001 | AE133: Inbetriebnahme bis 2001 | AH133: 0-0,150 MW, Bonusregeln a1, y und K erstmals 2009 | AJ133: Ja | AL133: Anteil KWK, erstmals 2009 | AN133: 21.67 | AQ133: EEG | AR133: BiK51na1K09y01
Y134: 133 | Z134: EEG | AA134: BiK51na1K10y01 | AB134: Biomasse | AC134: Biomasse | AD134: Inbetriebnahme bis 2001 | AE134: Inbetriebnahme bis 2001 | AH134: 0-0,150 MW, Bonusregeln a1, y und K erstmals 2010 | AJ134: Ja | AL134: Anteil KWK, erstmals 2010 | AN134: 21.64 | AQ134: EEG | AR134: BiK51na1K10y01
Y135: 134 | Z135: EEG | AA135: BiK51na1K11y01 | AB135: Biomasse | AC135: Biomasse | AD135: Inbetriebnahme bis 2001 | AE135: Inbetriebnahme bis 2001 | AH135: 0-0,150 MW, Bonusregeln a1, y und K erstmals 2011 | AJ135: Ja | AL135: Anteil KWK, erstmals 2011 | AN135: 21.61 | AQ135: EEG | AR135: BiK51na1K11y01
Y136: 135 | Z136: EEG | AA136: BiK51na1K12y01 | AB136: Biomasse | AC136: Biomasse | AD136: Inbetriebnahme bis 2001 | AE136: Inbetriebnahme bis 2001 | AH136: 0-0,150 MW, Bonusregeln a1, y und K erstmals 2012 | AJ136: Ja | AL136: Anteil KWK, erstmals 2012 | AN136: 21.58 | AQ136: EEG | AR136: BiK51na1K12y01
Y137: 136 | Z137: EEG | AA137: BiK51nG-----01 | AB137: Biomasse | AC137: Biomasse | AD137: Inbetriebnahme bis 2001 | AE137: Inbetriebnahme bis 2001 | AH137: 0-0,15 MW, Bonusregel G | AL137: Anteil Nicht-KWK | AN137: 18.67 | AQ137: EEG | AR137: BiK51nG-----01
Y138: 137 | Z138: EEG | AA138: BiK51nGKA3--01 | AB138: Biomasse | AC138: Biomasse | AD138: Inbetriebnahme bis 2001 | AE138: Inbetriebnahme bis 2001 | AH138: 0-0,15 MW, Bonusregeln G und K wenn Anlage 3 erfüllt | AJ138: Ja | AL138: Anteil KWK gemäß Anlage 3 | AN138: 21.67 | AQ138: EEG | AR138: BiK51nGKA3--01
Y139: 138 | Z139: EEG | AA139: BiK51nGK09--01 | AB139: Biomasse | AC139: Biomasse | AD139: Inbetriebnahme bis 2001 | AE139: Inbetriebnahme bis 2001 | AH139: 0-0,15 MW, Bonusregeln G und K erstmals 2009 | AJ139: Ja | AL139: Anteil KWK, erstmals 2009 | AN139: 21.67 | AQ139: EEG | AR139: BiK51nGK09--01
Y140: 139 | Z140: EEG | AA140: BiK51nGK10--01 | AB140: Biomasse | AC140: Biomasse | AD140: Inbetriebnahme bis 2001 | AE140: Inbetriebnahme bis 2001 | AH140: 0-0,15 MW, Bonusregeln G und K erstmals 2010 | AJ140: Ja | AL140: Anteil KWK, erstmals 2010 | AN140: 21.64 | AQ140: EEG | AR140: BiK51nGK10--01
Y141: 140 | Z141: EEG | AA141: BiK51nGK11--01 | AB141: Biomasse | AC141: Biomasse | AD141: Inbetriebnahme bis 2001 | AE141: Inbetriebnahme bis 2001 | AH141: 0-0,15 MW, Bonusregeln G und K erstmals 2011 | AJ141: Ja | AL141: Anteil KWK, erstmals 2011 | AN141: 21.61 | AQ141: EEG | AR141: BiK51nGK11--01
Y142: 141 | Z142: EEG | AA142: BiK51nGK12--01 | AB142: Biomasse | AC142: Biomasse | AD142: Inbetriebnahme bis 2001 | AE142: Inbetriebnahme bis 2001 | AH142: 0-0,15 MW, Bonusregeln G und K erstmals 2012 | AJ142: Ja | AL142: Anteil KWK, erstmals 2012 | AN142: 21.58 | AQ142: EEG | AR142: BiK51nGK12--01
Y143: 142 | Z143: EEG | AA143: BiK51nGy----01 | AB143: Biomasse | AC143: Biomasse | AD143: Inbetriebnahme bis 2001 | AE143: Inbetriebnahme bis 2001 | AH143: 0-0,15 MW, Bonusregel G, y | AL143: Anteil Nicht-KWK | AN143: 19.67 | AQ143: EEG | AR143: BiK51nGy----01
Y144: 143 | Z144: EEG | AA144: BiK51nGKA3y-01 | AB144: Biomasse | AC144: Biomasse | AD144: Inbetriebnahme bis 2001 | AE144: Inbetriebnahme bis 2001 | AH144: 0-0,15 MW, Bonusregeln G, y und K wenn Anlage 3 erfüllt | AJ144: Ja | AL144: Anteil KWK gemäß Anlage 3 | AN144: 22.67 | AQ144: EEG | AR144: BiK51nGKA3y-01
Y145: 144 | Z145: EEG | AA145: BiK51nGK09y-01 | AB145: Biomasse | AC145: Biomasse | AD145: Inbetriebnahme bis 2001 | AE145: Inbetriebnahme bis 2001 | AH145: 0-0,15 MW, Bonusregeln G, y und K erstmals 2009 | AJ145: Ja | AL145: Anteil KWK, erstmals 2009 | AN145: 22.67 | AQ145: EEG | AR145: BiK51nGK09y-01
Y146: 145 | Z146: EEG | AA146: BiK51nGK10y-01 | AB146: Biomasse | AC146: Biomasse | AD146: Inbetriebnahme bis 2001 | AE146: Inbetriebnahme bis 2001 | AH146: 0-0,15 MW, Bonusregeln G, y und K erstmals 2010 | AJ146: Ja | AL146: Anteil KWK, erstmals 2010 | AN146: 22.64 | AQ146: EEG | AR146: BiK51nGK10y-01
Y147: 146 | Z147: EEG | AA147: BiK51nGK11y-01 | AB147: Biomasse | AC147: Biomasse | AD147: Inbetriebnahme bis 2001 | AE147: Inbetriebnahme bis 2001 | AH147: 0-0,15 MW, Bonusregeln G, y und K erstmals 2011 | AJ147: Ja | AL147: Anteil KWK, erstmals 2011 | AN147: 22.61 | AQ147: EEG | AR147: BiK51nGK11y-01
Y148: 147 | Z148: EEG | AA148: BiK51nGK12y-01 | AB148: Biomasse | AC148: Biomasse | AD148: Inbetriebnahme bis 2001 | AE148: Inbetriebnahme bis 2001 | AH148: 0-0,15 MW, Bonusregeln G, y und K erstmals 2012 | AJ148: Ja | AL148: Anteil KWK, erstmals 2012 | AN148: 22.58 | AQ148: EEG | AR148: BiK51nGK12y-01
Y149: 148 | Z149: EEG | AA149: BiK51nM1----01 | AB149: Biomasse | AC149: Biomasse | AD149: Inbetriebnahme bis 2001 | AE149: Inbetriebnahme bis 2001 | AH149: 0-0,15 MW, Bonusregel M1 | AL149: Anteil Nicht-KWK | AN149: 22.67 | AQ149: EEG | AR149: BiK51nM1----01
Y150: 149 | Z150: EEG | AA150: BiK51nM1KA3-01 | AB150: Biomasse | AC150: Biomasse | AD150: Inbetriebnahme bis 2001 | AE150: Inbetriebnahme bis 2001 | AH150: 0-0,15 MW, Bonusregeln M1 und K wenn Anlage 3 erfüllt | AJ150: Ja | AL150: Anteil KWK gemäß Anlage 3 | AN150: 25.67 | AQ150: EEG | AR150: BiK51nM1KA3-01
Y151: 150 | Z151: EEG | AA151: BiK51nM1K09-01 | AB151: Biomasse | AC151: Biomasse | AD151: Inbetriebnahme bis 2001 | AE151: Inbetriebnahme bis 2001 | AH151: 0-0,15 MW, Bonusregeln M1 und K erstmals 2009 | AJ151: Ja | AL151: Anteil KWK, erstmals 2009 | AN151: 25.67 | AQ151: EEG | AR151: BiK51nM1K09-01
Y152: 151 | Z152: EEG | AA152: BiK51nM1K10-01 | AB152: Biomasse | AC152: Biomasse | AD152: Inbetriebnahme bis 2001 | AE152: Inbetriebnahme bis 2001 | AH152: 0-0,15 MW, Bonusregeln M1 und K erstmals 2010 | AJ152: Ja | AL152: Anteil KWK, erstmals 2010 | AN152: 25.64 | AQ152: EEG | AR152: BiK51nM1K10-01
Y153: 152 | Z153: EEG | AA153: BiK51nM1K11-01 | AB153: Biomasse | AC153: Biomasse | AD153: Inbetriebnahme bis 2001 | AE153: Inbetriebnahme bis 2001 | AH153: 0-0,15 MW, Bonusregeln M1 und K erstmals 2011 | AJ153: Ja | AL153: Anteil KWK, erstmals 2011 | AN153: 25.61 | AQ153: EEG | AR153: BiK51nM1K11-01
Y154: 153 | Z154: EEG | AA154: BiK51nM1K12-01 | AB154: Biomasse | AC154: Biomasse | AD154: Inbetriebnahme bis 2001 | AE154: Inbetriebnahme bis 2001 | AH154: 0-0,15 MW, Bonusregeln M1 und K erstmals 2012 | AJ154: Ja | AL154: Anteil KWK, erstmals 2012 | AN154: 25.58 | AQ154: EEG | AR154: BiK51nM1K12-01
Y155: 154 | Z155: EEG | AA155: BiK51nM1y---01 | AB155: Biomasse | AC155: Biomasse | AD155: Inbetriebnahme bis 2001 | AE155: Inbetriebnahme bis 2001 | AH155: 0-0,15 MW, Bonusregeln M1, y | AL155: Anteil Nicht-KWK | AN155: 23.67 | AQ155: EEG | AR155: BiK51nM1y---01
Y156: 155 | Z156: EEG | AA156: BiK51nM1KA3y01 | AB156: Biomasse | AC156: Biomasse | AD156: Inbetriebnahme bis 2001 | AE156: Inbetriebnahme bis 2001 | AH156: 0-0,15 MW, Bonusregeln M1, y und K wenn Anlage 3 erfüllt | AJ156: Ja | AL156: Anteil KWK gemäß Anlage 3 | AN156: 26.67 | AQ156: EEG | AR156: BiK51nM1KA3y01
Y157: 156 | Z157: EEG | AA157: BiK51nM1K09y01 | AB157: Biomasse | AC157: Biomasse | AD157: Inbetriebnahme bis 2001 | AE157: Inbetriebnahme bis 2001 | AH157: 0-0,15 MW, Bonusregeln M1, y und K erstmals 2009 | AJ157: Ja | AL157: Anteil KWK, erstmals 2009 | AN157: 26.67 | AQ157: EEG | AR157: BiK51nM1K09y01
Y158: 157 | Z158: EEG | AA158: BiK51nM1K10y01 | AB158: Biomasse | AC158: Biomasse | AD158: Inbetriebnahme bis 2001 | AE158: Inbetriebnahme bis 2001 | AH158: 0-0,15 MW, Bonusregeln M1, y und K erstmals 2010 | AJ158: Ja | AL158: Anteil KWK, erstmals 2010 | AN158: 26.64 | AQ158: EEG | AR158: BiK51nM1K10y01
Y159: 158 | Z159: EEG | AA159: BiK51nM1K11y01 | AB159: Biomasse | AC159: Biomasse | AD159: Inbetriebnahme bis 2001 | AE159: Inbetriebnahme bis 2001 | AH159: 0-0,15 MW, Bonusregeln M1, y und K erstmals 2011 | AJ159: Ja | AL159: Anteil KWK, erstmals 2011 | AN159: 26.61 | AQ159: EEG | AR159: BiK51nM1K11y01
Y160: 159 | Z160: EEG | AA160: BiK51nM1K12y01 | AB160: Biomasse | AC160: Biomasse | AD160: Inbetriebnahme bis 2001 | AE160: Inbetriebnahme bis 2001 | AH160: 0-0,15 MW, Bonusregeln M1, y und K erstmals 2012 | AJ160: Ja | AL160: Anteil KWK, erstmals 2012 | AN160: 26.58 | AQ160: EEG | AR160: BiK51nM1K12y01
Y161: 160 | Z161: EEG | AA161: BiK51nL-----01 | AB161: Biomasse | AC161: Biomasse | AD161: Inbetriebnahme bis 2001 | AE161: Inbetriebnahme bis 2001 | AH161: 0-0,15 MW, Bonusregel L | AL161: Anteil Nicht-KWK | AN161: 20.67 | AQ161: EEG | AR161: BiK51nL-----01
Y162: 161 | Z162: EEG | AA162: BiK51nLKA3--01 | AB162: Biomasse | AC162: Biomasse | AD162: Inbetriebnahme bis 2001 | AE162: Inbetriebnahme bis 2001 | AH162: 0-0,15 MW, Bonusregeln L und K wenn Anlage 3 erfüllt | AJ162: Ja | AL162: Anteil KWK gemäß Anlage 3 | AN162: 23.67 | AQ162: EEG | AR162: BiK51nLKA3--01
Y163: 162 | Z163: EEG | AA163: BiK51nLK09--01 | AB163: Biomasse | AC163: Biomasse | AD163: Inbetriebnahme bis 2001 | AE163: Inbetriebnahme bis 2001 | AH163: 0-0,15 MW, Bonusregeln L und K erstmals 2009 | AJ163: Ja | AL163: Anteil KWK, erstmals 2009 | AN163: 23.67 | AQ163: EEG | AR163: BiK51nLK09--01
Y164: 163 | Z164: EEG | AA164: BiK51nLK10--01 | AB164: Biomasse | AC164: Biomasse | AD164: Inbetriebnahme bis 2001 | AE164: Inbetriebnahme bis 2001 | AH164: 0-0,15 MW, Bonusregeln L und K erstmals 2010 | AJ164: Ja | AL164: Anteil KWK, erstmals 2010 | AN164: 23.64 | AQ164: EEG | AR164: BiK51nLK10--01
Y165: 164 | Z165: EEG | AA165: BiK51nLK11--01 | AB165: Biomasse | AC165: Biomasse | AD165: Inbetriebnahme bis 2001 | AE165: Inbetriebnahme bis 2001 | AH165: 0-0,15 MW, Bonusregeln L und K erstmals 2011 | AJ165: Ja | AL165: Anteil KWK, erstmals 2011 | AN165: 23.61 | AQ165: EEG | AR165: BiK51nLK11--01
Y166: 165 | Z166: EEG | AA166: BiK51nLK12--01 | AB166: Biomasse | AC166: Biomasse | AD166: Inbetriebnahme bis 2001 | AE166: Inbetriebnahme bis 2001 | AH166: 0-0,15 MW, Bonusregeln L und K erstmals 2012 | AJ166: Ja | AL166: Anteil KWK, erstmals 2012 | AN166: 23.58 | AQ166: EEG | AR166: BiK51nLK12--01
Y167: 166 | Z167: EEG | AA167: BiK51nLy----01 | AB167: Biomasse | AC167: Biomasse | AD167: Inbetriebnahme bis 2001 | AE167: Inbetriebnahme bis 2001 | AH167: 0-0,15 MW, Bonusregeln L, y | AL167: Anteil Nicht-KWK | AN167: 21.67 | AQ167: EEG | AR167: BiK51nLy----01
Y168: 167 | Z168: EEG | AA168: BiK51nLKA3y-01 | AB168: Biomasse | AC168: Biomasse | AD168: Inbetriebnahme bis 2001 | AE168: Inbetriebnahme bis 2001 | AH168: 0-0,15 MW, Bonusregeln L, y und K wenn Anlage 3 erfüllt | AJ168: Ja | AL168: Anteil KWK gemäß Anlage 3 | AN168: 24.67 | AQ168: EEG | AR168: BiK51nLKA3y-01
Y169: 168 | Z169: EEG | AA169: BiK51nLK09y-01 | AB169: Biomasse | AC169: Biomasse | AD169: Inbetriebnahme bis 2001 | AE169: Inbetriebnahme bis 2001 | AH169: 0-0,15 MW, Bonusregeln L, y und K erstmals 2009 | AJ169: Ja | AL169: Anteil KWK, erstmals 2009 | AN169: 24.67 | AQ169: EEG | AR169: BiK51nLK09y-01
Y170: 169 | Z170: EEG | AA170: BiK51nLK10y-01 | AB170: Biomasse | AC170: Biomasse | AD170: Inbetriebnahme bis 2001 | AE170: Inbetriebnahme bis 2001 | AH170: 0-0,15 MW, Bonusregeln L, y und K erstmals 2010 | AJ170: Ja | AL170: Anteil KWK, erstmals 2010 | AN170: 24.64 | AQ170: EEG | AR170: BiK51nLK10y-01
Y171: 170 | Z171: EEG | AA171: BiK51nLK11y-01 | AB171: Biomasse | AC171: Biomasse | AD171: Inbetriebnahme bis 2001 | AE171: Inbetriebnahme bis 2001 | AH171: 0-0,15 MW, Bonusregeln L, y und K erstmals 2011 | AJ171: Ja | AL171: Anteil KWK, erstmals 2011 | AN171: 24.61 | AQ171: EEG | AR171: BiK51nLK11y-01
Y172: 171 | Z172: EEG | AA172: BiK51nLK12y-01 | AB172: Biomasse | AC172: Biomasse | AD172: Inbetriebnahme bis 2001 | AE172: Inbetriebnahme bis 2001 | AH172: 0-0,15 MW, Bonusregeln L, y und K erstmals 2012 | AJ172: Ja | AL172: Anteil KWK, erstmals 2012 | AN172: 24.58 | AQ172: EEG | AR172: BiK51nLK12y-01
Y173: 172 | Z173: EEG | AA173: BiK51nX1----01 | AB173: Biomasse | AC173: Biomasse | AD173: Inbetriebnahme bis 2001 | AE173: Inbetriebnahme bis 2001 | AH173: 0-0,15 MW, Bonusregel X1 | AL173: Anteil Nicht-KWK | AN173: 24.67 | AQ173: EEG | AR173: BiK51nX1----01
Y174: 173 | Z174: EEG | AA174: BiK51nX1KA3-01 | AB174: Biomasse | AC174: Biomasse | AD174: Inbetriebnahme bis 2001 | AE174: Inbetriebnahme bis 2001 | AH174: 0-0,15 MW, Bonusregeln X1 und K wenn Anlage 3 erfüllt | AJ174: Ja | AL174: Anteil KWK gemäß Anlage 3 | AN174: 27.67 | AQ174: EEG | AR174: BiK51nX1KA3-01
Y175: 174 | Z175: EEG | AA175: BiK51nX1K09-01 | AB175: Biomasse | AC175: Biomasse | AD175: Inbetriebnahme bis 2001 | AE175: Inbetriebnahme bis 2001 | AH175: 0-0,15 MW, Bonusregeln X1 und K erstmals 2009 | AJ175: Ja | AL175: Anteil KWK, erstmals 2009 | AN175: 27.67 | AQ175: EEG | AR175: BiK51nX1K09-01
Y176: 175 | Z176: EEG | AA176: BiK51nX1K10-01 | AB176: Biomasse | AC176: Biomasse | AD176: Inbetriebnahme bis 2001 | AE176: Inbetriebnahme bis 2001 | AH176: 0-0,15 MW, Bonusregeln X1 und K erstmals 2010 | AJ176: Ja | AL176: Anteil KWK, erstmals 2010 | AN176: 27.64 | AQ176: EEG | AR176: BiK51nX1K10-01
Y177: 176 | Z177: EEG | AA177: BiK51nX1K11-01 | AB177: Biomasse | AC177: Biomasse | AD177: Inbetriebnahme bis 2001 | AE177: Inbetriebnahme bis 2001 | AH177: 0-0,15 MW, Bonusregeln X1 und K erstmals 2011 | AJ177: Ja | AL177: Anteil KWK, erstmals 2011 | AN177: 27.61 | AQ177: EEG | AR177: BiK51nX1K11-01
Y178: 177 | Z178: EEG | AA178: BiK51nX1K12-01 | AB178: Biomasse | AC178: Biomasse | AD178: Inbetriebnahme bis 2001 | AE178: Inbetriebnahme bis 2001 | AH178: 0-0,15 MW, Bonusregeln X1 und K erstmals 2012 | AJ178: =IF(ISERR(FIND("Anteil KWK",AL178)),"","Ja") -> Ja | AL178: Anteil KWK, erstmals 2012 | AN178: 27.58 | AQ178: EEG | AR178: BiK51nX1K12-01
Y179: 178 | Z179: EEG | AA179: BiK51nX1y---01 | AB179: Biomasse | AC179: Biomasse | AD179: Inbetriebnahme bis 2001 | AE179: Inbetriebnahme bis 2001 | AH179: 0-0,15 MW, Bonusregeln X1, y | AL179: Anteil Nicht-KWK | AN179: 25.67 | AQ179: EEG | AR179: BiK51nX1y---01
Y180: 179 | Z180: EEG | AA180: BiK51nX1KA3y01 | AB180: Biomasse | AC180: Biomasse | AD180: Inbetriebnahme bis 2001 | AE180: Inbetriebnahme bis 2001 | AH180: 0-0,15 MW, Bonusregeln X1, y und K wenn Anlage 3 erfüllt | AJ180: Ja | AL180: Anteil KWK gemäß Anlage 3 | AN180: 28.67 | AQ180: EEG | AR180: BiK51nX1KA3y01
Y181: 180 | Z181: EEG | AA181: BiK51nX1K09y01 | AB181: Biomasse | AC181: Biomasse | AD181: Inbetriebnahme bis 2001 | AE181: Inbetriebnahme bis 2001 | AH181: 0-0,15 MW, Bonusregeln X1, y und K erstmals 2009 | AJ181: Ja | AL181: Anteil KWK, erstmals 2009 | AN181: 28.67 | AQ181: EEG | AR181: BiK51nX1K09y01
Y182: 181 | Z182: EEG | AA182: BiK51nX1K10y01 | AB182: Biomasse | AC182: Biomasse | AD182: Inbetriebnahme bis 2001 | AE182: Inbetriebnahme bis 2001 | AH182: 0-0,15 MW, Bonusregeln X1, y und K erstmals 2010 | AJ182: Ja | AL182: Anteil KWK, erstmals 2010 | AN182: 28.64 | AQ182: EEG | AR182: BiK51nX1K10y01
Y183: 182 | Z183: EEG | AA183: BiK51nX1K11y01 | AB183: Biomasse | AC183: Biomasse | AD183: Inbetriebnahme bis 2001 | AE183: Inbetriebnahme bis 2001 | AH183: 0-0,15 MW, Bonusregeln X1, y und K erstmals 2011 | AJ183: Ja | AL183: Anteil KWK, erstmals 2011 | AN183: 28.61 | AQ183: EEG | AR183: BiK51nX1K11y01
Y184: 183 | Z184: EEG | AA184: BiK51nX1K12y01 | AB184: Biomasse | AC184: Biomasse | AD184: Inbetriebnahme bis 2001 | AE184: Inbetriebnahme bis 2001 | AH184: 0-0,15 MW, Bonusregeln X1, y und K erstmals 2012 | AJ184: Ja | AL184: Anteil KWK, erstmals 2012 | AN184: 28.58 | AQ184: EEG | AR184: BiK51nX1K12y01
Y185: 184 | Z185: EEG | AA185: BiK51a------01 | AB185: Biomasse | AC185: Biomasse | AD185: Inbetriebnahme bis 2001 | AE185: Inbetriebnahme bis 2001 | AH185: 0,150-0,5 MW | AL185: Anteil Nicht-KWK | AN185: 10.23 | AQ185: EEG | AR185: BiK51a------01
Y186: 185 | Z186: EEG | AA186: BiK51aKA3---01 | AB186: Biomasse | AC186: Biomasse | AD186: Inbetriebnahme bis 2001 | AE186: Inbetriebnahme bis 2001 | AH186: 0,150-0,5 MW, Bonusregel K wenn Anlage 3 erfüllt | AJ186: Ja | AL186: Anteil KWK gemäß Anlage 3 | AN186: 13.23 | AQ186: EEG | AR186: BiK51aKA3---01
Y187: 186 | Z187: EEG | AA187: BiK51aK09---01 | AB187: Biomasse | AC187: Biomasse | AD187: Inbetriebnahme bis 2001 | AE187: Inbetriebnahme bis 2001 | AH187: 0,150-0,5 MW, Bonusregel K erstmals 2009 | AJ187: Ja | AL187: Anteil KWK, erstmals 2009 | AN187: 13.23 | AQ187: EEG | AR187: BiK51aK09---01
Y188: 187 | Z188: EEG | AA188: BiK51aK10---01 | AB188: Biomasse | AC188: Biomasse | AD188: Inbetriebnahme bis 2001 | AE188: Inbetriebnahme bis 2001 | AH188: 0,150-0,5 MW, Bonusregel K erstmals 2010 | AJ188: Ja | AL188: Anteil KWK, erstmals 2010 | AN188: 13.2 | AQ188: EEG | AR188: BiK51aK10---01
Y189: 188 | Z189: EEG | AA189: BiK51aK11---01 | AB189: Biomasse | AC189: Biomasse | AD189: Inbetriebnahme bis 2001 | AE189: Inbetriebnahme bis 2001 | AH189: 0,150-0,5 MW, Bonusregel K erstmals 2011 | AJ189: Ja | AL189: Anteil KWK, erstmals 2011 | AN189: 13.17 | AQ189: EEG | AR189: BiK51aK11---01
Y190: 189 | Z190: EEG | AA190: BiK51aK12---01 | AB190: Biomasse | AC190: Biomasse | AD190: Inbetriebnahme bis 2001 | AE190: Inbetriebnahme bis 2001 | AH190: 0,150-0,5 MW, Bonusregel K erstmals 2012 | AJ190: Ja | AL190: Anteil KWK, erstmals 2012 | AN190: 13.14 | AQ190: EEG | AR190: BiK51aK12---01
Y191: 190 | Z191: EEG | AA191: BiK51ay-----01 | AB191: Biomasse | AC191: Biomasse | AD191: Inbetriebnahme bis 2001 | AE191: Inbetriebnahme bis 2001 | AH191: 0,150-0,5 MW, Bonusregel y | AL191: Anteil Nicht-KWK | AN191: 11.23 | AQ191: EEG | AR191: BiK51ay-----01
Y192: 191 | Z192: EEG | AA192: BiK51aKA3y--01 | AB192: Biomasse | AC192: Biomasse | AD192: Inbetriebnahme bis 2001 | AE192: Inbetriebnahme bis 2001 | AH192: 0,150-0,5 MW, Bonusregeln y und K wenn Anlage 3 erfüllt | AJ192: Ja | AL192: Anteil KWK gemäß Anlage 3 | AN192: 14.23 | AQ192: EEG | AR192: BiK51aKA3y--01
Y193: 192 | Z193: EEG | AA193: BiK51aK09y--01 | AB193: Biomasse | AC193: Biomasse | AD193: Inbetriebnahme bis 2001 | AE193: Inbetriebnahme bis 2001 | AH193: 0,150-0,5 MW, Bonusregeln y und K erstmals 2009 | AJ193: Ja | AL193: Anteil KWK, erstmals 2009 | AN193: 14.23 | AQ193: EEG | AR193: BiK51aK09y--01
Y194: 193 | Z194: EEG | AA194: BiK51aK10y--01 | AB194: Biomasse | AC194: =VLOOKUP(AB194,ENERGIETRAEGER,1,FALSE) -> Biomasse | AD194: =VLOOKUP(AE194,VIN,1,FALSE) -> Inbetriebnahme bis 2001 | AE194: Inbetriebnahme bis 2001 | AH194: 0,150-0,5 MW, Bonusregeln y und K erstmals 2010 | AJ194: Ja | AL194: Anteil KWK, erstmals 2010 | AN194: 14.2 | AQ194: EEG | AR194: BiK51aK10y--01
Y195: 194 | Z195: EEG | AA195: BiK51aK11y--01 | AB195: Biomasse | AC195: Biomasse | AD195: Inbetriebnahme bis 2001 | AE195: Inbetriebnahme bis 2001 | AH195: 0,150-0,5 MW, Bonusregeln y und K erstmals 2011 | AJ195: Ja | AL195: Anteil KWK, erstmals 2011 | AN195: 14.17 | AQ195: EEG | AR195: BiK51aK11y--01
Y196: 195 | Z196: EEG | AA196: BiK51aK12y--01 | AB196: Biomasse | AC196: Biomasse | AD196: Inbetriebnahme bis 2001 | AE196: Inbetriebnahme bis 2001 | AH196: 0,150-0,5 MW, Bonusregeln y und K erstmals 2012 | AJ196: Ja | AL196: Anteil KWK, erstmals 2012 | AN196: 14.14 | AQ196: EEG | AR196: BiK51aK12y--01
Y197: 196 | Z197: EEG | AA197: BiK51aa1----01 | AB197: Biomasse | AC197: Biomasse | AD197: Inbetriebnahme bis 2001 | AE197: Inbetriebnahme bis 2001 | AH197: 0,150-0,5 MW, Bonusregel a1 | AL197: Anteil Nicht-KWK | AN197: 16.23 | AQ197: EEG | AR197: BiK51aa1----01
Y198: 197 | Z198: EEG | AA198: BiK51aa1KA3-01 | AB198: Biomasse | AC198: Biomasse | AD198: Inbetriebnahme bis 2001 | AE198: Inbetriebnahme bis 2001 | AH198: 0,150-0,5 MW, Bonusregeln a1 und K wenn Anlage 3 erfüllt | AJ198: Ja | AL198: Anteil KWK gemäß Anlage 3 | AN198: 19.23 | AQ198: EEG | AR198: BiK51aa1KA3-01
Y199: 198 | Z199: EEG | AA199: BiK51aa1K09-01 | AB199: Biomasse | AC199: Biomasse | AD199: Inbetriebnahme bis 2001 | AE199: Inbetriebnahme bis 2001 | AH199: 0,150-0,5 MW, Bonusregeln a1 und K erstmals 2009 | AJ199: Ja | AL199: Anteil KWK, erstmals 2009 | AN199: 19.23 | AQ199: EEG | AR199: BiK51aa1K09-01
Y200: 199 | Z200: EEG | AA200: BiK51aa1K10-01 | AB200: Biomasse | AC200: Biomasse | AD200: Inbetriebnahme bis 2001 | AE200: Inbetriebnahme bis 2001 | AH200: 0,150-0,5 MW, Bonusregeln a1 und K erstmals 2010 | AJ200: Ja | AL200: Anteil KWK, erstmals 2010 | AN200: 19.2 | AQ200: EEG | AR200: BiK51aa1K10-01
... 2050 more rows
